date,department/service,beneficiary,amount,summary of purpose,category,transaction number,SAP vendor number
01.08.2023,CHILDREN AND FAMILIES,REDACTED PERSONAL DATA,410,ADOPTION SUPP FUND 2,EXTERNAL AGENCIES AND BODIES,REDACTED,REDACTED
01.08.2023,CHILDREN AND FAMILIES,REDACTED PERSONAL DATA,440,ADOPTION SUPP FUND 2,EXTERNAL AGENCIES AND BODIES,REDACTED,REDACTED
01.08.2023,CHILDREN AND FAMILIES,REDACTED PERSONAL DATA,330,ADOPTION SUPP FUND 3,EXTERNAL AGENCIES AND BODIES,REDACTED,REDACTED
01.08.2023,CHILDREN AND FAMILIES,REDACTED PERSONAL DATA,440,ADOPTION SUPP FUND 3,EXTERNAL AGENCIES AND BODIES,REDACTED,REDACTED
01.08.2023,CHILDREN AND FAMILIES,REDACTED PERSONAL DATA,450,ADOPTION SUPP FUND 3,EXTERNAL AGENCIES AND BODIES,REDACTED,REDACTED
01.08.2023,ENVIRONMENT DIRECTORATE,DELIB LTD,"5,905.00",STREETS FOR PEOPLE - CONTROLLED PARKING,COMMS & COMPUTING CONTRACT CHARGES,5902591421,1000072496
01.08.2023,ORG TRANSFORMATION,CITY & GUILDS INTERNATIONAL LTD,516,ILM COSTS,GENERAL RECHARGES,5902591274,1000011217
02.08.2023,ADULT SOCIAL CARE,THE BAKED BEAN COMPANY,400,LD LTS 18-64,DAYCARE,2103731249,1000088633
02.08.2023,ADULT SOCIAL CARE,ROSEDENE NURSING HOME,"17,468.80",LD LTS 18-64,RESIDENTIAL CARE,2103731288,1163215
02.08.2023,ADULT SOCIAL CARE,CHOICE SUPPORT,257.2,LD LTS 18-64,SUPPORTED LIVING,2103731272,1104183
02.08.2023,ADULT SOCIAL CARE,CHOICE SUPPORT,293.92,LD LTS 18-64,SUPPORTED LIVING,2103731274,1104183
02.08.2023,ADULT SOCIAL CARE,CHOICE SUPPORT,293.92,LD LTS 18-64,SUPPORTED LIVING,2103731275,1104183
02.08.2023,ADULT SOCIAL CARE,CHOICE SUPPORT,"1,910.48",LD LTS 18-64,SUPPORTED LIVING,2103731269,1104183
02.08.2023,ADULT SOCIAL CARE,MARCUS AND MARCUS LTD,"2,000.00",LD LTS 18-64,SUPPORTED LIVING,2103731250,1000065913
02.08.2023,ADULT SOCIAL CARE,MARCUS AND MARCUS LTD,"4,400.00",LD LTS 18-64,SUPPORTED LIVING,2103731245,1000065913
02.08.2023,ADULT SOCIAL CARE,OUT AND ABOUT COMMUNITY SERVICES,704,LD LTS 18-64,SUPPORTED LIVING,2103731273,1000078603
02.08.2023,ADULT SOCIAL CARE,KEEVA CARE LIMITED,420,LD LTS 18-64,SUPPORTED LIVING,2103731246,1000086100
02.08.2023,ADULT SOCIAL CARE,KEEVA CARE LIMITED,"2,109.00",LD LTS 18-64,SUPPORTED LIVING,2103731251,1000086100
02.08.2023,ADULT SOCIAL CARE,SERVESOUL LTD,416.64,MEM LTS 65+,HOMECARE - SPOT,2103731256,1000081503
02.08.2023,ADULT SOCIAL CARE,SERVESOUL LTD,416.64,MEM LTS 65+,HOMECARE - SPOT,2103731262,1000081503
02.08.2023,ADULT SOCIAL CARE,SERVESOUL LTD,416.64,MEM LTS 65+,HOMECARE - SPOT,2103731265,1000081503
02.08.2023,ADULT SOCIAL CARE,SERVESOUL LTD,416.64,MEM LTS 65+,HOMECARE - SPOT,2103731266,1000081503
02.08.2023,ADULT SOCIAL CARE,MIHOMECARE LTD,558.45,MH LTS 65+,HOMECARE - C&V,2103731277,1000042594
02.08.2023,ADULT SOCIAL CARE,ZOT LTD,320,PHY LTS 18-64,CLIENT TRANSPORT,2103731271,1000082848
02.08.2023,ADULT SOCIAL CARE,SERVESOUL LTD,503.44,PHY LTS 18-64,HOMECARE - SPOT,2103731258,1000081503
02.08.2023,ADULT SOCIAL CARE,SERVESOUL LTD,503.44,PHY LTS 18-64,HOMECARE - SPOT,2103731259,1000081503
02.08.2023,ADULT SOCIAL CARE,SERVESOUL LTD,503.44,PHY LTS 18-64,HOMECARE - SPOT,2103731260,1000081503
02.08.2023,ADULT SOCIAL CARE,SERVESOUL LTD,503.44,PHY LTS 18-64,HOMECARE - SPOT,2103731264,1000081503
02.08.2023,ADULT SOCIAL CARE,LONDON CARE LTD,"1,235.48",PHY LTS 65+,HOMECARE - C&V,2103731276,1000003398
02.08.2023,ADULT SOCIAL CARE,LONDON CARE LTD,"1,309.24",PHY LTS 65+,HOMECARE - C&V,2103731268,1000003398
02.08.2023,ADULT SOCIAL CARE,LONDON CARE LTD,"1,759.71",PHY LTS 65+,HOMECARE - C&V,2103731267,1000003398
02.08.2023,ASSET MANAGEMENT,INTERIM PARTNERS LIMITED,"11,250.00",AM TRANSFORMATION COSTS,CONSULTANTS SERVICES,5902592052,1000089772
02.08.2023,ASSET MANAGEMENT,BEACON PARTNERSHIP LLP,441.07,BUILDING SAFETY PROGRAMME,CONSULTANTS SERVICES,5902592163,1000082300
02.08.2023,ASSET MANAGEMENT,ARMINA LTD,"1,051.10",DISREPAIR,BUILDING R&M,2103730813,3000002121
02.08.2023,ASSET MANAGEMENT,ARMINA LTD,"1,138.10",DISREPAIR,BUILDING R&M,2103730811,3000002121
02.08.2023,ASSET MANAGEMENT,ARMINA LTD,"1,336.81",DISREPAIR,BUILDING R&M,2103731279,3000002121
02.08.2023,ASSET MANAGEMENT,ARMINA LTD,"1,698.06",DISREPAIR,BUILDING R&M,2103731278,3000002121
02.08.2023,ASSET MANAGEMENT,ARMINA LTD,"2,176.95",DISREPAIR,BUILDING R&M,2103730812,3000002121
02.08.2023,ASSET MANAGEMENT,ARMINA LTD,"3,302.39",DISREPAIR,BUILDING R&M,2103730810,3000002121
02.08.2023,ASSET MANAGEMENT,ARMINA LTD,"6,469.90",DISREPAIR,BUILDING R&M,2103731284,3000002121
02.08.2023,ASSET MANAGEMENT,ARMINA LTD,"14,532.13",DISREPAIR,BUILDING R&M,2103731283,3000002121
02.08.2023,ASSET MANAGEMENT,HSB ENGINEERING INSURANCE SERVICES,730,LIFTS,LIFTS,5902592176,1000089047
02.08.2023,ASSET MANAGEMENT,HSB ENGINEERING INSURANCE SERVICES,730,LIFTS,LIFTS,5902592177,1000089047
02.08.2023,ASSET MANAGEMENT,GC CONSTRUCT LTD,"2,862.79",MAJOR REPAIRS,BUILDING R&M,2103731410,3000002106
02.08.2023,CENTRAL FUNCTIONS,BRESLIN CONSTRUCTION LTD,"3,800.00",COMMERCIAL PROPERTIES,BUILDING R&M,2103731421,3000001948
02.08.2023,CHIEF EXECUTIVE,CBS MAINTENANCE SERVICES LTD,282,CAPITAL PS (REGEN),CONSTRUCTION FEES  - EXTERNAL,2103731404,3000001518
02.08.2023,CHIEF EXECUTIVE,CBS MAINTENANCE SERVICES LTD,570,CAPITAL PS (REGEN),CONSTRUCTION FEES  - EXTERNAL,2103731406,3000001518
02.08.2023,CHIEF EXECUTIVE,CBS MAINTENANCE SERVICES LTD,"5,951.00",CAPITAL PS (REGEN),CONSTRUCTION FEES  - EXTERNAL,2103731405,3000001518
02.08.2023,CHIEF EXECUTIVE,SHARPE PRITCHARD LLP,261.4,CAPITAL PS (REGEN),CONSTRUCTION FEES - LEGAL,5902592156,1790085
02.08.2023,CHIEF EXECUTIVE,SHARPE PRITCHARD LLP,449.6,CAPITAL PS (REGEN),CONSTRUCTION FEES - LEGAL,5902592157,1790085
02.08.2023,CHILDREN AND FAMILIES,REDACTED PERSONAL DATA,300,CARELEAVER UNIV SUPP,OTHER PAYMENTS FOR CLIENTS,REDACTED,REDACTED
02.08.2023,CHILDREN AND FAMILIES,LINCOLNSHRE COUNTY COUNCIL,"1,850.00",CONTACT SERVICE,EXTERNAL AGENCIES AND BODIES,5902591495,1000090057
02.08.2023,CHILDREN AND FAMILIES,REDACTED PERSONAL DATA,300,FOSTERING ALLOWANCES,OTHER PAYMENTS FOR CLIENTS,REDACTED,REDACTED
02.08.2023,CHILDREN AND FAMILIES,REDACTED PERSONAL DATA,993.2,P & R CARE TEAM,OTHER PAYMENTS FOR CLIENTS,REDACTED,REDACTED
02.08.2023,CHILDREN AND FAMILIES,WILLIS PALMER,"3,395.00",SPECIAL GUARDIANSHIP,CONSULTANTS SERVICES,5902592204,1000056409
02.08.2023,CHILDREN AND FAMILIES,REDACTED PERSONAL DATA,752.94,SPECIAL GUARDIANSHIP,EXTERNAL AGENCIES AND BODIES,REDACTED,REDACTED
02.08.2023,CHILDREN AND FAMILIES,REDACTED PERSONAL DATA,657.25,SPECIAL GUARDIANSHIP,EXTERNAL AGENCIES AND BODIES,REDACTED,REDACTED
02.08.2023,CHILDREN AND FAMILIES,REDACTED PERSONAL DATA,"-3,266.55",SPECIAL GUARDIANSHIP,PAYMENTS TO CARERS,REDACTED,REDACTED
02.08.2023,CHILDREN AND FAMILIES,REDACTED PERSONAL DATA,"3,754.08",SPECIAL GUARDIANSHIP,PAYMENTS TO CARERS,REDACTED,REDACTED
02.08.2023,CHILDREN AND FAMILIES,REDACTED PERSONAL DATA,254.27,SPECIAL GUARDIANSHIP,PAYMENTS TO CARERS,REDACTED,REDACTED
02.08.2023,CHILDREN AND FAMILIES,REDACTED PERSONAL DATA,252.9,SPECIAL GUARDIANSHIP,PAYMENTS TO CARERS,REDACTED,REDACTED
02.08.2023,CHILDREN AND FAMILIES,REDACTED PERSONAL DATA,263.6,SPECIAL GUARDIANSHIP,PAYMENTS TO CARERS,REDACTED,REDACTED
02.08.2023,CHILDREN AND FAMILIES,REDACTED PERSONAL DATA,268.35,SPECIAL GUARDIANSHIP,PAYMENTS TO CARERS,REDACTED,REDACTED
02.08.2023,CHILDREN AND FAMILIES,REDACTED PERSONAL DATA,436.27,SPECIAL GUARDIANSHIP,PAYMENTS TO CARERS,REDACTED,REDACTED
02.08.2023,CHILDREN AND FAMILIES,REDACTED PERSONAL DATA,252.9,SPECIAL GUARDIANSHIP,PAYMENTS TO CARERS,REDACTED,REDACTED
02.08.2023,CHILDREN AND FAMILIES,REDACTED PERSONAL DATA,252.91,SPECIAL GUARDIANSHIP,PAYMENTS TO CARERS,REDACTED,REDACTED
02.08.2023,CHILDREN AND FAMILIES,REDACTED PERSONAL DATA,"-3,266.55",SPECIAL GUARDIANSHIP,PAYMENTS TO CARERS,REDACTED,REDACTED
02.08.2023,CHILDREN AND FAMILIES,REDACTED PERSONAL DATA,"3,754.08",SPECIAL GUARDIANSHIP,PAYMENTS TO CARERS,REDACTED,REDACTED
02.08.2023,CHILDREN AND FAMILIES,REDACTED PERSONAL DATA,389.34,SPECIAL GUARDIANSHIP,PAYMENTS TO CARERS,REDACTED,REDACTED
02.08.2023,CHILDREN AND FAMILIES,REDACTED PERSONAL DATA,252.11,SPECIAL GUARDIANSHIP,PAYMENTS TO CARERS,REDACTED,REDACTED
02.08.2023,CHILDREN AND FAMILIES,REDACTED PERSONAL DATA,252.9,SPECIAL GUARDIANSHIP,PAYMENTS TO CARERS,REDACTED,REDACTED
02.08.2023,CHILDREN AND FAMILIES,REDACTED PERSONAL DATA,400.42,SPECIAL GUARDIANSHIP,PAYMENTS TO CARERS,REDACTED,REDACTED
02.08.2023,CHILDREN AND FAMILIES,REDACTED PERSONAL DATA,453.14,SPECIAL GUARDIANSHIP,PAYMENTS TO CARERS,REDACTED,REDACTED
02.08.2023,CHILDREN AND FAMILIES,REDACTED PERSONAL DATA,252.9,SPECIAL GUARDIANSHIP,PAYMENTS TO CARERS,REDACTED,REDACTED
02.08.2023,CHILDREN AND FAMILIES,REDACTED PERSONAL DATA,252.9,SPECIAL GUARDIANSHIP,PAYMENTS TO CARERS,REDACTED,REDACTED
02.08.2023,CHILDREN AND FAMILIES,REDACTED PERSONAL DATA,252.9,SPECIAL GUARDIANSHIP,PAYMENTS TO CARERS,REDACTED,REDACTED
02.08.2023,CHILDREN AND FAMILIES,REDACTED PERSONAL DATA,252.92,SPECIAL GUARDIANSHIP,PAYMENTS TO CARERS,REDACTED,REDACTED
02.08.2023,CHILDREN AND FAMILIES,REDACTED PERSONAL DATA,252.9,SPECIAL GUARDIANSHIP,PAYMENTS TO CARERS,REDACTED,REDACTED
02.08.2023,CHILDREN AND FAMILIES,REDACTED PERSONAL DATA,268.35,SPECIAL GUARDIANSHIP,PAYMENTS TO CARERS,REDACTED,REDACTED
02.08.2023,CHILDREN AND FAMILIES,REDACTED PERSONAL DATA,252.9,SPECIAL GUARDIANSHIP,PAYMENTS TO CARERS,REDACTED,REDACTED
02.08.2023,CHILDREN AND FAMILIES,REDACTED PERSONAL DATA,268.35,SPECIAL GUARDIANSHIP,PAYMENTS TO CARERS,REDACTED,REDACTED
02.08.2023,CHILDREN AND FAMILIES,REDACTED PERSONAL DATA,268.35,SPECIAL GUARDIANSHIP,PAYMENTS TO CARERS,REDACTED,REDACTED
02.08.2023,CHILDREN AND FAMILIES,REDACTED PERSONAL DATA,265.55,SPECIAL GUARDIANSHIP,PAYMENTS TO CARERS,REDACTED,REDACTED
02.08.2023,CHILDREN AND FAMILIES,REDACTED PERSONAL DATA,300,SPECIAL GUARDIANSHIP,PAYMENTS TO CARERS,REDACTED,REDACTED
02.08.2023,CHILDREN AND FAMILIES,REDACTED PERSONAL DATA,525,SPECIAL GUARDIANSHIP,PAYMENTS TO CARERS,REDACTED,REDACTED
02.08.2023,CHILDREN AND FAMILIES,REDACTED PERSONAL DATA,252.9,SPECIAL GUARDIANSHIP,PAYMENTS TO CARERS,REDACTED,REDACTED
02.08.2023,CHILDREN AND FAMILIES,REDACTED PERSONAL DATA,252.9,SPECIAL GUARDIANSHIP,PAYMENTS TO CARERS,REDACTED,REDACTED
02.08.2023,CHILDREN AND FAMILIES,REDACTED PERSONAL DATA,254.27,SPECIAL GUARDIANSHIP,PAYMENTS TO CARERS,REDACTED,REDACTED
02.08.2023,CHILDREN AND FAMILIES,REDACTED PERSONAL DATA,383.55,SPECIAL GUARDIANSHIP,PAYMENTS TO CARERS,REDACTED,REDACTED
02.08.2023,CHILDREN AND FAMILIES,REDACTED PERSONAL DATA,252.9,SPECIAL GUARDIANSHIP,PAYMENTS TO CARERS,REDACTED,REDACTED
02.08.2023,CHILDREN AND FAMILIES,REDACTED PERSONAL DATA,338,SPECIAL GUARDIANSHIP,PAYMENTS TO CARERS,REDACTED,REDACTED
02.08.2023,CHILDREN AND FAMILIES,REDACTED PERSONAL DATA,338,SPECIAL GUARDIANSHIP,PAYMENTS TO CARERS,REDACTED,REDACTED
02.08.2023,CHILDREN AND FAMILIES,REDACTED PERSONAL DATA,270,SPECIAL GUARDIANSHIP,PAYMENTS TO CARERS,REDACTED,REDACTED
02.08.2023,CHILDREN AND FAMILIES,REDACTED PERSONAL DATA,472.71,SPECIAL GUARDIANSHIP,PAYMENTS TO CARERS,REDACTED,REDACTED
02.08.2023,CHILDREN AND FAMILIES,REDACTED PERSONAL DATA,472.71,SPECIAL GUARDIANSHIP,PAYMENTS TO CARERS,REDACTED,REDACTED
02.08.2023,CHILDREN AND FAMILIES,REDACTED PERSONAL DATA,341.22,SPECIAL GUARDIANSHIP,PAYMENTS TO CARERS,REDACTED,REDACTED
02.08.2023,CHILDREN AND FAMILIES,1ST PLACE CHILDREN & PARENTS CENTRE,324,TEAM A,OTHER PAYMENTS FOR CLIENTS,2103731244,1000049952
02.08.2023,CHILDREN AND FAMILIES,REDACTED PERSONAL DATA,251,UASC CARELEAVERS,OTHER PAYMENTS FOR CLIENTS,REDACTED,REDACTED
02.08.2023,COLLECTION FUNDS,GREATER LONDON AUTHORITY,"4,752,146.41",GLA PRECEPT,LEVIES,5902592111,1000015827
02.08.2023,COMMISSIONING & CENTRAL,BRESLIN CONSTRUCTION LTD,"3,800.00",COMMISSIONING DIRECTORATE,BUILDING R&M,2103731424,3000001948
02.08.2023,COMMISSIONING & CENTRAL,BRESLIN CONSTRUCTION LTD,540,COMMISSIONING DIRECTORATE,SECURITY EQUIPMENT F&F,5902592135,1000078031
02.08.2023,COMMISSIONING & CENTRAL,BRESLIN CONSTRUCTION LTD,"2,450.00",COMMISSIONING DIRECTORATE,SECURITY EQUIPMENT F&F,5902592166,1000078031
02.08.2023,COMMISSIONING & CENTRAL,BRESLIN CONSTRUCTION LTD,"2,520.00",COMMISSIONING DIRECTORATE,SECURITY EQUIPMENT F&F,5902592134,1000078031
02.08.2023,COMMUNITIES,REDACTED PERSONAL DATA,"1,417.50",NO RECOURSE TO PUBLIC FUNDS,HOMECARE - SPOT,REDACTED,REDACTED
02.08.2023,COMMUNITIES,REDACTED PERSONAL DATA,500,UKRAINIAN PROGRAMME,GRANTS,REDACTED,REDACTED
02.08.2023,COMMUNITIES,REDACTED PERSONAL DATA,500,UKRAINIAN PROGRAMME,GRANTS,REDACTED,REDACTED
02.08.2023,COMMUNITIES,REDACTED PERSONAL DATA,500,UKRAINIAN PROGRAMME,GRANTS,REDACTED,REDACTED
02.08.2023,COMMUNITIES,REDACTED PERSONAL DATA,350,UKRAINIAN PROGRAMME,GRANTS,REDACTED,REDACTED
02.08.2023,COMMUNITIES,REDACTED PERSONAL DATA,500,UKRAINIAN PROGRAMME,GRANTS,REDACTED,REDACTED
02.08.2023,COMMUNITIES,REDACTED PERSONAL DATA,500,UKRAINIAN PROGRAMME,GRANTS,REDACTED,REDACTED
02.08.2023,COMMUNITIES,REDACTED PERSONAL DATA,700,UKRAINIAN PROGRAMME,GRANTS,REDACTED,REDACTED
02.08.2023,COMMUNITIES,REDACTED PERSONAL DATA,350,UKRAINIAN PROGRAMME,GRANTS,REDACTED,REDACTED
02.08.2023,COMMUNITIES,REDACTED PERSONAL DATA,350,UKRAINIAN PROGRAMME,GRANTS,REDACTED,REDACTED
02.08.2023,COMMUNITIES,REDACTED PERSONAL DATA,"1,900.00",UKRAINIAN PROGRAMME,GRANTS,REDACTED,REDACTED
02.08.2023,COMMUNITIES,SOUTHWARK REFUGEE COMMUNITIES FORUM,"3,000.00",WEST CENTRAL,GRANTS,5902592203,1000036926
02.08.2023,CUSTOMER AND EXCHEQUER,DIGNITY FUNERALS LTD,"27,400.00",CORONER'S,OTHER CONTRACTORS,5902592178,1000041373
02.08.2023,CUSTOMER AND EXCHEQUER,IMPERIAL COLLEGE PROJECTS LTD,323,CORONER'S,PROFESSIONAL FEES,5902592152,1000080106
02.08.2023,CUSTOMER AND EXCHEQUER,IMPERIAL COLLEGE PROJECTS LTD,399,CORONER'S,PROFESSIONAL FEES,5902592147,1000080106
02.08.2023,CUSTOMER AND EXCHEQUER,IMPERIAL COLLEGE PROJECTS LTD,425,CORONER'S,PROFESSIONAL FEES,5902592145,1000080106
02.08.2023,CUSTOMER AND EXCHEQUER,IMPERIAL COLLEGE PROJECTS LTD,433,CORONER'S,PROFESSIONAL FEES,5902592146,1000080106
02.08.2023,CUSTOMER AND EXCHEQUER,IMPERIAL COLLEGE PROJECTS LTD,603,CORONER'S,PROFESSIONAL FEES,5902592151,1000080106
02.08.2023,CUSTOMER AND EXCHEQUER,IMPERIAL COLLEGE PROJECTS LTD,663,CORONER'S,PROFESSIONAL FEES,5902592153,1000080106
02.08.2023,CUSTOMER AND EXCHEQUER,HIAM ALI LTD,"7,373.20",CORONER'S,PROFESSIONAL FEES,5902592206,1000084044
02.08.2023,CUSTOMER AND EXCHEQUER,NRC PATHOLOGY SERVICES LIMITED,600,CORONER'S,PROFESSIONAL FEES,5902592200,1000085798
02.08.2023,CUSTOMER AND EXCHEQUER,BUDGET CARPETS,800,SESS,OTHER PAYMENTS FOR CLIENTS,5902592092,11319076
02.08.2023,DIGITAL AND TECHNOLOGY,WEB LABS LTD,"2,700.00",DIGITAL DELIVERY,CONSULTANTS SERVICES,5902592187,1000039819
02.08.2023,DIGITAL AND TECHNOLOGY,WEB LABS LTD,"5,400.00",DIGITAL DELIVERY,CONSULTANTS SERVICES,5902592188,1000039819
02.08.2023,DIGITAL AND TECHNOLOGY,KEYSTREAM GROUP LIMITED,"2,887.50",TECHNOLOGY TRANSFORMATION,AGENCY STAFF,5902592066,1000089467
02.08.2023,DSG,DOG KENNEL HILL PRIMARY SCHOOL,"131,495.00",DOG KENNEL HILL PRIMARY SCHOOL,SCHOOLS CAPITATION,2103731360,5001000025
02.08.2023,DSG,ROTHERHITHE PRIMARY SCHOOL,"161,701.00",ROTHERHITHE PRIMARY SCHOOL,SCHOOLS CAPITATION,2103731361,5001000058
02.08.2023,DSG,1ST STAFF LTD,"5,880.00",VIRTUAL SCHOOL PP,EXTERNAL AGENCIES AND BODIES,5902587237,1000082017
02.08.2023,ENV & LEIS,SIMPLY ERGONOMIC LTD,600,MANAGEMENT TEAM,EQUIPMENT PURCHASE & REPAIR,5902592061,1000070343
02.08.2023,ENV&LEIS,BONAMY PHARMACY (MILDCARE LIMITED),342.33,SEXUAL HEALTH - CONTRACEPTION,EXTERNAL AGENCIES AND BODIES,5902592076,1000063072
02.08.2023,ENV&LEIS,BONAMY PHARMACY (MILDCARE LIMITED),605,SEXUAL HEALTH - CONTRACEPTION,EXTERNAL AGENCIES AND BODIES,5902592076,1000063072
02.08.2023,ENV&LEIS,VU CHEM LTD T/A TOWER BRIDGE,754,SEXUAL HEALTH - CONTRACEPTION,EXTERNAL AGENCIES AND BODIES,5902592093,1000064097
02.08.2023,ENV&LEIS,K.S.C. 1T LTD,705.52,SEXUAL HEALTH - CONTRACEPTION,EXTERNAL AGENCIES AND BODIES,5902592169,1000081458
02.08.2023,ENV&LEIS,K.S.C. 1T LTD,"1,267.50",SEXUAL HEALTH - CONTRACEPTION,EXTERNAL AGENCIES AND BODIES,5902592169,1000081458
02.08.2023,ENVIRONMENT AND LEISURE,AGGREGATE INDUSTRIES UK LTD,"4,195.00",CAPITAL PS (LEISURE),CONST'N MAIN CONTRACT - NON CERTIFICATED,2103731399,3000002280
02.08.2023,ENVIRONMENT AND LEISURE,AGGREGATE INDUSTRIES UK LTD,"9,070.75",CAPITAL PS (LEISURE),CONST'N MAIN CONTRACT - NON CERTIFICATED,2103731397,3000002280
02.08.2023,ENVIRONMENT AND LEISURE,AGGREGATE INDUSTRIES UK LTD,"17,138.44",CAPITAL PS (LEISURE),CONST'N MAIN CONTRACT - NON CERTIFICATED,2103731398,3000002280
02.08.2023,ENVIRONMENT AND LEISURE,SIMLAW ECOLOGY LIMITED,"3,225.00",CAPITAL PS (LEISURE),CONSTR'N SUB CONTRACT - NON CERTIFICATED,5902592182,1000081042
02.08.2023,ENVIRONMENT AND LEISURE,METIS CONSULTANTS LIMITED,"3,343.96",CAPITAL PS (LEISURE),CONSTRUCTION FEES,5902592148,1000086330
02.08.2023,ENVIRONMENT AND LEISURE,METIS CONSULTANTS LIMITED,"5,190.00",CAPITAL PS (LEISURE),CONSTRUCTION FEES  - EXTERNAL,5902592060,1000086330
02.08.2023,ENVIRONMENT DIRECTORATE,HORIZON ENVIRONMENT SERVICES LTD,995,COMMERCIAL PEST CONTROL WORKS,OTHER CONTRACTORS,5902592201,1000059440
02.08.2023,ENVIRONMENT DIRECTORATE,LEASEPLAN UK LTD,730.54,COMMERCIAL VEH CTRL A/C,VEHICLE REPAIRS & MAINTENANCE,5902592054,11014756
02.08.2023,ENVIRONMENT DIRECTORATE,WESTMINSTER WASTE,266,COMMERCIAL WASTE,GROUNDS MAINTENANCE,5902591778,1000080933
02.08.2023,ENVIRONMENT DIRECTORATE,WESTMINSTER WASTE,587.9,COMMERCIAL WASTE,GROUNDS MAINTENANCE,5902591781,1000080933
02.08.2023,ENVIRONMENT DIRECTORATE,ATG ACCESS LTD,"4,343.15",GLOBE WALK BOLLARDS,SOUTHWARK DIRECT CHARGES,5902592202,1000070530
02.08.2023,ENVIRONMENT DIRECTORATE,CITY SCIENCE CORPORATION LTD,"10,080.00",LOW TRAFFIC NEIGHBOURHOOD,MISCELLANEOUS RECHARGES,5902592098,1000089601
02.08.2023,ENVIRONMENT DIRECTORATE,METIS CONSULTANTS LIMITED,"1,579.40",SECTION 278 & 38,HIGHWAYS TERM CONTRACT,5902592078,1000086330
02.08.2023,ENVIRONMENT DIRECTORATE,METIS CONSULTANTS LIMITED,"1,579.40",SECTION 278 & 38,HIGHWAYS TERM CONTRACT,5902592082,1000086330
02.08.2023,HOUSING,OCO LIMITED,"161,372.83",PAYMENTS CONTROL ACCOUNT - OCO,I-WORLD CONTRACTORS HOLDING ACCOUNT,5902592108,1006066
02.08.2023,HOUSING,SMITH & BYFORD LTD,"140,141.00",SMITH AND BYFORD,I-WORLD CONTRACTORS HOLDING ACCOUNT,5902592109,11212119
02.08.2023,HOUSING GENERAL FUND,PRIDE DEVELOPMENTS,"1,592.45",CAPITAL PS (REGEN),CONSTRUCTION MAIN CONTRACT,2103731409,3000002126
02.08.2023,HOUSING GENERAL FUND,KEYSTREAM GROUP LIMITED,"3,000.00",CAPITAL PS (STRAT SERV),ICT ACQUISITION,5902591905,1000089467
02.08.2023,HOUSING HRA,DURKAN LTD,"58,418.32",CAPITAL PS (HRA),CONSTRUCTION FEES  - EXTERNAL,2103731407,3000000960
02.08.2023,HOUSING HRA,EQUANS REGENERATION (APOLLO) LTD,"1,709,947.82",CAPITAL PS (HRA),CONSTRUCTION MAIN CONTRACT -CERTIFICATED,2103731412,4000449
02.08.2023,HOUSING HRA,STANDAGE & CO LTD,"96,686.77",CAPITAL PS (HRA),CONSTRUCTION MAIN CONTRACT -CERTIFICATED,2103731285,4002817
02.08.2023,HOUSING HRA,DURKAN LTD,"136,309.41",CAPITAL PS (HRA),CONSTRUCTION MAIN CONTRACT -CERTIFICATED,2103731407,3000000960
02.08.2023,HOUSING HRA,DURKAN LTD,"163,839.15",CAPITAL PS (REGEN),CONSTRUCTION MAIN CONTRACT -CERTIFICATED,2103731416,3000000960
02.08.2023,HOUSING HRA,DURKAN LTD,"227,063.72",CAPITAL PS (REGEN),LAND & BUILDINGS ACQUISITION,2103731413,3000000960
02.08.2023,LEISURE DIRECTORATE,QUADRON SERVICES LIMITED,496.48,CLIENT SERV(GRNS MAIN),OTHER CONTRACTORS,5902592083,1000066528
02.08.2023,PLANNING & GROWTH,THIS SOLID GROUND LTD,"2,550.00","COURAGE YARD, SHAD THAMES",MARKETING & PUBLICITY SERVICES,5902592125,1000082494
02.08.2023,PLANNING & GROWTH,KENT COUNTY COUNCIL - LASER,402.84,LBS SOJOURNER TRUTH COMMUNITY CENTRE,GAS,5902592141,1000012926
02.08.2023,PLANNING & GROWTH,RRR CONSULTANCY LTD,"2,666.66",PLANNING POLICY TEAM,CONSULTANTS SERVICES,5902592138,1000086688
02.08.2023,PLANNING & GROWTH,KENT COUNTY COUNCIL - LASER,"2,304.00",TOWER WORKSHOPS,ELECTRICITY,5902592139,1000012926
02.08.2023,RESIDENT SERVICES,VPS (UK) LTD,-650,AYLESBURY,SECURITY SERVICES,5902592198,1000040614
02.08.2023,RESIDENT SERVICES,VPS (UK) LTD,"2,600.00",AYLESBURY,SECURITY SERVICES,5902584798,1000040614
02.08.2023,RESIDENT SERVICES HGF,PFL PROPERTIES LTD,"2,314.94",AFEO,EXTERNAL AGENCIES AND BODIES,5902592161,1000086466
02.08.2023,RESIDENT SERVICES HGF,FRESHVIEW ESTATES,"2,381.94",HOMELESS PROJECTS,GRANTS,5902592194,1000086397
02.08.2023,RESIDENT SERVICES HGF,FRESHVIEW ESTATES,"2,381.94",HOMELESS PROJECTS,GRANTS,5902592196,1000086397
02.08.2023,RESIDENT SERVICES HGF,PFL PROPERTIES LTD,"2,381.44",HOMELESS PROJECTS,GRANTS,5902592172,1000086466
02.08.2023,RESIDENT SERVICES HGF,RELOC8 UK LIMITED,637.05,HOMELESS PROJECTS,GRANTS,5902592080,1000089781
02.08.2023,RESIDENT SERVICES HGF,RELOC8 UK LIMITED,"2,198.85",HOMELESS PROJECTS,GRANTS,5902592050,1000089781
02.08.2023,RESIDENT SERVICES HGF,RELOC8 UK LIMITED,"5,680.00",HOMELESS PROJECTS,GRANTS,5902592051,1000089781
02.08.2023,RESIDENT SERVICES HGF,IAN J TAIT HOMES LTD,"3,000.00",HOMELESS PROJECTS,GRANTS,5902592207,1000090023
02.08.2023,RESIDENT SERVICES HGF,LETTING INTERNATIONAL LTD,355,HOMELESS PROJECTS,LEGAL FEES & COURT COSTS,5902592053,1000070102
02.08.2023,RESIDENT SERVICES HGF,LETTING INTERNATIONAL LTD,355,HOMELESS PROJECTS,LEGAL FEES & COURT COSTS,5902592055,1000070102
02.08.2023,RESIDENT SERVICES HGF,LETTING INTERNATIONAL LTD,355,HOMELESS PROJECTS,LEGAL FEES & COURT COSTS,5902592056,1000070102
02.08.2023,RESIDENT SERVICES HGF,LETTING INTERNATIONAL LTD,355,HOMELESS PROJECTS,LEGAL FEES & COURT COSTS,5902592065,1000070102
02.08.2023,RESIDENT SERVICES HGF,LETTING INTERNATIONAL LTD,355,HOMELESS PROJECTS,LEGAL FEES & COURT COSTS,5902592069,1000070102
02.08.2023,RESIDENT SERVICES HGF,LETTING INTERNATIONAL LTD,355,HOMELESS PROJECTS,LEGAL FEES & COURT COSTS,5902592071,1000070102
02.08.2023,RESIDENT SERVICES HGF,LIVING ACCOMMODATION LTD,"6,600.00",NIGHTLY TA (NSC),EXTERNAL AGENCIES AND BODIES,5902592091,1000063985
02.08.2023,RESIDENT SERVICES HGF,LIVING ACCOMMODATION LTD,"6,820.00",NIGHTLY TA (NSC),EXTERNAL AGENCIES AND BODIES,5902592123,1000063985
02.08.2023,RESIDENT SERVICES HGF,K3 PROPERTY MANAGEMENT LTD,"1,260.00",NIGHTLY TA (NSC),EXTERNAL AGENCIES AND BODIES,5902592075,1000068219
02.08.2023,RESIDENT SERVICES HGF,K3 PROPERTY MANAGEMENT LTD,"46,872.00",NIGHTLY TA (NSC),EXTERNAL AGENCIES AND BODIES,5902592073,1000068219
02.08.2023,RESIDENT SERVICES HGF,DENHAN INTERNATIONAL LIMITED,"18,948.00",NIGHTLY TA (NSC),EXTERNAL AGENCIES AND BODIES,5902592084,1000075567
02.08.2023,RESIDENT SERVICES HGF,DMS PROPERTIES SERVICES LTD,"25,638.50",NIGHTLY TA (NSC),EXTERNAL AGENCIES AND BODIES,5902592127,1000081522
02.08.2023,RESIDENT SERVICES HGF,LTA DIRECT LTD,"1,125.00",NIGHTLY TA (NSC),EXTERNAL AGENCIES AND BODIES,5902592072,1000085314
02.08.2023,RESIDENT SERVICES HGF,STEF & PHILIPS LTD,"47,591.00",NIGHTLY TA (NSC),EXTERNAL AGENCIES AND BODIES,5902592089,1000088522
02.08.2023,RESIDENT SERVICES HGF,BETHEL ROCK LTD,"22,874.20",PSL PLACEMENTS,EXTERNAL AGENCIES AND BODIES,5902592064,1000080864
02.08.2023,RESIDENT SERVICES HGF,ZFA ACCOMMODATION LTD,"167,524.70",PSL PLACEMENTS,EXTERNAL AGENCIES AND BODIES,5902592101,1000082620
02.08.2023,SBS OPERATIONS,ARMINA LTD,"16,279.67",CAMBERWELL DD,OTHER CONTRACTORS,2103730803,3000002121
02.08.2023,SBS OPERATIONS,ARMINA LTD,"1,406.81",NUNHEAD DD,OTHER CONTRACTORS,2103730803,3000002121
02.08.2023,SBS OPERATIONS,ARMINA LTD,"5,063.91",PECKHAM & DULWICH DD,OTHER CONTRACTORS,2103730803,3000002121
02.08.2023,SBS OPERATIONS,ARMINA LTD,"66,525.00",PECKHAM & DULWICH DD,OTHER CONTRACTORS,2103730803,3000002121
02.08.2023,SBS OPERATIONS,ARMINA LTD,826.44,ROTHERHITHE & BERMONDSEY DD,OTHER CONTRACTORS,2103730803,3000002121
02.08.2023,SBS OPERATIONS,ARMINA LTD,652.72,SBS LEAKS FROM ABOVE,OTHER CONTRACTORS,2103730803,3000002121
02.08.2023,SBS OPERATIONS,CRATUS BUILDING SERVICES LIMITED,"118,435.11",SR - VOIDS TEAM,OTHER CONTRACTORS,2103730800,3000001055
02.08.2023,SBS OPERATIONS,SANDERSONS BUILDING SERVICES LTD,"124,904.36",SR - VOIDS TEAM,OTHER CONTRACTORS,2103730799,3000002065
02.08.2023,SBS OPERATIONS,PROPERTY FACILITIES GROUP PLC,"167,316.01",SR COMMUNAL - DELIVERY TEAM,OTHER CONTRACTORS,2103730801,3000001420
02.08.2023,SBS OPERATIONS,ARMINA LTD,"22,060.93",TASK TEAM & HAT,OTHER CONTRACTORS,2103730803,3000002121
02.08.2023,SBS OPERATIONS,ARMINA LTD,"7,085.63",WALWORTH DD,OTHER CONTRACTORS,2103730803,3000002121
02.08.2023,SOUTHWARK BUILDING SERVICES,KEMICO LIMITED,"1,083.60",STORES/LOGISTICS,CREDITORS -GR/IR CLEARING ACCOUNT,5902592081,1000030226
02.08.2023,SOUTHWARK BUILDING SERVICES,KEMICO LIMITED,"4,797.00",STORES/LOGISTICS,CREDITORS -GR/IR CLEARING ACCOUNT,5902592081,1000030226
02.08.2023,STRATEGIC FINANCE,GREATER LONDON AUTHORITY,"152,354.90",LONDON PENSION FUND,LEVIES,5902592110,1000015827
03.08.2023,ADULT SOCIAL CARE,REDACTED PERSONAL DATA,283.45,APPOINTEESHIPS,OTHER PAYMENTS FOR CLIENTS,REDACTED,REDACTED
03.08.2023,ADULT SOCIAL CARE,HEALTH ADVOCACY UK LTD,650,CHC ADVOCACY- LD,ADVOCACY,5902592223,1000082156
03.08.2023,ADULT SOCIAL CARE,THE DRIVE CARE HOMES LTD,"14,872.87",DISABILITIES LAC,EXTERNAL AGENCIES AND BODIES,2103731573,1000003889
03.08.2023,ADULT SOCIAL CARE,BLANDFORD HOUSE UK LTD,"22,319.55",DISABILITIES LAC,EXTERNAL AGENCIES AND BODIES,2103731572,1000088662
03.08.2023,ADULT SOCIAL CARE,THE DRIVE CARE HOMES LTD,"2,040.00",DISABILITIES LAC,OTHER PAYMENTS FOR CLIENTS,2103731570,1000003889
03.08.2023,ADULT SOCIAL CARE,THE DRIVE CARE HOMES LTD,"15,741.40",DISABILITIES LAC,RESIDENTIAL CARE,2103731568,1000003889
03.08.2023,ADULT SOCIAL CARE,BLANDFORD HOUSE UK LTD,"3,510.09",DISABILITIES LAC,RESIDENTIAL CARE,2103731571,1000088662
03.08.2023,ADULT SOCIAL CARE,BEDE HOUSE ASSOCIATION,360,LD LTS 18-64,DAYCARE,2103731620,1553877
03.08.2023,ADULT SOCIAL CARE,BEDE HOUSE ASSOCIATION,"1,410.00",LD LTS 18-64,DAYCARE,2103731621,1553877
03.08.2023,ADULT SOCIAL CARE,BEDE HOUSE ASSOCIATION,"1,424.00",LD LTS 18-64,DAYCARE,2103731614,1553877
03.08.2023,ADULT SOCIAL CARE,BEDE HOUSE ASSOCIATION,"1,424.00",LD LTS 18-64,DAYCARE,2103731615,1553877
03.08.2023,ADULT SOCIAL CARE,BEDE HOUSE ASSOCIATION,"1,635.00",LD LTS 18-64,DAYCARE,2103731619,1553877
03.08.2023,ADULT SOCIAL CARE,BEDE HOUSE ASSOCIATION,"1,696.00",LD LTS 18-64,DAYCARE,2103731622,1553877
03.08.2023,ADULT SOCIAL CARE,BEDE HOUSE ASSOCIATION,"2,709.00",LD LTS 18-64,DAYCARE,2103731616,1553877
03.08.2023,ADULT SOCIAL CARE,BEDE HOUSE ASSOCIATION,"2,979.00",LD LTS 18-64,DAYCARE,2103731617,1553877
03.08.2023,ADULT SOCIAL CARE,BEDE HOUSE ASSOCIATION,"3,750.00",LD LTS 18-64,DAYCARE,2103731618,1553877
03.08.2023,ADULT SOCIAL CARE,REDACTED PERSONAL DATA,854.88,LD LTS 18-64,PAYMENTS TO CLIENTS (DIRECT PAYMENTS),REDACTED,REDACTED
03.08.2023,ADULT SOCIAL CARE,CONTACT PROFESSIONALS,"1,482.00",LD LTS 18-64,SUPPORTED LIVING,2103731549,1000057263
03.08.2023,ADULT SOCIAL CARE,PHEBDAN HEALTHCARE SERVICES LIMITED,"2,112.00",LD LTS 18-64 AAD,SUPPORTED LIVING,2103731550,1000087033
03.08.2023,ADULT SOCIAL CARE,LAMBETH CHINESE COMMUNITY ASSOCIATION,532,MH LTS 18-64,SUPPORTED LIVING,2103731649,11117038
03.08.2023,ADULT SOCIAL CARE,UNIQUE PERSONNEL (UK) LTD,990,PHY LTS 18-64,HOMECARE - C&V,2103731542,1000075451
03.08.2023,ADULT SOCIAL CARE,SAGECARE LTD,891.74,PHY LTS 18-64,HOMECARE - C&V,2103731646,1000080924
03.08.2023,ADULT SOCIAL CARE,SAGECARE LTD,930.12,PHY LTS 18-64,HOMECARE - C&V,2103731640,1000080924
03.08.2023,ADULT SOCIAL CARE,ZOT LTD,260,PHY LTS 65+,CLIENT TRANSPORT,2103731544,1000082848
03.08.2023,ADULT SOCIAL CARE,UNIQUE PERSONNEL (UK) LTD,"2,861.44",PHY LTS 65+,HOMECARE - C&V,2103731543,1000075451
03.08.2023,ADULT SOCIAL CARE,SAGECARE LTD,398.8,PHY LTS 65+,HOMECARE - C&V,2103731644,1000080924
03.08.2023,ADULT SOCIAL CARE,SAGECARE LTD,579.16,PHY LTS 65+,HOMECARE - C&V,2103731643,1000080924
03.08.2023,ADULT SOCIAL CARE,SAGECARE LTD,589,PHY LTS 65+,HOMECARE - C&V,2103731631,1000080924
03.08.2023,ADULT SOCIAL CARE,SAGECARE LTD,589.21,PHY LTS 65+,HOMECARE - C&V,2103731634,1000080924
03.08.2023,ADULT SOCIAL CARE,SAGECARE LTD,617.5,PHY LTS 65+,HOMECARE - C&V,2103731637,1000080924
03.08.2023,ADULT SOCIAL CARE,SAGECARE LTD,626.28,PHY LTS 65+,HOMECARE - C&V,2103731625,1000080924
03.08.2023,ADULT SOCIAL CARE,SAGECARE LTD,634.87,PHY LTS 65+,HOMECARE - C&V,2103731630,1000080924
03.08.2023,ADULT SOCIAL CARE,SAGECARE LTD,650.07,PHY LTS 65+,HOMECARE - C&V,2103731639,1000080924
03.08.2023,ADULT SOCIAL CARE,SAGECARE LTD,667.64,PHY LTS 65+,HOMECARE - C&V,2103731641,1000080924
03.08.2023,ADULT SOCIAL CARE,SAGECARE LTD,698.73,PHY LTS 65+,HOMECARE - C&V,2103731633,1000080924
03.08.2023,ADULT SOCIAL CARE,SAGECARE LTD,707.72,PHY LTS 65+,HOMECARE - C&V,2103731636,1000080924
03.08.2023,ADULT SOCIAL CARE,SAGECARE LTD,929.61,PHY LTS 65+,HOMECARE - C&V,2103731645,1000080924
03.08.2023,ADULT SOCIAL CARE,SAGECARE LTD,968.48,PHY LTS 65+,HOMECARE - C&V,2103731648,1000080924
03.08.2023,ADULT SOCIAL CARE,SAGECARE LTD,"2,390.73",PHY LTS 65+,HOMECARE - C&V,2103731642,1000080924
03.08.2023,ADULT SOCIAL CARE,SAGECARE LTD,"2,692.05",PHY LTS 65+,HOMECARE - C&V,2103731629,1000080924
03.08.2023,ADULT SOCIAL CARE,SAGECARE LTD,521.07,PHY STS 65+,HOMECARE - IC,2103731628,1000080924
03.08.2023,ADULT SOCIAL CARE,CITY MEDICAL UK LTD,525,SAFEGUARDING & DOLS,EXTERNAL AGENCIES AND BODIES,5902592366,1000082396
03.08.2023,ADULT SOCIAL CARE,MEDACS HOMECARE,346,SPECIALIST CARE,SECTION 17 PAYMENTS TO AGENCIES/CARERS,2103731575,11287415
03.08.2023,ADULT SOCIAL CARE,CONTACT PROFESSIONALS,269.78,SPECIALIST CARE,SECTION 17 PAYMENTS TO AGENCIES/CARERS,2103731576,1000057263
03.08.2023,ADULT SOCIAL CARE,ACHIEVERS CARE SOLUTIONS LIMITED,"1,360.00",SPECIALIST CARE,SECTION 17 PAYMENTS TO AGENCIES/CARERS,2103731577,1000086268
03.08.2023,ADULT SOCIAL CARE,ACHIEVERS CARE SOLUTIONS LIMITED,"1,500.00",SPECIALIST CARE,SECTION 17 PAYMENTS TO AGENCIES/CARERS,2103731578,1000086268
03.08.2023,ADULT SOCIAL CARE,ACHIEVERS CARE SOLUTIONS LIMITED,"1,740.00",SPECIALIST CARE,SECTION 17 PAYMENTS TO AGENCIES/CARERS,2103731579,1000086268
03.08.2023,ADULT SOCIAL CARE,STREETSCENE ADDICTION RECOVERY LTD,"3,640.00",SUB LTS 18-64,RESIDENTIAL CARE,2103731540,11221787
03.08.2023,ASSET MANAGEMENT,ALEXANDER MILLS CONSULTING LTD,"9,450.00",BUILDING SAFETY PROGRAMME,CONSULTANTS SERVICES,5902592136,1000088721
03.08.2023,ASSET MANAGEMENT,ALEXANDER MILLS CONSULTING LTD,"9,900.00",BUILDING SAFETY PROGRAMME,CONSULTANTS SERVICES,5902592133,1000088721
03.08.2023,ASSET MANAGEMENT,KNK BUILDING SERVICES LTD,"1,724.01",DISREPAIR,BUILDING R&M,2103731395,3000001728
03.08.2023,ASSET MANAGEMENT,KNK BUILDING SERVICES LTD,"2,116.34",DISREPAIR,BUILDING R&M,2103731396,3000001728
03.08.2023,ASSET MANAGEMENT,ARMINA LTD,"1,378.07",DISREPAIR,BUILDING R&M,2103731280,3000002121
03.08.2023,ASSET MANAGEMENT,ARMINA LTD,"1,461.03",DISREPAIR,BUILDING R&M,2103731281,3000002121
03.08.2023,ASSET MANAGEMENT,BSI STANDARDS LIMITED,"2,387.00",ENG CONTRACTS,SUBSCRIPTIONS,5902591693,1000090056
03.08.2023,ASSET MANAGEMENT,POTTER RAPER LTD,422.5,INVESTMENT MANAGER,PROFESSIONAL FEES,5902592137,1009369
03.08.2023,ASSET MANAGEMENT,CALFORD SEADEN LLP,360,MAJOR REPAIRS,BUILDING R&M,5902592251,1061592
03.08.2023,ASSET MANAGEMENT,C&C BUILDERS LTD,"3,546.00",MAJOR REPAIRS,BUILDING R&M,2103731656,3000001986
03.08.2023,ASSET MANAGEMENT,C&C BUILDERS LTD,"37,839.08",MAJOR REPAIRS,BUILDING R&M,2103731655,3000001986
03.08.2023,CENTRAL FUNCTIONS,MORGAN SINDALL PROPERTY SERVICES LTD,"10,795.34",GAINS/LOSSES I & E,PROFESSIONAL FEES,5902592325,1000089196
03.08.2023,CHIEF EXECUTIVE,THREE XINJIANG HEAD LTD,"3,264.70",CAPITAL PS (REGEN),CAPITAL GRANTS,5902592220,1000089026
03.08.2023,CHIEF EXECUTIVE,STANDAGE & CO LTD,"7,183.20",CAPITAL PS (REGEN),CONSTRUCTION FEES  - EXTERNAL,5902592221,11223389
03.08.2023,CHIEF EXECUTIVE'S OFFICE,J C CONSULTANT SERVICES LTD,"1,200.00",CHIEF EXECUTIVE'S OFFICE,EXTERNAL AGENCIES AND BODIES,5902591940,1000042476
03.08.2023,CHILDREN AND FAMILIES,REDACTED PERSONAL DATA,"2,515.44",ADOPTION ALLOWANCES,PAYMENTS TO CARERS,REDACTED,REDACTED
03.08.2023,CHILDREN AND FAMILIES,PLAY TOGETHER LIMITED,"1,880.00",ADOPTION SUPP FUND 2,EXTERNAL AGENCIES AND BODIES,5902591151,1000085787
03.08.2023,CHILDREN AND FAMILIES,PLACEMENT SUPPORT LTD,480,ADOPTION SUPP FUND 3,EXTERNAL AGENCIES AND BODIES,5902591397,1000085153
03.08.2023,CHILDREN AND FAMILIES,PLACEMENT SUPPORT LTD,500,ADOPTION SUPP FUND 3,EXTERNAL AGENCIES AND BODIES,5902591395,1000085153
03.08.2023,CHILDREN AND FAMILIES,REDACTED PERSONAL DATA,"1,140.00",ADOPTION SUPP FUND 3,EXTERNAL AGENCIES AND BODIES,REDACTED,REDACTED
03.08.2023,CHILDREN AND FAMILIES,HOLIBROOK HOUSE LTD,"7,542.86",CHILDREN�S RESID,RESIDENTIAL CARE,2103731574,1000067873
03.08.2023,CHILDREN AND FAMILIES,AEGIS 24/7 LTD,"61,955.05",CHILDREN�S RESID,RESIDENTIAL CARE,2103731569,1000089533
03.08.2023,CHILDREN AND FAMILIES,REDACTED PERSONAL DATA,287.86,FOSTERING ALLOWANCES,PAYMENTS TO CARERS,REDACTED,REDACTED
03.08.2023,CHILDREN AND FAMILIES,REDACTED PERSONAL DATA,287.85,FOSTERING ALLOWANCES,PAYMENTS TO CARERS,REDACTED,REDACTED
03.08.2023,CHILDREN AND FAMILIES,REDACTED PERSONAL DATA,"2,010.86",FOSTERING ALLOWANCES,PAYMENTS TO CARERS,REDACTED,REDACTED
03.08.2023,CHILDREN AND FAMILIES,KASPER FOSTERING,"3,513.23",FRIENDS & FAMILY FOSTERING,EXTERNAL AGENCIES AND BODIES,2103731580,1000036628
03.08.2023,CHILDREN AND FAMILIES,KASPER FOSTERING,"4,640.39",FRIENDS & FAMILY FOSTERING,EXTERNAL AGENCIES AND BODIES,2103731585,1000036628
03.08.2023,CHILDREN AND FAMILIES,BY THE BRIDGE LTD,"4,440.44",FRIENDS & FAMILY FOSTERING,EXTERNAL AGENCIES AND BODIES,2103731589,1000043961
03.08.2023,CHILDREN AND FAMILIES,BY THE BRIDGE LTD,"4,903.58",FRIENDS & FAMILY FOSTERING,EXTERNAL AGENCIES AND BODIES,2103731595,1000043961
03.08.2023,CHILDREN AND FAMILIES,FAMILY FOSTERING LTD,"4,601.64",FRIENDS & FAMILY FOSTERING,EXTERNAL AGENCIES AND BODIES,2103731586,1000075179
03.08.2023,CHILDREN AND FAMILIES,RAINBOW FOSTERING SERVICES LTD,"3,963.57",FRIENDS & FAMILY FOSTERING,EXTERNAL AGENCIES AND BODIES,2103731582,1000076620
03.08.2023,CHILDREN AND FAMILIES,RAINBOW FOSTERING SERVICES LTD,"6,200.00",FRIENDS & FAMILY FOSTERING,EXTERNAL AGENCIES AND BODIES,2103731584,1000076620
03.08.2023,CHILDREN AND FAMILIES,LIKA FAMILY FOSTERING,"3,996.78",FRIENDS & FAMILY FOSTERING,EXTERNAL AGENCIES AND BODIES,2103731581,1000080099
03.08.2023,CHILDREN AND FAMILIES,LIKA FAMILY FOSTERING,"4,207.14",FRIENDS & FAMILY FOSTERING,EXTERNAL AGENCIES AND BODIES,2103731593,1000080099
03.08.2023,CHILDREN AND FAMILIES,DIVERSITY FOSTER CARE LTD,"4,108.69",FRIENDS & FAMILY FOSTERING,EXTERNAL AGENCIES AND BODIES,2103731592,1000081399
03.08.2023,CHILDREN AND FAMILIES,FAMILY WORKS FOSTERING LTD,"4,605.67",FRIENDS & FAMILY FOSTERING,EXTERNAL AGENCIES AND BODIES,2103731594,1000082529
03.08.2023,CHILDREN AND FAMILIES,FAMILY WORKS FOSTERING LTD,"5,385.90",FRIENDS & FAMILY FOSTERING,EXTERNAL AGENCIES AND BODIES,2103731587,1000082529
03.08.2023,CHILDREN AND FAMILIES,CARING HEARTS FOSTERING,"3,542.99",FRIENDS & FAMILY FOSTERING,EXTERNAL AGENCIES AND BODIES,2103731588,1000087065
03.08.2023,CHILDREN AND FAMILIES,CARING HEARTS FOSTERING,"3,542.99",FRIENDS & FAMILY FOSTERING,EXTERNAL AGENCIES AND BODIES,2103731591,1000087065
03.08.2023,CHILDREN AND FAMILIES,SUBARI FOSTER CARE LIMITED,"3,188.35",FRIENDS & FAMILY FOSTERING,EXTERNAL AGENCIES AND BODIES,2103731583,1000088796
03.08.2023,CHILDREN AND FAMILIES,SUBARI FOSTER CARE LIMITED,"5,757.01",FRIENDS & FAMILY FOSTERING,EXTERNAL AGENCIES AND BODIES,2103731590,1000088796
03.08.2023,CHILDREN AND FAMILIES,REDACTED PERSONAL DATA,"6,222.86",KINSHIP FOSTERING,ADDITIONAL PAYMENTS TO AGENCIES/CARERS,REDACTED,REDACTED
03.08.2023,CHILDREN AND FAMILIES,NETPEX LTD CORPORATE SERVICES,"2,091.40",SEMI-IND CARELEAVERS,EXTERNAL AGENCIES AND BODIES,2103731553,1000076073
03.08.2023,CHILDREN AND FAMILIES,NETPEX LTD CORPORATE SERVICES,"2,960.19",SEMI-IND CARELEAVERS,EXTERNAL AGENCIES AND BODIES,2103731558,1000076073
03.08.2023,CHILDREN AND FAMILIES,NETPEX LTD CORPORATE SERVICES,"6,824.34",SEMI-IND CARELEAVERS,EXTERNAL AGENCIES AND BODIES,2103731556,1000076073
03.08.2023,CHILDREN AND FAMILIES,MX ESTATES LTD,"1,534.50",SEMI-IND CARELEAVERS,EXTERNAL AGENCIES AND BODIES,2103731562,1000083639
03.08.2023,CHILDREN AND FAMILIES,DREAMFO HOUSING LTD,"3,321.34",SEMI-IND CARELEAVERS,EXTERNAL AGENCIES AND BODIES,2103731555,1000087273
03.08.2023,CHILDREN AND FAMILIES,DREAMFO HOUSING LTD,"3,587.01",SEMI-IND CARELEAVERS,EXTERNAL AGENCIES AND BODIES,2103731557,1000087273
03.08.2023,CHILDREN AND FAMILIES,DREAMFO HOUSING LTD,"3,587.01",SEMI-IND CARELEAVERS,EXTERNAL AGENCIES AND BODIES,2103731564,1000087273
03.08.2023,CHILDREN AND FAMILIES,DREAMFO HOUSING LTD,"5,978.35",SEMI-IND CARELEAVERS,EXTERNAL AGENCIES AND BODIES,2103731561,1000087273
03.08.2023,CHILDREN AND FAMILIES,SUNLITE RECRUITMENT COMPANY LIMITED,"10,280.00",SEMI-IND CARELEAVERS,OTHER PAYMENTS FOR CLIENTS,2103731554,1000089704
03.08.2023,CHILDREN AND FAMILIES,REDACTED PERSONAL DATA,850,SEMI-IND CARELEAVERS,OTHER PAYMENTS FOR CLIENTS,REDACTED,REDACTED
03.08.2023,CHILDREN AND FAMILIES,IASPIRE CARE SERVICES LTD,"1,253.57",SEMI-IND LAC 16-17,EXTERNAL AGENCIES AND BODIES,2103731602,1000081500
03.08.2023,CHILDREN AND FAMILIES,IASPIRE CARE SERVICES LTD,"4,317.86",SEMI-IND LAC 16-17,EXTERNAL AGENCIES AND BODIES,2103731603,1000081500
03.08.2023,CHILDREN AND FAMILIES,COMMITTED CARE HOUSING,"6,333.00",SEMI-IND LAC 16-17,EXTERNAL AGENCIES AND BODIES,2103731606,1000086257
03.08.2023,CHILDREN AND FAMILIES,DREAMFO HOUSING LTD,"2,082.78",SEMI-IND LAC 16-17,EXTERNAL AGENCIES AND BODIES,2103731613,1000087273
03.08.2023,CHILDREN AND FAMILIES,DREAMFO HOUSING LTD,"3,321.30",SEMI-IND LAC 16-17,EXTERNAL AGENCIES AND BODIES,2103731610,1000087273
03.08.2023,CHILDREN AND FAMILIES,DREAMFO HOUSING LTD,"3,321.30",SEMI-IND LAC 16-17,EXTERNAL AGENCIES AND BODIES,2103731612,1000087273
03.08.2023,CHILDREN AND FAMILIES,LORDGRACE DELIGHT HEALTHCARE LIMITED,"5,624.26",SEMI-IND LAC 16-17,EXTERNAL AGENCIES AND BODIES,2103731605,1000089935
03.08.2023,CHILDREN AND FAMILIES,IASPIRE CARE SERVICES LTD,265.71,SEMI-IND LAC 16-17,OTHER PAYMENTS FOR CLIENTS,2103731600,1000081500
03.08.2023,CHILDREN AND FAMILIES,DREAMFO HOUSING LTD,265.71,SEMI-IND LAC 16-17,OTHER PAYMENTS FOR CLIENTS,2103731609,1000087273
03.08.2023,CHILDREN AND FAMILIES,DREAMFO HOUSING LTD,265.71,SEMI-IND LAC 16-17,OTHER PAYMENTS FOR CLIENTS,2103731611,1000087273
03.08.2023,CHILDREN AND FAMILIES,LORDGRACE DELIGHT HEALTHCARE LIMITED,300,SEMI-IND LAC 16-17,OTHER PAYMENTS FOR CLIENTS,2103731598,1000089935
03.08.2023,CHILDREN AND FAMILIES,FLOURISH FOSTERING LTD,"4,570.02",STAYPUT- FOST CARERS,EXTERNAL AGENCIES AND BODIES,2103731563,1000084796
03.08.2023,CHILDREN AND FAMILIES,REDACTED PERSONAL DATA,"1,114.28",STAYPUT- FOST CARERS,PAYMENTS TO CARERS,REDACTED,REDACTED
03.08.2023,CHILDREN AND FAMILIES,OWNLIFE LTD,"1,905.00",UASC CARELEAVERS,EXTERNAL AGENCIES AND BODIES,2103731560,1000056219
03.08.2023,COMMUNITIES,STONEBRIDGE COMMUNITY LIVING LTD,875,NO RECOURSE TO PUBLIC FUNDS,ACCOMMODATION CHARGES,5902592315,1000088466
03.08.2023,COMMUNITIES,STONEBRIDGE COMMUNITY LIVING LTD,875,NO RECOURSE TO PUBLIC FUNDS,ACCOMMODATION CHARGES,5902592317,1000088466
03.08.2023,COMMUNITIES,STONEBRIDGE COMMUNITY LIVING LTD,875,NO RECOURSE TO PUBLIC FUNDS,ACCOMMODATION CHARGES,5902592337,1000088466
03.08.2023,COMMUNITIES,COGNITHAN LTD,"1,154.74",NO RECOURSE TO PUBLIC FUNDS,ACCOMMODATION CHARGES,5902591345,1000090046
03.08.2023,COMMUNITIES,COGNITHAN LTD,"1,347.19",NO RECOURSE TO PUBLIC FUNDS,ACCOMMODATION CHARGES,5902591354,1000090046
03.08.2023,COMMUNITIES,COGNITHAN LTD,"1,491.53",NO RECOURSE TO PUBLIC FUNDS,ACCOMMODATION CHARGES,5902591351,1000090046
03.08.2023,COMMUNITIES,COGNITHAN LTD,"1,491.53",NO RECOURSE TO PUBLIC FUNDS,ACCOMMODATION CHARGES,5902591356,1000090046
03.08.2023,COMMUNITIES,COGNITHAN LTD,"1,501.20",NO RECOURSE TO PUBLIC FUNDS,ACCOMMODATION CHARGES,5902591357,1000090046
03.08.2023,COMMUNITIES,COGNITHAN LTD,"1,501.20",NO RECOURSE TO PUBLIC FUNDS,ACCOMMODATION CHARGES,5902591400,1000090046
03.08.2023,COMMUNITIES,COGNITHAN LTD,"1,551.24",NO RECOURSE TO PUBLIC FUNDS,ACCOMMODATION CHARGES,5902591399,1000090046
03.08.2023,COMMUNITIES,COGNITHAN LTD,"1,551.24",NO RECOURSE TO PUBLIC FUNDS,ACCOMMODATION CHARGES,5902591401,1000090046
03.08.2023,COMMUNITIES,UNIQUE PERSONNEL (UK) LTD,779.68,NO RECOURSE TO PUBLIC FUNDS,HOMECARE - C&V,2103731539,1000075451
03.08.2023,COMMUNITIES,REDACTED PERSONAL DATA,350,UKRAINIAN PROGRAMME,GRANTS,REDACTED,REDACTED
03.08.2023,COMMUNITIES,REDACTED PERSONAL DATA,500,UKRAINIAN PROGRAMME,GRANTS,REDACTED,REDACTED
03.08.2023,COMMUNITIES,REDACTED PERSONAL DATA,350,UKRAINIAN PROGRAMME,GRANTS,REDACTED,REDACTED
03.08.2023,CORPORATE FACILITIES MANAGEMENT,ROYAL MAIL GROUP LTD,265.59,160 TOOLEY ST.,POSTAGES,5902591900,1000061535
03.08.2023,CORPORATE FACILITIES MANAGEMENT,ROYAL MAIL GROUP LTD,"1,800.43",160 TOOLEY ST.,POSTAGES,5902591290,1000061535
03.08.2023,CUSTOMER AND EXCHEQUER,VP-AV LTD,"3,646.00",CORONER'S,COMMS & COMPUTING CONTRACT CHARGES,5902592365,1000003888
03.08.2023,CUSTOMER AND EXCHEQUER,CHUBB FIRE & SECURITY LTD,252.76,CORONER'S,OP LEASE/HIRE CHARGES:PLANT/EQUIP/FURNIT,5902592264,11166155
03.08.2023,CUSTOMER AND EXCHEQUER,CHUBB FIRE & SECURITY LTD,383.72,CORONER'S,OP LEASE/HIRE CHARGES:PLANT/EQUIP/FURNIT,5902592262,11166155
03.08.2023,CUSTOMER AND EXCHEQUER,CHUBB FIRE & SECURITY LTD,"1,600.19",CORONER'S,OP LEASE/HIRE CHARGES:PLANT/EQUIP/FURNIT,5902592259,11166155
03.08.2023,CUSTOMER AND EXCHEQUER,CIVICA UK LTD,900,CORONER'S,PROFESSIONAL FEES,5902592211,1730625
03.08.2023,CUSTOMER AND EXCHEQUER,PROFESSOR  S AL-SARRAJ,"3,080.00",CORONER'S,PROFESSIONAL FEES,5902592233,1000043051
03.08.2023,CUSTOMER AND EXCHEQUER,IMPERIAL COLLEGE PROJECTS LTD,263,CORONER'S,PROFESSIONAL FEES,5902592155,1000080106
03.08.2023,CUSTOMER AND EXCHEQUER,IMPERIAL COLLEGE PROJECTS LTD,310,CORONER'S,PROFESSIONAL FEES,5902592154,1000080106
03.08.2023,CUSTOMER AND EXCHEQUER,IMPERIAL COLLEGE PROJECTS LTD,365,CORONER'S,PROFESSIONAL FEES,5902592159,1000080106
03.08.2023,CUSTOMER AND EXCHEQUER,IMPERIAL COLLEGE PROJECTS LTD,365,CORONER'S,PROFESSIONAL FEES,5902592160,1000080106
03.08.2023,CUSTOMER AND EXCHEQUER,IMPERIAL COLLEGE PROJECTS LTD,387,CORONER'S,PROFESSIONAL FEES,5902592168,1000080106
03.08.2023,CUSTOMER AND EXCHEQUER,IMPERIAL COLLEGE PROJECTS LTD,412,CORONER'S,PROFESSIONAL FEES,5902592143,1000080106
03.08.2023,CUSTOMER AND EXCHEQUER,IMPERIAL COLLEGE PROJECTS LTD,412,CORONER'S,PROFESSIONAL FEES,5902592144,1000080106
03.08.2023,CUSTOMER AND EXCHEQUER,RGM CONSULTING LTD,"2,100.00",CORONER'S,PROFESSIONAL FEES,5902591990,1000090065
03.08.2023,CUSTOMER EXPERIENCE,CORAM VOICE,330.04,COMPLAINTS,EXTERNAL AGENCIES AND BODIES,5902592246,1000076392
03.08.2023,CUSTOMER EXPERIENCE,CORAM VOICE,562.15,COMPLAINTS,EXTERNAL AGENCIES AND BODIES,5902592248,1000076392
03.08.2023,CUSTOMER EXPERIENCE,CORAM VOICE,980.5,COMPLAINTS,EXTERNAL AGENCIES AND BODIES,5902592249,1000076392
03.08.2023,DIGITAL AND TECHNOLOGY,KEYSTREAM GROUP LIMITED,"3,025.00",APPLICATIONS,AGENCY STAFF,5902592351,1000089467
03.08.2023,DIGITAL AND TECHNOLOGY,VENN GROUP LTD,"9,900.00",IT MANAGEMENT,AGENCY STAFF,5902592355,1000033315
03.08.2023,EDUCATION,STACEY BURMAN,"3,300.00",SACRE,CONSULTANTS SERVICES,5902592219,1000090070
03.08.2023,EDUCATION,RESTORE DATASHRED,"1,125.00",SCH CLOSURE & REORGS,MISCELLANEOUS RECHARGES,5902591862,1000080603
03.08.2023,ENV & LEIS,KENT COUNTY COUNCIL - LASER,"4,208.51",SANDGATE STREET,GAS,5902592297,1000012926
03.08.2023,ENVIRONMENT AND LEISURE,LASER SURVEYS LIMITED,"1,050.00",CAPITAL PS (LEISURE),CONSTR'N SUB CONTRACT - NON CERTIFICATED,5902592312,1000051587
03.08.2023,ENVIRONMENT AND LEISURE,F M CONWAY LTD,"1,263.60",CAPITAL PS (LEISURE),CONSTRUCTION,2103731435,4001384
03.08.2023,ENVIRONMENT AND LEISURE,F M CONWAY LTD,"2,652.46",CAPITAL PS (LEISURE),CONSTRUCTION,2103731654,4001384
03.08.2023,ENVIRONMENT AND LEISURE,F M CONWAY LTD,"2,920.54",CAPITAL PS (LEISURE),CONSTRUCTION,2103731436,4001384
03.08.2023,ENVIRONMENT AND LEISURE,F M CONWAY LTD,"4,983.39",CAPITAL PS (LEISURE),CONSTRUCTION,2103731432,4001384
03.08.2023,ENVIRONMENT AND LEISURE,F M CONWAY LTD,"5,346.00",CAPITAL PS (LEISURE),CONSTRUCTION,2103731433,4001384
03.08.2023,ENVIRONMENT AND LEISURE,F M CONWAY LTD,"41,273.80",CAPITAL PS (LEISURE),CONSTRUCTION,2103731408,4001384
03.08.2023,ENVIRONMENT AND LEISURE,F M CONWAY LTD,"850,000.00",CAPITAL PS (LEISURE),CONSTRUCTION,2103727312,4001384
03.08.2023,ENVIRONMENT AND LEISURE,PARKING PERSPECTIVES LIMITED,"1,595.00",CAPITAL PS (LEISURE),CONSTRUCTION,5902591501,1000089276
03.08.2023,ENVIRONMENT AND LEISURE,F M CONWAY LTD,"2,760.00",CAPITAL PS (LEISURE),CONSTRUCTION FEES,2103731527,4001384
03.08.2023,ENVIRONMENT AND LEISURE,BREEZE LANDSCAPE ARCHITECTS LTD,"2,092.00",CAPITAL PS (LEISURE),CONSTRUCTION FEES - ARCHITECT,5902592281,1000078053
03.08.2023,ENVIRONMENT AND LEISURE,BREEZE LANDSCAPE ARCHITECTS LTD,"4,420.00",CAPITAL PS (LEISURE),CONSTRUCTION FEES - ARCHITECT,5902592328,1000078053
03.08.2023,ENVIRONMENT AND LEISURE,REACTIVE CONTRACTS LIMITED,"10,000.00",CAPITAL PS (LEISURE),CONSTRUCTION MAIN CONTRACT -CERTIFICATED,5902592304,1000088452
03.08.2023,ENVIRONMENT AND LEISURE,D-TECH INTERNATIONAL LTD,"21,140.00",CAPITAL PS (LEISURE),"PLANT, MACHINERY & EQUIPMENT ACQUISITION",5902591987,1000088220
03.08.2023,ENVIRONMENT DIRECTORATE,TRANSPORT FOR LONDON,"11,220.00",COMMERCIAL VEH CTRL A/C,CONGESTION CHARGE,5902591897,1000023986
03.08.2023,ENVIRONMENT DIRECTORATE,C L ROADMARKINGS LTD,"30,982.13",ENGINEERING CRAFTS,OTHER CONTRACTORS,2103731708,3000000825
03.08.2023,ENVIRONMENT DIRECTORATE,NPOWER LTD,283.79,STREET TRADING A/C,ELECTRICITY,5902592336,1000078994
03.08.2023,ENVIRONMENT DIRECTORATE,NPOWER LTD,333.18,STREET TRADING A/C,ELECTRICITY,5902592360,1000078994
03.08.2023,ENVIRONMENT DIRECTORATE,NPOWER LTD,704.68,STREET TRADING A/C,ELECTRICITY,5902592339,1000078994
03.08.2023,ENVIRONMENT DIRECTORATE,NPOWER LTD,"1,158.30",STREET TRADING A/C,ELECTRICITY,5902592330,1000078994
03.08.2023,HOUSING,THAMES VALLEY CONTROLS LTD,"5,876.00",THAMES VALLEY CONTROL,I-WORLD CONTRACTORS HOLDING ACCOUNT,5902592331,1295718
03.08.2023,HOUSING,THAMES VALLEY CONTROLS LTD,"26,229.00",THAMES VALLEY CONTROL,I-WORLD CONTRACTORS HOLDING ACCOUNT,5902592329,1295718
03.08.2023,HOUSING GENERAL FUND,KEYSTREAM GROUP LIMITED,"1,540.00",CAPITAL PS (STRAT SERV),ICT ACQUISITION,5902592356,1000089467
03.08.2023,HOUSING GENERAL FUND,KEYSTREAM GROUP LIMITED,"2,175.00",CAPITAL PS (STRAT SERV),ICT ACQUISITION,5902592349,1000089467
03.08.2023,HOUSING GENERAL FUND,KEYSTREAM GROUP LIMITED,"2,675.00",CAPITAL PS (STRAT SERV),ICT ACQUISITION,5902592353,1000089467
03.08.2023,HOUSING GENERAL FUND,KEYSTREAM GROUP LIMITED,"2,925.00",CAPITAL PS (STRAT SERV),ICT ACQUISITION,5902592357,1000089467
03.08.2023,HOUSING HRA,POTTER RAPER LTD,"2,399.21",CAPITAL PS (HRA),CONSTRUCTION FEES  - EXTERNAL,5902592225,1009369
03.08.2023,HOUSING HRA,POTTER RAPER LTD,"2,782.32",CAPITAL PS (HRA),CONSTRUCTION FEES  - EXTERNAL,5902592215,1009369
03.08.2023,HOUSING HRA,POTTER RAPER LTD,"4,818.42",CAPITAL PS (HRA),CONSTRUCTION FEES  - EXTERNAL,5902592215,1009369
03.08.2023,HOUSING HRA,BUILDING ASSOCIATES LTD,"200,562.25",CAPITAL PS (HRA),CONSTRUCTION MAIN CONTRACT,2103727250,3000002218
03.08.2023,HOUSING HRA,A & E ELKINS LTD,"308,710.19",CAPITAL PS (HRA),CONSTRUCTION MAIN CONTRACT -CERTIFICATED,2103731434,4012501
03.08.2023,HOUSING HRA,NIBLOCK (BUILDERS) LTD,"205,410.47",CAPITAL PS (HRA),CONSTRUCTION MAIN CONTRACT -CERTIFICATED,2103731707,3000000235
03.08.2023,HOUSING HRA,COMMISSION AIR LTD/TIME LAPSE UK,534,CAPITAL PS (HRA),CONSTRUCTION SITE COSTS,5902591876,1000090051
03.08.2023,HOUSING HRA,ARCHIO LTD,"1,558.00",CAPITAL PS (HRA),PLANNING & S106 FEES,5902592367,1000086130
03.08.2023,HOUSING HRA,STANNAH LIFT SERVICES LTD,"7,463.00",CAPITAL PS (HRA),UTILITIES INSTALLATION,5902592294,1063595
03.08.2023,HUMAN RESOURCES,COMENSURA LTD,"3,720.28",WEEKLY PAYMENTS,AGENCY STAFF,5902592338,1000051261
03.08.2023,LEISURE DIRECTORATE,EDF ENERGY PLC,"-1,906.53",CEMETERIES,ELECTRICITY,5902591878,1008746
03.08.2023,LEISURE DIRECTORATE,EDF ENERGY PLC,"-1,843.21",CEMETERIES,ELECTRICITY,5902591881,1008746
03.08.2023,LEISURE DIRECTORATE,EDF ENERGY PLC,"-1,457.09",CEMETERIES,ELECTRICITY,5902591878,1008746
03.08.2023,LEISURE DIRECTORATE,EDF ENERGY PLC,"-1,073.10",CEMETERIES,ELECTRICITY,5902591881,1008746
03.08.2023,LEISURE DIRECTORATE,EDF ENERGY PLC,"1,456.77",CEMETERIES,ELECTRICITY,5902591821,1008746
03.08.2023,LEISURE DIRECTORATE,QUADRON SERVICES LIMITED,267.45,COMMUNITY SPORTS DEVELOPMENT,GROUNDS MAINTENANCE,5902592245,1000066528
03.08.2023,LEISURE DIRECTORATE,CIA FIRE & SECURITY LTD,"2,500.00",COMMUNITY SPORTS DEVELOPMENT,OTHER R&M,5902591609,1000086252
03.08.2023,LEISURE DIRECTORATE,CIA FIRE & SECURITY LTD,"2,500.00",COMMUNITY SPORTS DEVELOPMENT,OTHER R&M,5902591613,1000086252
03.08.2023,LEISURE DIRECTORATE,RANDALL SHAW BILLINGHAM LTD,462,COMMUNITY SPORTS DEVELOPMENT,PROFESSIONAL FEES,5902592324,1000057014
03.08.2023,LEISURE DIRECTORATE,RANDALL SHAW BILLINGHAM LTD,"3,272.83",COMMUNITY SPORTS DEVELOPMENT,PROFESSIONAL FEES,5902592324,1000057014
03.08.2023,LEISURE DIRECTORATE,THE STOCKROOM ARCHIVE MANAGEMENT LTD,"13,770.75",HERITAGE,INFORMATION MANAGEMENT,5902591644,1000079579
03.08.2023,LEISURE DIRECTORATE,ASKEWS & HOLTS LIBRARY SERVICES LTD,367.32,STOCK SERVICES,BOOKS & PUBLICATIONS,5902591774,1494168
03.08.2023,LEISURE DIRECTORATE,ASKEWS & HOLTS LIBRARY SERVICES LTD,"13,525.12",STOCK SERVICES,BOOKS & PUBLICATIONS,5902591775,1494168
03.08.2023,PLANNING & GROWTH,KENT COUNTY COUNCIL - LASER,"2,317.14",TOWER WORKSHOPS,ELECTRICITY,5902592247,1000012926
03.08.2023,PROFESSIONAL FINANCE SERVICES,REDACTIVE EVENTS LTD,"5,305.00",CENTRAL COSTS,TRAINING,5902592345,1000063307
03.08.2023,PROFESSIONAL FINANCE SERVICES,CIPFA,480,CIPFA TRAINEES,TRAINING,5902592289,1000000196
03.08.2023,PROFESSIONAL FINANCE SERVICES,CIPFA,480,CIPFA TRAINEES,TRAINING,5902592291,1000000196
03.08.2023,PROFESSIONAL FINANCE SERVICES,CIPFA,480,CIPFA TRAINEES,TRAINING,5902592295,1000000196
03.08.2023,PROFESSIONAL FINANCE SERVICES,CIPFA,"2,310.00",CIPFA TRAINEES,TRAINING,5902592308,1000000196
03.08.2023,RESIDENT SERVICES,EDF ENERGY PLC,609.34,BERMONDSEY,ELECTRICITY,5902591921,1008746
03.08.2023,RESIDENT SERVICES,FALCO UK LTD,"9,098.00",GREAT ESTATES,OTHER R&M,2103731526,3000002205
03.08.2023,RESIDENT SERVICES,EDF ENERGY PLC,"3,142.84",OPERATIONS/OFFICES ACCOMMODATION,ELECTRICITY,5902591947,1008746
03.08.2023,RESIDENT SERVICES,HEMIKO LIMITED,"-1,983.93",PRIVATE SERVICE CHARGES,SERVICE CHARGES,5902592234,1000081494
03.08.2023,RESIDENT SERVICES,HEMIKO LIMITED,"9,432.36",PRIVATE SERVICE CHARGES,SERVICE CHARGES,5902592229,1000081494
03.08.2023,RESIDENT SERVICES,HEMIKO LIMITED,"14,481.70",PRIVATE SERVICE CHARGES,SERVICE CHARGES,5902592230,1000081494
03.08.2023,RESIDENT SERVICES,OBASEKI & CO LTD,"2,000.00",TA ESTATE VOIDS,PAYMENTS FOR LEGAL SERVICES,2103730668,1000090061
03.08.2023,RESIDENT SERVICES HGF,SMARTLET ESTATES LTD,"4,500.00",HOMELESS PROJECTS,GRANTS,5902592364,1000086913
03.08.2023,RESIDENT SERVICES HGF,STONE HOUSING ESTATES LTD,"2,381.94",HOMELESS PROJECTS,GRANTS,5902592218,1000089868
03.08.2023,RESIDENT SERVICES HGF,EDF ENERGY PLC,"1,372.60",JOE RICHARDS HOSTEL,ELECTRICITY,5902591923,1008746
03.08.2023,RESIDENT SERVICES HGF,MAIER LANG LIMITED,"38,685.40",NIGHTLY TA (NSC),EXTERNAL AGENCIES AND BODIES,5902592314,1000084930
03.08.2023,RESIDENT SERVICES HGF,CIRCA HOMES LTD,"2,780.93",PSL PLACEMENTS,EXTERNAL AGENCIES AND BODIES,5902592309,1000083021
03.08.2023,RESIDENT SERVICES HGF,SOUTH THAMES HOUSING LTD,"2,750.79",PSL PLACEMENTS,EXTERNAL AGENCIES AND BODIES,5902592299,1000084224
03.08.2023,STRATEGIC FINANCE,POTTERS FIELDS PARK MANAGEMENT TRUST,"18,747.74",POTTERS FIELD PROJECT COSTS,SERVICE CHARGES,2103731446,1000053530
04.08.2023,ADULT SOCIAL CARE,WINDSOR WALK HOUSING ASSOCIATION,"5,967.00",APPOINTEESHIPS,OTHER PAYMENTS FOR CLIENTS,2103732232,1012653
04.08.2023,ADULT SOCIAL CARE,WOODHAM ENTERPRISES LTD,"1,750.00",APPOINTEESHIPS,OTHER PAYMENTS FOR CLIENTS,2103732231,1000044522
04.08.2023,ADULT SOCIAL CARE,HINDWOODS LTD,350,APPOINTEESHIPS,OTHER PAYMENTS FOR CLIENTS,2103732226,1000044989
04.08.2023,ADULT SOCIAL CARE,HINDWOODS LTD,350,APPOINTEESHIPS,OTHER PAYMENTS FOR CLIENTS,2103732227,1000044989
04.08.2023,ADULT SOCIAL CARE,HINDWOODS LTD,425,APPOINTEESHIPS,OTHER PAYMENTS FOR CLIENTS,2103732228,1000044989
04.08.2023,ADULT SOCIAL CARE,HINDWOODS LTD,425,APPOINTEESHIPS,OTHER PAYMENTS FOR CLIENTS,2103732229,1000044989
04.08.2023,ADULT SOCIAL CARE,HINDWOODS LTD,425,APPOINTEESHIPS,OTHER PAYMENTS FOR CLIENTS,2103732230,1000044989
04.08.2023,ADULT SOCIAL CARE,INSIGHT SPECIALIST BEHAVIOURAL SERVICE LTD,300,APPOINTEESHIPS,OTHER PAYMENTS FOR CLIENTS,2103732233,1000071858
04.08.2023,ADULT SOCIAL CARE,ALTERNATIVE PLANNING COMPANY LIMITED,"22,000.00",APPOINTEESHIPS,OTHER PAYMENTS FOR CLIENTS,2103728806,1000089955
04.08.2023,ADULT SOCIAL CARE,REDACTED PERSONAL DATA,400,APPOINTEESHIPS,OTHER PAYMENTS FOR CLIENTS,REDACTED,REDACTED
04.08.2023,ADULT SOCIAL CARE,REDACTED PERSONAL DATA,397.2,APPOINTEESHIPS,OTHER PAYMENTS FOR CLIENTS,REDACTED,REDACTED
04.08.2023,ADULT SOCIAL CARE,NATIONAL FOSTERING AGENCY LTD,"5,965.02",DISABILITIES LAC,EXTERNAL AGENCIES AND BODIES,2103731755,1000038868
04.08.2023,ADULT SOCIAL CARE,BEDE HOUSE ASSOCIATION,300,LD LTS 18-64,DAYCARE,2103732161,1553877
04.08.2023,ADULT SOCIAL CARE,BEDE HOUSE ASSOCIATION,300,LD LTS 18-64,DAYCARE,2103732162,1553877
04.08.2023,ADULT SOCIAL CARE,BEDE HOUSE ASSOCIATION,300,LD LTS 18-64,DAYCARE,2103732170,1553877
04.08.2023,ADULT SOCIAL CARE,BEDE HOUSE ASSOCIATION,300,LD LTS 18-64,DAYCARE,2103732186,1553877
04.08.2023,ADULT SOCIAL CARE,BEDE HOUSE ASSOCIATION,300,LD LTS 18-64,DAYCARE,2103732187,1553877
04.08.2023,ADULT SOCIAL CARE,BEDE HOUSE ASSOCIATION,300,LD LTS 18-64,DAYCARE,2103732207,1553877
04.08.2023,ADULT SOCIAL CARE,BEDE HOUSE ASSOCIATION,390,LD LTS 18-64,DAYCARE,2103732180,1553877
04.08.2023,ADULT SOCIAL CARE,BEDE HOUSE ASSOCIATION,420,LD LTS 18-64,DAYCARE,2103732160,1553877
04.08.2023,ADULT SOCIAL CARE,BEDE HOUSE ASSOCIATION,436,LD LTS 18-64,DAYCARE,2103732199,1553877
04.08.2023,ADULT SOCIAL CARE,BEDE HOUSE ASSOCIATION,600,LD LTS 18-64,DAYCARE,2103732153,1553877
04.08.2023,ADULT SOCIAL CARE,BEDE HOUSE ASSOCIATION,600,LD LTS 18-64,DAYCARE,2103732155,1553877
04.08.2023,ADULT SOCIAL CARE,BEDE HOUSE ASSOCIATION,600,LD LTS 18-64,DAYCARE,2103732173,1553877
04.08.2023,ADULT SOCIAL CARE,BEDE HOUSE ASSOCIATION,600,LD LTS 18-64,DAYCARE,2103732174,1553877
04.08.2023,ADULT SOCIAL CARE,BEDE HOUSE ASSOCIATION,600,LD LTS 18-64,DAYCARE,2103732177,1553877
04.08.2023,ADULT SOCIAL CARE,BEDE HOUSE ASSOCIATION,600,LD LTS 18-64,DAYCARE,2103732181,1553877
04.08.2023,ADULT SOCIAL CARE,BEDE HOUSE ASSOCIATION,600,LD LTS 18-64,DAYCARE,2103732183,1553877
04.08.2023,ADULT SOCIAL CARE,BEDE HOUSE ASSOCIATION,600,LD LTS 18-64,DAYCARE,2103732203,1553877
04.08.2023,ADULT SOCIAL CARE,BEDE HOUSE ASSOCIATION,712,LD LTS 18-64,DAYCARE,2103732157,1553877
04.08.2023,ADULT SOCIAL CARE,BEDE HOUSE ASSOCIATION,738.4,LD LTS 18-64,DAYCARE,2103732191,1553877
04.08.2023,ADULT SOCIAL CARE,BEDE HOUSE ASSOCIATION,760,LD LTS 18-64,DAYCARE,2103732194,1553877
04.08.2023,ADULT SOCIAL CARE,BEDE HOUSE ASSOCIATION,768,LD LTS 18-64,DAYCARE,2103732192,1553877
04.08.2023,ADULT SOCIAL CARE,BEDE HOUSE ASSOCIATION,780,LD LTS 18-64,DAYCARE,2103732184,1553877
04.08.2023,ADULT SOCIAL CARE,BEDE HOUSE ASSOCIATION,792,LD LTS 18-64,DAYCARE,2103732210,1553877
04.08.2023,ADULT SOCIAL CARE,BEDE HOUSE ASSOCIATION,832,LD LTS 18-64,DAYCARE,2103732193,1553877
04.08.2023,ADULT SOCIAL CARE,BEDE HOUSE ASSOCIATION,840,LD LTS 18-64,DAYCARE,2103732175,1553877
04.08.2023,ADULT SOCIAL CARE,BEDE HOUSE ASSOCIATION,900,LD LTS 18-64,DAYCARE,2103732156,1553877
04.08.2023,ADULT SOCIAL CARE,BEDE HOUSE ASSOCIATION,900,LD LTS 18-64,DAYCARE,2103732182,1553877
04.08.2023,ADULT SOCIAL CARE,BEDE HOUSE ASSOCIATION,900,LD LTS 18-64,DAYCARE,2103732190,1553877
04.08.2023,ADULT SOCIAL CARE,BEDE HOUSE ASSOCIATION,900,LD LTS 18-64,DAYCARE,2103732209,1553877
04.08.2023,ADULT SOCIAL CARE,BEDE HOUSE ASSOCIATION,"1,125.00",LD LTS 18-64,DAYCARE,2103732189,1553877
04.08.2023,ADULT SOCIAL CARE,BEDE HOUSE ASSOCIATION,"1,140.00",LD LTS 18-64,DAYCARE,2103732163,1553877
04.08.2023,ADULT SOCIAL CARE,BEDE HOUSE ASSOCIATION,"1,140.00",LD LTS 18-64,DAYCARE,2103732164,1553877
04.08.2023,ADULT SOCIAL CARE,BEDE HOUSE ASSOCIATION,"1,188.00",LD LTS 18-64,DAYCARE,2103732201,1553877
04.08.2023,ADULT SOCIAL CARE,BEDE HOUSE ASSOCIATION,"1,200.00",LD LTS 18-64,DAYCARE,2103732154,1553877
04.08.2023,ADULT SOCIAL CARE,BEDE HOUSE ASSOCIATION,"1,200.00",LD LTS 18-64,DAYCARE,2103732166,1553877
04.08.2023,ADULT SOCIAL CARE,BEDE HOUSE ASSOCIATION,"1,200.00",LD LTS 18-64,DAYCARE,2103732167,1553877
04.08.2023,ADULT SOCIAL CARE,BEDE HOUSE ASSOCIATION,"1,200.00",LD LTS 18-64,DAYCARE,2103732171,1553877
04.08.2023,ADULT SOCIAL CARE,BEDE HOUSE ASSOCIATION,"1,200.00",LD LTS 18-64,DAYCARE,2103732195,1553877
04.08.2023,ADULT SOCIAL CARE,BEDE HOUSE ASSOCIATION,"1,200.00",LD LTS 18-64,DAYCARE,2103732197,1553877
04.08.2023,ADULT SOCIAL CARE,BEDE HOUSE ASSOCIATION,"1,200.00",LD LTS 18-64,DAYCARE,2103732205,1553877
04.08.2023,ADULT SOCIAL CARE,BEDE HOUSE ASSOCIATION,"1,260.00",LD LTS 18-64,DAYCARE,2103732204,1553877
04.08.2023,ADULT SOCIAL CARE,BEDE HOUSE ASSOCIATION,"1,284.00",LD LTS 18-64,DAYCARE,2103732165,1553877
04.08.2023,ADULT SOCIAL CARE,BEDE HOUSE ASSOCIATION,"1,308.00",LD LTS 18-64,DAYCARE,2103732179,1553877
04.08.2023,ADULT SOCIAL CARE,BEDE HOUSE ASSOCIATION,"1,424.00",LD LTS 18-64,DAYCARE,2103732159,1553877
04.08.2023,ADULT SOCIAL CARE,BEDE HOUSE ASSOCIATION,"1,424.00",LD LTS 18-64,DAYCARE,2103732206,1553877
04.08.2023,ADULT SOCIAL CARE,BEDE HOUSE ASSOCIATION,"1,440.00",LD LTS 18-64,DAYCARE,2103732185,1553877
04.08.2023,ADULT SOCIAL CARE,BEDE HOUSE ASSOCIATION,"1,520.00",LD LTS 18-64,DAYCARE,2103732188,1553877
04.08.2023,ADULT SOCIAL CARE,BEDE HOUSE ASSOCIATION,"1,560.00",LD LTS 18-64,DAYCARE,2103732196,1553877
04.08.2023,ADULT SOCIAL CARE,BEDE HOUSE ASSOCIATION,"1,648.00",LD LTS 18-64,DAYCARE,2103732169,1553877
04.08.2023,ADULT SOCIAL CARE,BEDE HOUSE ASSOCIATION,"1,740.00",LD LTS 18-64,DAYCARE,2103732198,1553877
04.08.2023,ADULT SOCIAL CARE,BEDE HOUSE ASSOCIATION,"1,800.00",LD LTS 18-64,DAYCARE,2103732208,1553877
04.08.2023,ADULT SOCIAL CARE,BEDE HOUSE ASSOCIATION,"3,000.00",LD LTS 18-64,DAYCARE,2103732178,1553877
04.08.2023,ADULT SOCIAL CARE,SURREY DOCKS FARM PROVIDENT SOCIETY,480,LD LTS 18-64,DAYCARE,2103732139,1000000958
04.08.2023,ADULT SOCIAL CARE,SURREY DOCKS FARM PROVIDENT SOCIETY,500,LD LTS 18-64,DAYCARE,2103732135,1000000958
04.08.2023,ADULT SOCIAL CARE,SURREY DOCKS FARM PROVIDENT SOCIETY,720,LD LTS 18-64,DAYCARE,2103732138,1000000958
04.08.2023,ADULT SOCIAL CARE,MEDACS HOMECARE,276.8,LD LTS 18-64,HOMECARE - C&V,2103732146,11287415
04.08.2023,ADULT SOCIAL CARE,MEDACS HOMECARE,721.6,LD LTS 18-64,HOMECARE - C&V,2103732152,11287415
04.08.2023,ADULT SOCIAL CARE,MEDACS HOMECARE,"1,730.00",LD LTS 18-64,HOMECARE - C&V,2103732151,11287415
04.08.2023,ADULT SOCIAL CARE,LONDON CARE LTD,773.44,LD LTS 18-64,HOMECARE - C&V,2103731942,1000003398
04.08.2023,ADULT SOCIAL CARE,LONDON CARE LTD,970.6,LD LTS 18-64,HOMECARE - C&V,2103731980,1000003398
04.08.2023,ADULT SOCIAL CARE,GLENPAT HOMES,-405,LD LTS 18-64,"MAND STATUTORY CHARGES, RESIDENTIAL",2103730393,1000059312
04.08.2023,ADULT SOCIAL CARE,GLENPAT HOMES,"8,239.12",LD LTS 18-64,RESIDENTIAL CARE,2103730392,1000059312
04.08.2023,ADULT SOCIAL CARE,MEDACS HOMECARE,276.8,LD LTS 18-64,SUPPORTED LIVING,2103732145,11287415
04.08.2023,ADULT SOCIAL CARE,MEDACS HOMECARE,276.8,LD LTS 18-64,SUPPORTED LIVING,2103732149,11287415
04.08.2023,ADULT SOCIAL CARE,MEDACS HOMECARE,346,LD LTS 18-64,SUPPORTED LIVING,2103732150,11287415
04.08.2023,ADULT SOCIAL CARE,MEDACS HOMECARE,740.16,LD LTS 18-64,SUPPORTED LIVING,2103732148,11287415
04.08.2023,ADULT SOCIAL CARE,MEDACS HOMECARE,968.8,LD LTS 18-64,SUPPORTED LIVING,2103732143,11287415
04.08.2023,ADULT SOCIAL CARE,MEDACS HOMECARE,"1,522.40",LD LTS 18-64,SUPPORTED LIVING,2103732142,11287415
04.08.2023,ADULT SOCIAL CARE,MEDACS HOMECARE,"1,557.00",LD LTS 18-64,SUPPORTED LIVING,2103732141,11287415
04.08.2023,ADULT SOCIAL CARE,MEDACS HOMECARE,"1,799.20",LD LTS 18-64,SUPPORTED LIVING,2103732144,11287415
04.08.2023,ADULT SOCIAL CARE,BEDE HOUSE ASSOCIATION,460,LD LTS 65+,DAYCARE,2103732158,1553877
04.08.2023,ADULT SOCIAL CARE,BEDE HOUSE ASSOCIATION,"1,678.40",LD LTS 65+,DAYCARE,2103732200,1553877
04.08.2023,ADULT SOCIAL CARE,SURREY DOCKS FARM PROVIDENT SOCIETY,360,LD LTS 65+,DAYCARE,2103732140,1000000958
04.08.2023,ADULT SOCIAL CARE,LONDON CARE LTD,343.8,MEM LTS 18-64,HOMECARE - C&V,2103731813,1000003398
04.08.2023,ADULT SOCIAL CARE,LONDON CARE LTD,662.22,MEM LTS 18-64,HOMECARE - C&V,2103731964,1000003398
04.08.2023,ADULT SOCIAL CARE,LONDON CARE LTD,985.74,MEM LTS 18-64,HOMECARE - C&V,2103731895,1000003398
04.08.2023,ADULT SOCIAL CARE,LONDON CARE LTD,455.02,MEM LTS 65+,HOMECARE - C&V,2103732025,1000003398
04.08.2023,ADULT SOCIAL CARE,LONDON CARE LTD,570.77,MEM LTS 65+,HOMECARE - C&V,2103732090,1000003398
04.08.2023,ADULT SOCIAL CARE,LONDON CARE LTD,652.2,MEM LTS 65+,HOMECARE - C&V,2103732134,1000003398
04.08.2023,ADULT SOCIAL CARE,LONDON CARE LTD,"1,035.13",MEM LTS 65+,HOMECARE - C&V,2103731787,1000003398
04.08.2023,ADULT SOCIAL CARE,LONDON CARE LTD,"1,107.08",MEM LTS 65+,HOMECARE - C&V,2103731883,1000003398
04.08.2023,ADULT SOCIAL CARE,LONDON CARE LTD,"1,335.45",MEM LTS 65+,HOMECARE - C&V,2103731842,1000003398
04.08.2023,ADULT SOCIAL CARE,LONDON CARE LTD,"1,445.80",MEM LTS 65+,HOMECARE - C&V,2103731959,1000003398
04.08.2023,ADULT SOCIAL CARE,LONDON CARE LTD,"1,601.83",MEM LTS 65+,HOMECARE - C&V,2103732118,1000003398
04.08.2023,ADULT SOCIAL CARE,LONDON CARE LTD,"2,879.89",MEM LTS 65+,HOMECARE - C&V,2103731821,1000003398
04.08.2023,ADULT SOCIAL CARE,BEDE HOUSE ASSOCIATION,320,MH LTS 18-64,DAYCARE,2103732172,1553877
04.08.2023,ADULT SOCIAL CARE,LONDON CARE LTD,354.95,MH LTS 18-64,HOMECARE - C&V,2103732108,1000003398
04.08.2023,ADULT SOCIAL CARE,LONDON CARE LTD,369.02,MH LTS 18-64,HOMECARE - C&V,2103731973,1000003398
04.08.2023,ADULT SOCIAL CARE,LONDON CARE LTD,424.62,MH LTS 18-64,HOMECARE - C&V,2103731863,1000003398
04.08.2023,ADULT SOCIAL CARE,LONDON CARE LTD,649.46,MH LTS 18-64,HOMECARE - C&V,2103731844,1000003398
04.08.2023,ADULT SOCIAL CARE,LONDON CARE LTD,"1,367.28",MH LTS 18-64,HOMECARE - C&V,2103731992,1000003398
04.08.2023,ADULT SOCIAL CARE,LONDON CARE LTD,"1,971.72",MH LTS 18-64,HOMECARE - C&V,2103732014,1000003398
04.08.2023,ADULT SOCIAL CARE,WOODHAM ENTERPRISES LTD,814,MH LTS 18-64,SUPPORTED LIVING,2103403013,1000044522
04.08.2023,ADULT SOCIAL CARE,LONDON CARE LTD,255,MH LTS 65+,HOMECARE - C&V,2103731861,1000003398
04.08.2023,ADULT SOCIAL CARE,LONDON CARE LTD,418.26,MH LTS 65+,HOMECARE - C&V,2103732102,1000003398
04.08.2023,ADULT SOCIAL CARE,LONDON CARE LTD,471.01,MH LTS 65+,HOMECARE - C&V,2103731898,1000003398
04.08.2023,ADULT SOCIAL CARE,LONDON CARE LTD,551.1,MH LTS 65+,HOMECARE - C&V,2103731961,1000003398
04.08.2023,ADULT SOCIAL CARE,LONDON CARE LTD,"1,142.49",MH LTS 65+,HOMECARE - C&V,2103732131,1000003398
04.08.2023,ADULT SOCIAL CARE,LONDON CARE LTD,"1,183.00",MH LTS 65+,HOMECARE - C&V,2103731789,1000003398
04.08.2023,ADULT SOCIAL CARE,LONDON CARE LTD,"1,232.32",MH LTS 65+,HOMECARE - C&V,2103731872,1000003398
04.08.2023,ADULT SOCIAL CARE,LONDON CARE LTD,"1,238.61",MH LTS 65+,HOMECARE - C&V,2103732130,1000003398
04.08.2023,ADULT SOCIAL CARE,LONDON CARE LTD,"2,614.47",MH LTS 65+,HOMECARE - C&V,2103731833,1000003398
04.08.2023,ADULT SOCIAL CARE,WOODHAM ENTERPRISES LTD,-967.98,MH LTS 65+,RESIDENTIAL CARE,2102977134,1000044522
04.08.2023,ADULT SOCIAL CARE,BEDE HOUSE ASSOCIATION,600,PHY LTS 18-64,DAYCARE,2103732202,1553877
04.08.2023,ADULT SOCIAL CARE,MEDACS HOMECARE,276.8,PHY LTS 18-64,HOMECARE - C&V,2103732147,11287415
04.08.2023,ADULT SOCIAL CARE,LONDON CARE LTD,288.14,PHY LTS 18-64,HOMECARE - C&V,2103732082,1000003398
04.08.2023,ADULT SOCIAL CARE,LONDON CARE LTD,343.81,PHY LTS 18-64,HOMECARE - C&V,2103732073,1000003398
04.08.2023,ADULT SOCIAL CARE,LONDON CARE LTD,358.98,PHY LTS 18-64,HOMECARE - C&V,2103732080,1000003398
04.08.2023,ADULT SOCIAL CARE,LONDON CARE LTD,372.77,PHY LTS 18-64,HOMECARE - C&V,2103731816,1000003398
04.08.2023,ADULT SOCIAL CARE,LONDON CARE LTD,384.18,PHY LTS 18-64,HOMECARE - C&V,2103732084,1000003398
04.08.2023,ADULT SOCIAL CARE,LONDON CARE LTD,387.03,PHY LTS 18-64,HOMECARE - C&V,2103731804,1000003398
04.08.2023,ADULT SOCIAL CARE,LONDON CARE LTD,409.47,PHY LTS 18-64,HOMECARE - C&V,2103731994,1000003398
04.08.2023,ADULT SOCIAL CARE,LONDON CARE LTD,419.7,PHY LTS 18-64,HOMECARE - C&V,2103731943,1000003398
04.08.2023,ADULT SOCIAL CARE,LONDON CARE LTD,429.81,PHY LTS 18-64,HOMECARE - C&V,2103732032,1000003398
04.08.2023,ADULT SOCIAL CARE,LONDON CARE LTD,434.85,PHY LTS 18-64,HOMECARE - C&V,2103731901,1000003398
04.08.2023,ADULT SOCIAL CARE,LONDON CARE LTD,450.02,PHY LTS 18-64,HOMECARE - C&V,2103732083,1000003398
04.08.2023,ADULT SOCIAL CARE,LONDON CARE LTD,450.03,PHY LTS 18-64,HOMECARE - C&V,2103731801,1000003398
04.08.2023,ADULT SOCIAL CARE,LONDON CARE LTD,485.4,PHY LTS 18-64,HOMECARE - C&V,2103731880,1000003398
04.08.2023,ADULT SOCIAL CARE,LONDON CARE LTD,496.57,PHY LTS 18-64,HOMECARE - C&V,2103731811,1000003398
04.08.2023,ADULT SOCIAL CARE,LONDON CARE LTD,519.17,PHY LTS 18-64,HOMECARE - C&V,2103732004,1000003398
04.08.2023,ADULT SOCIAL CARE,LONDON CARE LTD,546.06,PHY LTS 18-64,HOMECARE - C&V,2103731995,1000003398
04.08.2023,ADULT SOCIAL CARE,LONDON CARE LTD,556.12,PHY LTS 18-64,HOMECARE - C&V,2103731817,1000003398
04.08.2023,ADULT SOCIAL CARE,LONDON CARE LTD,561.11,PHY LTS 18-64,HOMECARE - C&V,2103731933,1000003398
04.08.2023,ADULT SOCIAL CARE,LONDON CARE LTD,561.12,PHY LTS 18-64,HOMECARE - C&V,2103732132,1000003398
04.08.2023,ADULT SOCIAL CARE,LONDON CARE LTD,575.72,PHY LTS 18-64,HOMECARE - C&V,2103731892,1000003398
04.08.2023,ADULT SOCIAL CARE,LONDON CARE LTD,581.65,PHY LTS 18-64,HOMECARE - C&V,2103731783,1000003398
04.08.2023,ADULT SOCIAL CARE,LONDON CARE LTD,599.87,PHY LTS 18-64,HOMECARE - C&V,2103731908,1000003398
04.08.2023,ADULT SOCIAL CARE,LONDON CARE LTD,606.6,PHY LTS 18-64,HOMECARE - C&V,2103732064,1000003398
04.08.2023,ADULT SOCIAL CARE,LONDON CARE LTD,636.93,PHY LTS 18-64,HOMECARE - C&V,2103732031,1000003398
04.08.2023,ADULT SOCIAL CARE,LONDON CARE LTD,648.81,PHY LTS 18-64,HOMECARE - C&V,2103732001,1000003398
04.08.2023,ADULT SOCIAL CARE,LONDON CARE LTD,656.25,PHY LTS 18-64,HOMECARE - C&V,2103731855,1000003398
04.08.2023,ADULT SOCIAL CARE,LONDON CARE LTD,662.32,PHY LTS 18-64,HOMECARE - C&V,2103731824,1000003398
04.08.2023,ADULT SOCIAL CARE,LONDON CARE LTD,672.44,PHY LTS 18-64,HOMECARE - C&V,2103732035,1000003398
04.08.2023,ADULT SOCIAL CARE,LONDON CARE LTD,697.71,PHY LTS 18-64,HOMECARE - C&V,2103731925,1000003398
04.08.2023,ADULT SOCIAL CARE,LONDON CARE LTD,699.29,PHY LTS 18-64,HOMECARE - C&V,2103732012,1000003398
04.08.2023,ADULT SOCIAL CARE,LONDON CARE LTD,700.7,PHY LTS 18-64,HOMECARE - C&V,2103731825,1000003398
04.08.2023,ADULT SOCIAL CARE,LONDON CARE LTD,705.73,PHY LTS 18-64,HOMECARE - C&V,2103731928,1000003398
04.08.2023,ADULT SOCIAL CARE,LONDON CARE LTD,710.26,PHY LTS 18-64,HOMECARE - C&V,2103731868,1000003398
04.08.2023,ADULT SOCIAL CARE,LONDON CARE LTD,712.89,PHY LTS 18-64,HOMECARE - C&V,2103731852,1000003398
04.08.2023,ADULT SOCIAL CARE,LONDON CARE LTD,717.99,PHY LTS 18-64,HOMECARE - C&V,2103731848,1000003398
04.08.2023,ADULT SOCIAL CARE,LONDON CARE LTD,721.36,PHY LTS 18-64,HOMECARE - C&V,2103731957,1000003398
04.08.2023,ADULT SOCIAL CARE,LONDON CARE LTD,736.29,PHY LTS 18-64,HOMECARE - C&V,2103731865,1000003398
04.08.2023,ADULT SOCIAL CARE,LONDON CARE LTD,738.16,PHY LTS 18-64,HOMECARE - C&V,2103732007,1000003398
04.08.2023,ADULT SOCIAL CARE,LONDON CARE LTD,743.19,PHY LTS 18-64,HOMECARE - C&V,2103731917,1000003398
04.08.2023,ADULT SOCIAL CARE,LONDON CARE LTD,743.22,PHY LTS 18-64,HOMECARE - C&V,2103731985,1000003398
04.08.2023,ADULT SOCIAL CARE,LONDON CARE LTD,748.31,PHY LTS 18-64,HOMECARE - C&V,2103731809,1000003398
04.08.2023,ADULT SOCIAL CARE,LONDON CARE LTD,763.31,PHY LTS 18-64,HOMECARE - C&V,2103731803,1000003398
04.08.2023,ADULT SOCIAL CARE,LONDON CARE LTD,768.49,PHY LTS 18-64,HOMECARE - C&V,2103731921,1000003398
04.08.2023,ADULT SOCIAL CARE,LONDON CARE LTD,820.98,PHY LTS 18-64,HOMECARE - C&V,2103732067,1000003398
04.08.2023,ADULT SOCIAL CARE,LONDON CARE LTD,824.12,PHY LTS 18-64,HOMECARE - C&V,2103732037,1000003398
04.08.2023,ADULT SOCIAL CARE,LONDON CARE LTD,831.59,PHY LTS 18-64,HOMECARE - C&V,2103731950,1000003398
04.08.2023,ADULT SOCIAL CARE,LONDON CARE LTD,842.35,PHY LTS 18-64,HOMECARE - C&V,2103732081,1000003398
04.08.2023,ADULT SOCIAL CARE,LONDON CARE LTD,848.28,PHY LTS 18-64,HOMECARE - C&V,2103731854,1000003398
04.08.2023,ADULT SOCIAL CARE,LONDON CARE LTD,853.55,PHY LTS 18-64,HOMECARE - C&V,2103731965,1000003398
04.08.2023,ADULT SOCIAL CARE,LONDON CARE LTD,935.36,PHY LTS 18-64,HOMECARE - C&V,2103731814,1000003398
04.08.2023,ADULT SOCIAL CARE,LONDON CARE LTD,945.3,PHY LTS 18-64,HOMECARE - C&V,2103731889,1000003398
04.08.2023,ADULT SOCIAL CARE,LONDON CARE LTD,965.64,PHY LTS 18-64,HOMECARE - C&V,2103731940,1000003398
04.08.2023,ADULT SOCIAL CARE,LONDON CARE LTD,"1,092.02",PHY LTS 18-64,HOMECARE - C&V,2103731890,1000003398
04.08.2023,ADULT SOCIAL CARE,LONDON CARE LTD,"1,142.46",PHY LTS 18-64,HOMECARE - C&V,2103731857,1000003398
04.08.2023,ADULT SOCIAL CARE,LONDON CARE LTD,"1,172.76",PHY LTS 18-64,HOMECARE - C&V,2103731902,1000003398
04.08.2023,ADULT SOCIAL CARE,LONDON CARE LTD,"1,223.38",PHY LTS 18-64,HOMECARE - C&V,2103731869,1000003398
04.08.2023,ADULT SOCIAL CARE,LONDON CARE LTD,"1,461.14",PHY LTS 18-64,HOMECARE - C&V,2103732017,1000003398
04.08.2023,ADULT SOCIAL CARE,LONDON CARE LTD,"1,543.14",PHY LTS 18-64,HOMECARE - C&V,2103731971,1000003398
04.08.2023,ADULT SOCIAL CARE,LONDON CARE LTD,"1,602.47",PHY LTS 18-64,HOMECARE - C&V,2103731991,1000003398
04.08.2023,ADULT SOCIAL CARE,LONDON CARE LTD,"1,663.23",PHY LTS 18-64,HOMECARE - C&V,2103731849,1000003398
04.08.2023,ADULT SOCIAL CARE,LONDON CARE LTD,"1,698.65",PHY LTS 18-64,HOMECARE - C&V,2103732088,1000003398
04.08.2023,ADULT SOCIAL CARE,LONDON CARE LTD,"1,716.12",PHY LTS 18-64,HOMECARE - C&V,2103731986,1000003398
04.08.2023,ADULT SOCIAL CARE,LONDON CARE LTD,"2,269.70",PHY LTS 18-64,HOMECARE - C&V,2103731846,1000003398
04.08.2023,ADULT SOCIAL CARE,LONDON CARE LTD,"2,315.70",PHY LTS 18-64,HOMECARE - C&V,2103732039,1000003398
04.08.2023,ADULT SOCIAL CARE,LONDON CARE LTD,"2,336.10",PHY LTS 18-64,HOMECARE - C&V,2103732106,1000003398
04.08.2023,ADULT SOCIAL CARE,LONDON CARE LTD,"2,532.84",PHY LTS 18-64,HOMECARE - C&V,2103731860,1000003398
04.08.2023,ADULT SOCIAL CARE,LONDON CARE LTD,"2,553.06",PHY LTS 18-64,HOMECARE - C&V,2103731881,1000003398
04.08.2023,ADULT SOCIAL CARE,LONDON CARE LTD,"4,310.58",PHY LTS 18-64,HOMECARE - C&V,2103731806,1000003398
04.08.2023,ADULT SOCIAL CARE,LONDON CARE LTD,266.98,PHY LTS 65+,HOMECARE - C&V,2103731956,1000003398
04.08.2023,ADULT SOCIAL CARE,LONDON CARE LTD,267.94,PHY LTS 65+,HOMECARE - C&V,2103731782,1000003398
04.08.2023,ADULT SOCIAL CARE,LONDON CARE LTD,283.08,PHY LTS 65+,HOMECARE - C&V,2103732006,1000003398
04.08.2023,ADULT SOCIAL CARE,LONDON CARE LTD,303.4,PHY LTS 65+,HOMECARE - C&V,2103732097,1000003398
04.08.2023,ADULT SOCIAL CARE,LONDON CARE LTD,318.24,PHY LTS 65+,HOMECARE - C&V,2103731878,1000003398
04.08.2023,ADULT SOCIAL CARE,LONDON CARE LTD,323.52,PHY LTS 65+,HOMECARE - C&V,2103732075,1000003398
04.08.2023,ADULT SOCIAL CARE,LONDON CARE LTD,328.58,PHY LTS 65+,HOMECARE - C&V,2103731948,1000003398
04.08.2023,ADULT SOCIAL CARE,LONDON CARE LTD,333.68,PHY LTS 65+,HOMECARE - C&V,2103731830,1000003398
04.08.2023,ADULT SOCIAL CARE,LONDON CARE LTD,338.48,PHY LTS 65+,HOMECARE - C&V,2103731905,1000003398
04.08.2023,ADULT SOCIAL CARE,LONDON CARE LTD,353.88,PHY LTS 65+,HOMECARE - C&V,2103731827,1000003398
04.08.2023,ADULT SOCIAL CARE,LONDON CARE LTD,356.94,PHY LTS 65+,HOMECARE - C&V,2103731866,1000003398
04.08.2023,ADULT SOCIAL CARE,LONDON CARE LTD,358.91,PHY LTS 65+,HOMECARE - C&V,2103732069,1000003398
04.08.2023,ADULT SOCIAL CARE,LONDON CARE LTD,363.09,PHY LTS 65+,HOMECARE - C&V,2103731900,1000003398
04.08.2023,ADULT SOCIAL CARE,LONDON CARE LTD,363.96,PHY LTS 65+,HOMECARE - C&V,2103731851,1000003398
04.08.2023,ADULT SOCIAL CARE,LONDON CARE LTD,364.08,PHY LTS 65+,HOMECARE - C&V,2103731918,1000003398
04.08.2023,ADULT SOCIAL CARE,LONDON CARE LTD,366.93,PHY LTS 65+,HOMECARE - C&V,2103732105,1000003398
04.08.2023,ADULT SOCIAL CARE,LONDON CARE LTD,371.45,PHY LTS 65+,HOMECARE - C&V,2103731958,1000003398
04.08.2023,ADULT SOCIAL CARE,LONDON CARE LTD,394.37,PHY LTS 65+,HOMECARE - C&V,2103731979,1000003398
04.08.2023,ADULT SOCIAL CARE,LONDON CARE LTD,395.48,PHY LTS 65+,HOMECARE - C&V,2103732071,1000003398
04.08.2023,ADULT SOCIAL CARE,LONDON CARE LTD,399.13,PHY LTS 65+,HOMECARE - C&V,2103732113,1000003398
04.08.2023,ADULT SOCIAL CARE,LONDON CARE LTD,399.47,PHY LTS 65+,HOMECARE - C&V,2103732013,1000003398
04.08.2023,ADULT SOCIAL CARE,LONDON CARE LTD,404.4,PHY LTS 65+,HOMECARE - C&V,2103731812,1000003398
04.08.2023,ADULT SOCIAL CARE,LONDON CARE LTD,412.97,PHY LTS 65+,HOMECARE - C&V,2103731953,1000003398
04.08.2023,ADULT SOCIAL CARE,LONDON CARE LTD,413.65,PHY LTS 65+,HOMECARE - C&V,2103731798,1000003398
04.08.2023,ADULT SOCIAL CARE,LONDON CARE LTD,414.64,PHY LTS 65+,HOMECARE - C&V,2103731797,1000003398
04.08.2023,ADULT SOCIAL CARE,LONDON CARE LTD,419.58,PHY LTS 65+,HOMECARE - C&V,2103731856,1000003398
04.08.2023,ADULT SOCIAL CARE,LONDON CARE LTD,419.7,PHY LTS 65+,HOMECARE - C&V,2103731871,1000003398
04.08.2023,ADULT SOCIAL CARE,LONDON CARE LTD,419.7,PHY LTS 65+,HOMECARE - C&V,2103732051,1000003398
04.08.2023,ADULT SOCIAL CARE,LONDON CARE LTD,424.62,PHY LTS 65+,HOMECARE - C&V,2103731882,1000003398
04.08.2023,ADULT SOCIAL CARE,LONDON CARE LTD,439.79,PHY LTS 65+,HOMECARE - C&V,2103731924,1000003398
04.08.2023,ADULT SOCIAL CARE,LONDON CARE LTD,439.82,PHY LTS 65+,HOMECARE - C&V,2103731938,1000003398
04.08.2023,ADULT SOCIAL CARE,LONDON CARE LTD,442.96,PHY LTS 65+,HOMECARE - C&V,2103731794,1000003398
04.08.2023,ADULT SOCIAL CARE,LONDON CARE LTD,444.92,PHY LTS 65+,HOMECARE - C&V,2103732070,1000003398
04.08.2023,ADULT SOCIAL CARE,LONDON CARE LTD,448.59,PHY LTS 65+,HOMECARE - C&V,2103731962,1000003398
04.08.2023,ADULT SOCIAL CARE,LONDON CARE LTD,449.93,PHY LTS 65+,HOMECARE - C&V,2103731792,1000003398
04.08.2023,ADULT SOCIAL CARE,LONDON CARE LTD,485.28,PHY LTS 65+,HOMECARE - C&V,2103732026,1000003398
04.08.2023,ADULT SOCIAL CARE,LONDON CARE LTD,491.81,PHY LTS 65+,HOMECARE - C&V,2103731945,1000003398
04.08.2023,ADULT SOCIAL CARE,LONDON CARE LTD,510.63,PHY LTS 65+,HOMECARE - C&V,2103731941,1000003398
04.08.2023,ADULT SOCIAL CARE,LONDON CARE LTD,530.91,PHY LTS 65+,HOMECARE - C&V,2103731826,1000003398
04.08.2023,ADULT SOCIAL CARE,LONDON CARE LTD,542.67,PHY LTS 65+,HOMECARE - C&V,2103732093,1000003398
04.08.2023,ADULT SOCIAL CARE,LONDON CARE LTD,550.11,PHY LTS 65+,HOMECARE - C&V,2103731838,1000003398
04.08.2023,ADULT SOCIAL CARE,LONDON CARE LTD,556.06,PHY LTS 65+,HOMECARE - C&V,2103732029,1000003398
04.08.2023,ADULT SOCIAL CARE,LONDON CARE LTD,556.07,PHY LTS 65+,HOMECARE - C&V,2103731982,1000003398
04.08.2023,ADULT SOCIAL CARE,LONDON CARE LTD,566.16,PHY LTS 65+,HOMECARE - C&V,2103731885,1000003398
04.08.2023,ADULT SOCIAL CARE,LONDON CARE LTD,575.42,PHY LTS 65+,HOMECARE - C&V,2103731862,1000003398
04.08.2023,ADULT SOCIAL CARE,LONDON CARE LTD,579.47,PHY LTS 65+,HOMECARE - C&V,2103731990,1000003398
04.08.2023,ADULT SOCIAL CARE,LONDON CARE LTD,606.8,PHY LTS 65+,HOMECARE - C&V,2103732038,1000003398
04.08.2023,ADULT SOCIAL CARE,LONDON CARE LTD,636.94,PHY LTS 65+,HOMECARE - C&V,2103732019,1000003398
04.08.2023,ADULT SOCIAL CARE,LONDON CARE LTD,647.05,PHY LTS 65+,HOMECARE - C&V,2103731884,1000003398
04.08.2023,ADULT SOCIAL CARE,LONDON CARE LTD,652.1,PHY LTS 65+,HOMECARE - C&V,2103731952,1000003398
04.08.2023,ADULT SOCIAL CARE,LONDON CARE LTD,652.23,PHY LTS 65+,HOMECARE - C&V,2103731939,1000003398
04.08.2023,ADULT SOCIAL CARE,LONDON CARE LTD,654.54,PHY LTS 65+,HOMECARE - C&V,2103731850,1000003398
04.08.2023,ADULT SOCIAL CARE,LONDON CARE LTD,659.59,PHY LTS 65+,HOMECARE - C&V,2103731906,1000003398
04.08.2023,ADULT SOCIAL CARE,LONDON CARE LTD,662.21,PHY LTS 65+,HOMECARE - C&V,2103731877,1000003398
04.08.2023,ADULT SOCIAL CARE,LONDON CARE LTD,662.24,PHY LTS 65+,HOMECARE - C&V,2103732053,1000003398
04.08.2023,ADULT SOCIAL CARE,LONDON CARE LTD,664.75,PHY LTS 65+,HOMECARE - C&V,2103732072,1000003398
04.08.2023,ADULT SOCIAL CARE,LONDON CARE LTD,667.27,PHY LTS 65+,HOMECARE - C&V,2103731893,1000003398
04.08.2023,ADULT SOCIAL CARE,LONDON CARE LTD,687.6,PHY LTS 65+,HOMECARE - C&V,2103731937,1000003398
04.08.2023,ADULT SOCIAL CARE,LONDON CARE LTD,701.33,PHY LTS 65+,HOMECARE - C&V,2103731988,1000003398
04.08.2023,ADULT SOCIAL CARE,LONDON CARE LTD,702.53,PHY LTS 65+,HOMECARE - C&V,2103731834,1000003398
04.08.2023,ADULT SOCIAL CARE,LONDON CARE LTD,702.68,PHY LTS 65+,HOMECARE - C&V,2103731894,1000003398
04.08.2023,ADULT SOCIAL CARE,LONDON CARE LTD,702.79,PHY LTS 65+,HOMECARE - C&V,2103731932,1000003398
04.08.2023,ADULT SOCIAL CARE,LONDON CARE LTD,712.77,PHY LTS 65+,HOMECARE - C&V,2103731785,1000003398
04.08.2023,ADULT SOCIAL CARE,LONDON CARE LTD,717.9,PHY LTS 65+,HOMECARE - C&V,2103732063,1000003398
04.08.2023,ADULT SOCIAL CARE,LONDON CARE LTD,732.98,PHY LTS 65+,HOMECARE - C&V,2103731978,1000003398
04.08.2023,ADULT SOCIAL CARE,LONDON CARE LTD,756.72,PHY LTS 65+,HOMECARE - C&V,2103732043,1000003398
04.08.2023,ADULT SOCIAL CARE,LONDON CARE LTD,760.15,PHY LTS 65+,HOMECARE - C&V,2103731966,1000003398
04.08.2023,ADULT SOCIAL CARE,LONDON CARE LTD,768.53,PHY LTS 65+,HOMECARE - C&V,2103732033,1000003398
04.08.2023,ADULT SOCIAL CARE,LONDON CARE LTD,773.56,PHY LTS 65+,HOMECARE - C&V,2103731916,1000003398
04.08.2023,ADULT SOCIAL CARE,LONDON CARE LTD,788.71,PHY LTS 65+,HOMECARE - C&V,2103732016,1000003398
04.08.2023,ADULT SOCIAL CARE,LONDON CARE LTD,790.81,PHY LTS 65+,HOMECARE - C&V,2103731875,1000003398
04.08.2023,ADULT SOCIAL CARE,LONDON CARE LTD,793.77,PHY LTS 65+,HOMECARE - C&V,2103731829,1000003398
04.08.2023,ADULT SOCIAL CARE,LONDON CARE LTD,796.85,PHY LTS 65+,HOMECARE - C&V,2103731823,1000003398
04.08.2023,ADULT SOCIAL CARE,LONDON CARE LTD,800.4,PHY LTS 65+,HOMECARE - C&V,2103732050,1000003398
04.08.2023,ADULT SOCIAL CARE,LONDON CARE LTD,814.01,PHY LTS 65+,HOMECARE - C&V,2103732009,1000003398
04.08.2023,ADULT SOCIAL CARE,LONDON CARE LTD,824.13,PHY LTS 65+,HOMECARE - C&V,2103731899,1000003398
04.08.2023,ADULT SOCIAL CARE,LONDON CARE LTD,829.03,PHY LTS 65+,HOMECARE - C&V,2103731963,1000003398
04.08.2023,ADULT SOCIAL CARE,LONDON CARE LTD,833.92,PHY LTS 65+,HOMECARE - C&V,2103732125,1000003398
04.08.2023,ADULT SOCIAL CARE,LONDON CARE LTD,836.63,PHY LTS 65+,HOMECARE - C&V,2103731903,1000003398
04.08.2023,ADULT SOCIAL CARE,LONDON CARE LTD,839.13,PHY LTS 65+,HOMECARE - C&V,2103731923,1000003398
04.08.2023,ADULT SOCIAL CARE,LONDON CARE LTD,839.41,PHY LTS 65+,HOMECARE - C&V,2103731914,1000003398
04.08.2023,ADULT SOCIAL CARE,LONDON CARE LTD,845.97,PHY LTS 65+,HOMECARE - C&V,2103732000,1000003398
04.08.2023,ADULT SOCIAL CARE,LONDON CARE LTD,849.52,PHY LTS 65+,HOMECARE - C&V,2103732056,1000003398
04.08.2023,ADULT SOCIAL CARE,LONDON CARE LTD,854.45,PHY LTS 65+,HOMECARE - C&V,2103731791,1000003398
04.08.2023,ADULT SOCIAL CARE,LONDON CARE LTD,854.72,PHY LTS 65+,HOMECARE - C&V,2103732107,1000003398
04.08.2023,ADULT SOCIAL CARE,LONDON CARE LTD,859.49,PHY LTS 65+,HOMECARE - C&V,2103731915,1000003398
04.08.2023,ADULT SOCIAL CARE,LONDON CARE LTD,879.69,PHY LTS 65+,HOMECARE - C&V,2103732041,1000003398
04.08.2023,ADULT SOCIAL CARE,LONDON CARE LTD,884.8,PHY LTS 65+,HOMECARE - C&V,2103731936,1000003398
04.08.2023,ADULT SOCIAL CARE,LONDON CARE LTD,904.96,PHY LTS 65+,HOMECARE - C&V,2103732054,1000003398
04.08.2023,ADULT SOCIAL CARE,LONDON CARE LTD,930.27,PHY LTS 65+,HOMECARE - C&V,2103732042,1000003398
04.08.2023,ADULT SOCIAL CARE,LONDON CARE LTD,940.37,PHY LTS 65+,HOMECARE - C&V,2103731870,1000003398
04.08.2023,ADULT SOCIAL CARE,LONDON CARE LTD,950.46,PHY LTS 65+,HOMECARE - C&V,2103732048,1000003398
04.08.2023,ADULT SOCIAL CARE,LONDON CARE LTD,955.42,PHY LTS 65+,HOMECARE - C&V,2103731909,1000003398
04.08.2023,ADULT SOCIAL CARE,LONDON CARE LTD,975.78,PHY LTS 65+,HOMECARE - C&V,2103732010,1000003398
04.08.2023,ADULT SOCIAL CARE,LONDON CARE LTD,979.48,PHY LTS 65+,HOMECARE - C&V,2103731946,1000003398
04.08.2023,ADULT SOCIAL CARE,LONDON CARE LTD,980.82,PHY LTS 65+,HOMECARE - C&V,2103731930,1000003398
04.08.2023,ADULT SOCIAL CARE,LONDON CARE LTD,980.83,PHY LTS 65+,HOMECARE - C&V,2103732036,1000003398
04.08.2023,ADULT SOCIAL CARE,LONDON CARE LTD,980.93,PHY LTS 65+,HOMECARE - C&V,2103732065,1000003398
04.08.2023,ADULT SOCIAL CARE,LONDON CARE LTD,982.34,PHY LTS 65+,HOMECARE - C&V,2103732116,1000003398
04.08.2023,ADULT SOCIAL CARE,LONDON CARE LTD,984.43,PHY LTS 65+,HOMECARE - C&V,2103731841,1000003398
04.08.2023,ADULT SOCIAL CARE,LONDON CARE LTD,985.73,PHY LTS 65+,HOMECARE - C&V,2103732011,1000003398
04.08.2023,ADULT SOCIAL CARE,LONDON CARE LTD,985.86,PHY LTS 65+,HOMECARE - C&V,2103732040,1000003398
04.08.2023,ADULT SOCIAL CARE,LONDON CARE LTD,990.8,PHY LTS 65+,HOMECARE - C&V,2103732115,1000003398
04.08.2023,ADULT SOCIAL CARE,LONDON CARE LTD,"1,001.04",PHY LTS 65+,HOMECARE - C&V,2103731972,1000003398
04.08.2023,ADULT SOCIAL CARE,LONDON CARE LTD,"1,005.78",PHY LTS 65+,HOMECARE - C&V,2103731828,1000003398
04.08.2023,ADULT SOCIAL CARE,LONDON CARE LTD,"1,016.11",PHY LTS 65+,HOMECARE - C&V,2103732122,1000003398
04.08.2023,ADULT SOCIAL CARE,LONDON CARE LTD,"1,026.23",PHY LTS 65+,HOMECARE - C&V,2103731831,1000003398
04.08.2023,ADULT SOCIAL CARE,LONDON CARE LTD,"1,036.30",PHY LTS 65+,HOMECARE - C&V,2103732076,1000003398
04.08.2023,ADULT SOCIAL CARE,LONDON CARE LTD,"1,041.50",PHY LTS 65+,HOMECARE - C&V,2103732045,1000003398
04.08.2023,ADULT SOCIAL CARE,LONDON CARE LTD,"1,051.48",PHY LTS 65+,HOMECARE - C&V,2103732133,1000003398
04.08.2023,ADULT SOCIAL CARE,LONDON CARE LTD,"1,056.62",PHY LTS 65+,HOMECARE - C&V,2103731886,1000003398
04.08.2023,ADULT SOCIAL CARE,LONDON CARE LTD,"1,056.67",PHY LTS 65+,HOMECARE - C&V,2103731819,1000003398
04.08.2023,ADULT SOCIAL CARE,LONDON CARE LTD,"1,062.58",PHY LTS 65+,HOMECARE - C&V,2103731853,1000003398
04.08.2023,ADULT SOCIAL CARE,LONDON CARE LTD,"1,075.21",PHY LTS 65+,HOMECARE - C&V,2103731967,1000003398
04.08.2023,ADULT SOCIAL CARE,LONDON CARE LTD,"1,085.97",PHY LTS 65+,HOMECARE - C&V,2103731799,1000003398
04.08.2023,ADULT SOCIAL CARE,LONDON CARE LTD,"1,087.39",PHY LTS 65+,HOMECARE - C&V,2103732030,1000003398
04.08.2023,ADULT SOCIAL CARE,LONDON CARE LTD,"1,096.98",PHY LTS 65+,HOMECARE - C&V,2103731951,1000003398
04.08.2023,ADULT SOCIAL CARE,LONDON CARE LTD,"1,096.99",PHY LTS 65+,HOMECARE - C&V,2103732114,1000003398
04.08.2023,ADULT SOCIAL CARE,LONDON CARE LTD,"1,107.06",PHY LTS 65+,HOMECARE - C&V,2103731796,1000003398
04.08.2023,ADULT SOCIAL CARE,LONDON CARE LTD,"1,117.28",PHY LTS 65+,HOMECARE - C&V,2103731981,1000003398
04.08.2023,ADULT SOCIAL CARE,LONDON CARE LTD,"1,122.01",PHY LTS 65+,HOMECARE - C&V,2103731820,1000003398
04.08.2023,ADULT SOCIAL CARE,LONDON CARE LTD,"1,122.40",PHY LTS 65+,HOMECARE - C&V,2103731839,1000003398
04.08.2023,ADULT SOCIAL CARE,LONDON CARE LTD,"1,127.51",PHY LTS 65+,HOMECARE - C&V,2103731968,1000003398
04.08.2023,ADULT SOCIAL CARE,LONDON CARE LTD,"1,137.51",PHY LTS 65+,HOMECARE - C&V,2103732028,1000003398
04.08.2023,ADULT SOCIAL CARE,LONDON CARE LTD,"1,137.98",PHY LTS 65+,HOMECARE - C&V,2103731793,1000003398
04.08.2023,ADULT SOCIAL CARE,LONDON CARE LTD,"1,167.61",PHY LTS 65+,HOMECARE - C&V,2103732095,1000003398
04.08.2023,ADULT SOCIAL CARE,LONDON CARE LTD,"1,177.34",PHY LTS 65+,HOMECARE - C&V,2103732005,1000003398
04.08.2023,ADULT SOCIAL CARE,LONDON CARE LTD,"1,177.85",PHY LTS 65+,HOMECARE - C&V,2103732101,1000003398
04.08.2023,ADULT SOCIAL CARE,LONDON CARE LTD,"1,208.17",PHY LTS 65+,HOMECARE - C&V,2103732021,1000003398
04.08.2023,ADULT SOCIAL CARE,LONDON CARE LTD,"1,223.46",PHY LTS 65+,HOMECARE - C&V,2103732062,1000003398
04.08.2023,ADULT SOCIAL CARE,LONDON CARE LTD,"1,228.62",PHY LTS 65+,HOMECARE - C&V,2103732055,1000003398
04.08.2023,ADULT SOCIAL CARE,LONDON CARE LTD,"1,238.64",PHY LTS 65+,HOMECARE - C&V,2103732034,1000003398
04.08.2023,ADULT SOCIAL CARE,LONDON CARE LTD,"1,247.77",PHY LTS 65+,HOMECARE - C&V,2103731840,1000003398
04.08.2023,ADULT SOCIAL CARE,LONDON CARE LTD,"1,253.78",PHY LTS 65+,HOMECARE - C&V,2103731934,1000003398
04.08.2023,ADULT SOCIAL CARE,LONDON CARE LTD,"1,263.91",PHY LTS 65+,HOMECARE - C&V,2103732018,1000003398
04.08.2023,ADULT SOCIAL CARE,LONDON CARE LTD,"1,264.11",PHY LTS 65+,HOMECARE - C&V,2103731815,1000003398
04.08.2023,ADULT SOCIAL CARE,LONDON CARE LTD,"1,273.88",PHY LTS 65+,HOMECARE - C&V,2103731947,1000003398
04.08.2023,ADULT SOCIAL CARE,LONDON CARE LTD,"1,279.08",PHY LTS 65+,HOMECARE - C&V,2103732046,1000003398
04.08.2023,ADULT SOCIAL CARE,LONDON CARE LTD,"1,295.81",PHY LTS 65+,HOMECARE - C&V,2103731873,1000003398
04.08.2023,ADULT SOCIAL CARE,LONDON CARE LTD,"1,299.18",PHY LTS 65+,HOMECARE - C&V,2103731788,1000003398
04.08.2023,ADULT SOCIAL CARE,LONDON CARE LTD,"1,304.34",PHY LTS 65+,HOMECARE - C&V,2103731922,1000003398
04.08.2023,ADULT SOCIAL CARE,LONDON CARE LTD,"1,329.52",PHY LTS 65+,HOMECARE - C&V,2103732066,1000003398
04.08.2023,ADULT SOCIAL CARE,LONDON CARE LTD,"1,346.50",PHY LTS 65+,HOMECARE - C&V,2103732112,1000003398
04.08.2023,ADULT SOCIAL CARE,LONDON CARE LTD,"1,364.25",PHY LTS 65+,HOMECARE - C&V,2103731987,1000003398
04.08.2023,ADULT SOCIAL CARE,LONDON CARE LTD,"1,365.11",PHY LTS 65+,HOMECARE - C&V,2103731867,1000003398
04.08.2023,ADULT SOCIAL CARE,LONDON CARE LTD,"1,370.06",PHY LTS 65+,HOMECARE - C&V,2103731910,1000003398
04.08.2023,ADULT SOCIAL CARE,LONDON CARE LTD,"1,387.77",PHY LTS 65+,HOMECARE - C&V,2103732104,1000003398
04.08.2023,ADULT SOCIAL CARE,LONDON CARE LTD,"1,415.41",PHY LTS 65+,HOMECARE - C&V,2103732128,1000003398
04.08.2023,ADULT SOCIAL CARE,LONDON CARE LTD,"1,425.64",PHY LTS 65+,HOMECARE - C&V,2103732057,1000003398
04.08.2023,ADULT SOCIAL CARE,LONDON CARE LTD,"1,435.68",PHY LTS 65+,HOMECARE - C&V,2103731927,1000003398
04.08.2023,ADULT SOCIAL CARE,LONDON CARE LTD,"1,486.42",PHY LTS 65+,HOMECARE - C&V,2103731993,1000003398
04.08.2023,ADULT SOCIAL CARE,LONDON CARE LTD,"1,490.29",PHY LTS 65+,HOMECARE - C&V,2103731998,1000003398
04.08.2023,ADULT SOCIAL CARE,LONDON CARE LTD,"1,508.61",PHY LTS 65+,HOMECARE - C&V,2103731935,1000003398
04.08.2023,ADULT SOCIAL CARE,LONDON CARE LTD,"1,516.68",PHY LTS 65+,HOMECARE - C&V,2103732110,1000003398
04.08.2023,ADULT SOCIAL CARE,LONDON CARE LTD,"1,562.80",PHY LTS 65+,HOMECARE - C&V,2103732109,1000003398
04.08.2023,ADULT SOCIAL CARE,LONDON CARE LTD,"1,645.54",PHY LTS 65+,HOMECARE - C&V,2103732120,1000003398
04.08.2023,ADULT SOCIAL CARE,LONDON CARE LTD,"1,647.94",PHY LTS 65+,HOMECARE - C&V,2103731779,1000003398
04.08.2023,ADULT SOCIAL CARE,LONDON CARE LTD,"1,658.17",PHY LTS 65+,HOMECARE - C&V,2103732129,1000003398
04.08.2023,ADULT SOCIAL CARE,LONDON CARE LTD,"1,668.25",PHY LTS 65+,HOMECARE - C&V,2103731837,1000003398
04.08.2023,ADULT SOCIAL CARE,LONDON CARE LTD,"1,683.52",PHY LTS 65+,HOMECARE - C&V,2103732047,1000003398
04.08.2023,ADULT SOCIAL CARE,LONDON CARE LTD,"1,713.80",PHY LTS 65+,HOMECARE - C&V,2103731802,1000003398
04.08.2023,ADULT SOCIAL CARE,LONDON CARE LTD,"1,794.90",PHY LTS 65+,HOMECARE - C&V,2103731960,1000003398
04.08.2023,ADULT SOCIAL CARE,LONDON CARE LTD,"1,840.42",PHY LTS 65+,HOMECARE - C&V,2103732049,1000003398
04.08.2023,ADULT SOCIAL CARE,LONDON CARE LTD,"1,936.44",PHY LTS 65+,HOMECARE - C&V,2103732126,1000003398
04.08.2023,ADULT SOCIAL CARE,LONDON CARE LTD,"1,965.02",PHY LTS 65+,HOMECARE - C&V,2103732024,1000003398
04.08.2023,ADULT SOCIAL CARE,LONDON CARE LTD,"1,981.83",PHY LTS 65+,HOMECARE - C&V,2103731983,1000003398
04.08.2023,ADULT SOCIAL CARE,LONDON CARE LTD,"2,251.69",PHY LTS 65+,HOMECARE - C&V,2103732086,1000003398
04.08.2023,ADULT SOCIAL CARE,LONDON CARE LTD,"2,275.02",PHY LTS 65+,HOMECARE - C&V,2103732077,1000003398
04.08.2023,ADULT SOCIAL CARE,LONDON CARE LTD,"2,519.64",PHY LTS 65+,HOMECARE - C&V,2103731888,1000003398
04.08.2023,ADULT SOCIAL CARE,LONDON CARE LTD,"2,531.51",PHY LTS 65+,HOMECARE - C&V,2103731847,1000003398
04.08.2023,ADULT SOCIAL CARE,LONDON CARE LTD,"2,537.87",PHY LTS 65+,HOMECARE - C&V,2103731891,1000003398
04.08.2023,ADULT SOCIAL CARE,LONDON CARE LTD,"2,548.03",PHY LTS 65+,HOMECARE - C&V,2103731845,1000003398
04.08.2023,ADULT SOCIAL CARE,LONDON CARE LTD,"2,579.25",PHY LTS 65+,HOMECARE - C&V,2103731795,1000003398
04.08.2023,ADULT SOCIAL CARE,LONDON CARE LTD,"2,584.98",PHY LTS 65+,HOMECARE - C&V,2103731896,1000003398
04.08.2023,ADULT SOCIAL CARE,LONDON CARE LTD,"2,695.95",PHY LTS 65+,HOMECARE - C&V,2103732124,1000003398
04.08.2023,ADULT SOCIAL CARE,LONDON CARE LTD,"2,699.64",PHY LTS 65+,HOMECARE - C&V,2103731999,1000003398
04.08.2023,ADULT SOCIAL CARE,LONDON CARE LTD,"2,711.26",PHY LTS 65+,HOMECARE - C&V,2103732079,1000003398
04.08.2023,ADULT SOCIAL CARE,LONDON CARE LTD,"2,740.18",PHY LTS 65+,HOMECARE - C&V,2103732099,1000003398
04.08.2023,ADULT SOCIAL CARE,LONDON CARE LTD,"2,810.79",PHY LTS 65+,HOMECARE - C&V,2103731913,1000003398
04.08.2023,ADULT SOCIAL CARE,LONDON CARE LTD,"2,830.81",PHY LTS 65+,HOMECARE - C&V,2103731944,1000003398
04.08.2023,ADULT SOCIAL CARE,LONDON CARE LTD,"2,870.38",PHY LTS 65+,HOMECARE - C&V,2103731876,1000003398
04.08.2023,ADULT SOCIAL CARE,LONDON CARE LTD,"2,891.54",PHY LTS 65+,HOMECARE - C&V,2103731843,1000003398
04.08.2023,ADULT SOCIAL CARE,LONDON CARE LTD,"2,930.43",PHY LTS 65+,HOMECARE - C&V,2103732002,1000003398
04.08.2023,ADULT SOCIAL CARE,LONDON CARE LTD,"3,003.05",PHY LTS 65+,HOMECARE - C&V,2103732068,1000003398
04.08.2023,ADULT SOCIAL CARE,LONDON CARE LTD,"3,033.41",PHY LTS 65+,HOMECARE - C&V,2103731784,1000003398
04.08.2023,ADULT SOCIAL CARE,LONDON CARE LTD,"3,043.19",PHY LTS 65+,HOMECARE - C&V,2103731859,1000003398
04.08.2023,ADULT SOCIAL CARE,LONDON CARE LTD,"3,129.36",PHY LTS 65+,HOMECARE - C&V,2103732003,1000003398
04.08.2023,ADULT SOCIAL CARE,LONDON CARE LTD,"3,180.15",PHY LTS 65+,HOMECARE - C&V,2103732119,1000003398
04.08.2023,ADULT SOCIAL CARE,LONDON CARE LTD,"3,374.21",PHY LTS 65+,HOMECARE - C&V,2103732117,1000003398
04.08.2023,ADULT SOCIAL CARE,LONDON CARE LTD,"3,399.30",PHY LTS 65+,HOMECARE - C&V,2103731897,1000003398
04.08.2023,ADULT SOCIAL CARE,LONDON CARE LTD,"3,552.79",PHY LTS 65+,HOMECARE - C&V,2103731989,1000003398
04.08.2023,ADULT SOCIAL CARE,LONDON CARE LTD,"4,196.23",PHY LTS 65+,HOMECARE - C&V,2103732127,1000003398
04.08.2023,ADULT SOCIAL CARE,LONDON CARE LTD,647.04,PHY LTS 65+,HOMECARE - SPOT,2103732123,1000003398
04.08.2023,ADULT SOCIAL CARE,LONDON CARE LTD,299.93,PHY STS 18-64,HOMECARE - IC,2103731907,1000003398
04.08.2023,ADULT SOCIAL CARE,LONDON CARE LTD,379.8,PHY STS 65+,HOMECARE - IC,2103731919,1000003398
04.08.2023,ADULT SOCIAL CARE,LONDON CARE LTD,540.89,SOCIAL ISOLATION,HOMECARE - C&V,2103732087,1000003398
04.08.2023,ADULT SOCIAL CARE,LONDON CARE LTD,768.5,SOCIAL ISOLATION,HOMECARE - C&V,2103731790,1000003398
04.08.2023,ADULT SOCIAL CARE,LONDON CARE LTD,"1,027.60",SOCIAL ISOLATION,HOMECARE - C&V,2103732100,1000003398
04.08.2023,ADULT SOCIAL CARE,CASTLE WATER LTD,"2,608.72",SOUTHWARK RESOURCE CENTRE,WATER,5902592413,1000078867
04.08.2023,ADULT SOCIAL CARE,LONDON CARE LTD,389.27,SUB LTS 18-64,HOMECARE - C&V,2103731810,1000003398
04.08.2023,ADULT SOCIAL CARE,LONDON CARE LTD,561.22,SUB LTS 18-64,HOMECARE - C&V,2103732059,1000003398
04.08.2023,ADULT SOCIAL CARE,LONDON CARE LTD,748.26,SUB LTS 18-64,HOMECARE - C&V,2103732052,1000003398
04.08.2023,ADULT SOCIAL CARE,SUPRA UK LTD,"6,988.50",TELECARE EQUIPMENT,EQUIPMENT PURCHASE & REPAIR,5902592462,1000048522
04.08.2023,ASSET MANAGEMENT,CALFORD SEADEN LLP,542.5,MAJOR REPAIRS,BUILDING R&M,5902592189,1061592
04.08.2023,ASSET MANAGEMENT,TRAVIS PERKINS TRADING COMPANY LTD,-262,REPAIRS OPERATIONS,MATERIALS,5902592640,1514319
04.08.2023,CENTRAL FUNCTIONS,SAFER BUSINESS NETWORK,810,LEDBURY ESTATE,SECURITY SERVICES,5902592527,1000076641
04.08.2023,CENTRAL FUNCTIONS,BLOOM PROCUREMENT SERVICES LTD,"92,668.80",LEDBURY ESTATE,SECURITY SERVICES,5902592524,1000082531
04.08.2023,CENTRAL FUNCTIONS HGF,RSM RISK ASSURANCE SERVICES LLP,"24,395.95",GF SUPPORT SERVICES,PROFESSIONAL FEES,5902591708,1000050690
04.08.2023,CHIEF EXECUTIVE,LAMBERT SMITH HAMPTON GROUP LTD,366.6,CAPITAL PS (REGEN),CONSTRUCTION FEES  - EXTERNAL,5902592458,1000060045
04.08.2023,CHIEF EXECUTIVE,LAMBERT SMITH HAMPTON GROUP LTD,630,CAPITAL PS (REGEN),CONSTRUCTION FEES  - EXTERNAL,5902592459,1000060045
04.08.2023,CHIEF EXECUTIVE,LAMBERT SMITH HAMPTON GROUP LTD,"1,450.00",CAPITAL PS (REGEN),CONSTRUCTION FEES  - EXTERNAL,5902592444,1000060045
04.08.2023,CHIEF EXECUTIVE,BLOOM PROCUREMENT SERVICES LTD,"-4,050.00",CAPITAL PS (REGEN),CONSTRUCTION FEES  - EXTERNAL,5902592335,1000082531
04.08.2023,CHIEF EXECUTIVE,CBS MAINTENANCE SERVICES LTD,"1,842.00",CAPITAL PS (REGEN),CONSTRUCTION FEES  - EXTERNAL,2103731709,3000001518
04.08.2023,CHILDREN AND ADULT,BLOOM PROCUREMENT SERVICES LTD,"4,050.00",CAPITAL PS (EDUCATION),CONSTRUCTION FEES,5902592612,1000082531
04.08.2023,CHILDREN AND ADULT,BLOOM PROCUREMENT SERVICES LTD,"6,800.00",CAPITAL PS (EDUCATION),CONSTRUCTION FEES,5902592613,1000082531
04.08.2023,CHILDREN AND ADULT,PERMANENT FUTURES LTD,"3,000.00",CAPITAL PS (EDUCATION),ICT ACQUISITION,5902592632,1000089361
04.08.2023,CHILDREN AND ADULT,STANDAGE & CO LTD,"98,003.17",CAPITAL PS (SOC SERV),CONSTRUCTION,2103732224,4002817
04.08.2023,CHILDREN AND ADULT,PERMANENT FUTURES LTD,"2,375.00",CAPITAL PS (SOC SERV),ICT ACQUISITION,5902591879,1000089361
04.08.2023,CHILDREN AND FAMILIES,INDEPENDENT BIA LTD,300,ADOPTION SUPP FUND 3,EXTERNAL AGENCIES AND BODIES,5902591390,1000086264
04.08.2023,CHILDREN AND FAMILIES,REDACTED PERSONAL DATA,337.5,ADOPTION SUPP FUND 3,EXTERNAL AGENCIES AND BODIES,REDACTED,REDACTED
04.08.2023,CHILDREN AND FAMILIES,REDACTED PERSONAL DATA,607.5,ADOPTION SUPP FUND 3,EXTERNAL AGENCIES AND BODIES,REDACTED,REDACTED
04.08.2023,CHILDREN AND FAMILIES,CASTLE WATER LTD,328.91,CENTRAL SUPPORT,WATER,5902592589,1000078867
04.08.2023,CHILDREN AND FAMILIES,MCRAE RESIDENTIAL CARE SERVICES LTD,"18,923.64",CHILDREN�S RESID,RESIDENTIAL CARE,2103731746,1000050558
04.08.2023,CHILDREN AND FAMILIES,CAMERON & COOPER LIMITED,"17,980.00",CHILDREN�S RESID,RESIDENTIAL CARE,2103731748,1000087598
04.08.2023,CHILDREN AND FAMILIES,WESTGATE LIFESTYLE PROJECT LTD,"18,821.34",CHILDREN�S RESID,RESIDENTIAL CARE,2103731747,1000089215
04.08.2023,CHILDREN AND FAMILIES,REDACTED PERSONAL DATA,700,FOSTERING ALLOWANCES,ADDITIONAL PAYMENTS TO AGENCIES/CARERS,REDACTED,REDACTED
04.08.2023,CHILDREN AND FAMILIES,REDACTED PERSONAL DATA,400,FOSTERING ALLOWANCES,ADDITIONAL PAYMENTS TO AGENCIES/CARERS,REDACTED,REDACTED
04.08.2023,CHILDREN AND FAMILIES,REDACTED PERSONAL DATA,400,FOSTERING ALLOWANCES,ADDITIONAL PAYMENTS TO AGENCIES/CARERS,REDACTED,REDACTED
04.08.2023,CHILDREN AND FAMILIES,REDACTED PERSONAL DATA,400,FOSTERING ALLOWANCES,ADDITIONAL PAYMENTS TO AGENCIES/CARERS,REDACTED,REDACTED
04.08.2023,CHILDREN AND FAMILIES,REDACTED PERSONAL DATA,400,FOSTERING ALLOWANCES,ADDITIONAL PAYMENTS TO AGENCIES/CARERS,REDACTED,REDACTED
04.08.2023,CHILDREN AND FAMILIES,REDACTED PERSONAL DATA,400,FOSTERING ALLOWANCES,ADDITIONAL PAYMENTS TO AGENCIES/CARERS,REDACTED,REDACTED
04.08.2023,CHILDREN AND FAMILIES,REDACTED PERSONAL DATA,400,FOSTERING ALLOWANCES,ADDITIONAL PAYMENTS TO AGENCIES/CARERS,REDACTED,REDACTED
04.08.2023,CHILDREN AND FAMILIES,REDACTED PERSONAL DATA,400,FOSTERING ALLOWANCES,ADDITIONAL PAYMENTS TO AGENCIES/CARERS,REDACTED,REDACTED
04.08.2023,CHILDREN AND FAMILIES,REDACTED PERSONAL DATA,552,FOSTERING ALLOWANCES,ADDITIONAL PAYMENTS TO AGENCIES/CARERS,REDACTED,REDACTED
04.08.2023,CHILDREN AND FAMILIES,REDACTED PERSONAL DATA,882.15,FOSTERING ALLOWANCES,PAYMENTS TO CARERS,REDACTED,REDACTED
04.08.2023,CHILDREN AND FAMILIES,REDACTED PERSONAL DATA,"3,605.00",FOSTERING ALLOWANCES,PAYMENTS TO CARERS,REDACTED,REDACTED
04.08.2023,CHILDREN AND FAMILIES,REDACTED PERSONAL DATA,"-2,584.71",FOSTERING ALLOWANCES,PAYMENTS TO CARERS,REDACTED,REDACTED
04.08.2023,CHILDREN AND FAMILIES,REDACTED PERSONAL DATA,"2,500.14",FOSTERING ALLOWANCES,PAYMENTS TO CARERS,REDACTED,REDACTED
04.08.2023,CHILDREN AND FAMILIES,REDACTED PERSONAL DATA,"2,584.71",FOSTERING ALLOWANCES,PAYMENTS TO CARERS,REDACTED,REDACTED
04.08.2023,CHILDREN AND FAMILIES,FIVE RIVERS CHILD CARE LTD,"3,808.57",FRIENDS & FAMILY FOSTERING,EXTERNAL AGENCIES AND BODIES,2103731758,1000018792
04.08.2023,CHILDREN AND FAMILIES,NATIONAL FOSTERING AGENCY LTD,948.56,FRIENDS & FAMILY FOSTERING,EXTERNAL AGENCIES AND BODIES,2103731753,1000038868
04.08.2023,CHILDREN AND FAMILIES,NATIONAL FOSTERING AGENCY LTD,"3,373.93",FRIENDS & FAMILY FOSTERING,EXTERNAL AGENCIES AND BODIES,2103731751,1000038868
04.08.2023,CHILDREN AND FAMILIES,NATIONAL FOSTERING AGENCY LTD,"3,405.35",FRIENDS & FAMILY FOSTERING,EXTERNAL AGENCIES AND BODIES,2103731759,1000038868
04.08.2023,CHILDREN AND FAMILIES,NATIONAL FOSTERING AGENCY LTD,"3,410.00",FRIENDS & FAMILY FOSTERING,EXTERNAL AGENCIES AND BODIES,2103731752,1000038868
04.08.2023,CHILDREN AND FAMILIES,NATIONAL FOSTERING AGENCY LTD,"3,675.67",FRIENDS & FAMILY FOSTERING,EXTERNAL AGENCIES AND BODIES,2103731750,1000038868
04.08.2023,CHILDREN AND FAMILIES,NATIONAL FOSTERING AGENCY LTD,"6,332.68",FRIENDS & FAMILY FOSTERING,EXTERNAL AGENCIES AND BODIES,2103731749,1000038868
04.08.2023,CHILDREN AND FAMILIES,NATIONAL FOSTERING AGENCY LTD,"6,928.02",FRIENDS & FAMILY FOSTERING,EXTERNAL AGENCIES AND BODIES,2103731754,1000038868
04.08.2023,CHILDREN AND FAMILIES,SILVER LINING FOSTERING LTD,"3,432.14",FRIENDS & FAMILY FOSTERING,EXTERNAL AGENCIES AND BODIES,2103731757,1000087318
04.08.2023,CHILDREN AND FAMILIES,NURTURE FOSTERING LTD,"7,971.43",FRIENDS & FAMILY FOSTERING,EXTERNAL AGENCIES AND BODIES,2103731756,1000088623
04.08.2023,CHILDREN AND FAMILIES,REDACTED PERSONAL DATA,400,KINSHIP FOSTERING,COMPUTER CONSUMABLES,REDACTED,REDACTED
04.08.2023,CHILDREN AND FAMILIES,REDACTED PERSONAL DATA,750,KINSHIP FOSTERING,PAYMENTS TO CARERS,REDACTED,REDACTED
04.08.2023,CHILDREN AND FAMILIES,REDACTED PERSONAL DATA,500,LEAVING CARE GRANT,OTHER PAYMENTS FOR CLIENTS,REDACTED,REDACTED
04.08.2023,CHILDREN AND FAMILIES,REDACTED PERSONAL DATA,"1,000.00",LEAVING CARE GRANT,OTHER PAYMENTS FOR CLIENTS,REDACTED,REDACTED
04.08.2023,CHILDREN AND FAMILIES,MY LIFE SEMI-INDEPENDENT PROJECT LTD,"2,150.00",SEMI-IND CARELEAVERS,EXTERNAL AGENCIES AND BODIES,2103731765,1000075301
04.08.2023,CHILDREN AND FAMILIES,ELLIOT LEIGH TLC LTD,"2,765.51",SEMI-IND CARELEAVERS,EXTERNAL AGENCIES AND BODIES,2103731769,1000079022
04.08.2023,CHILDREN AND FAMILIES,YOUNG LONDON TODAY,"5,336.43",SEMI-IND LAC 16-17,EXTERNAL AGENCIES AND BODIES,2103731764,1000071232
04.08.2023,CHILDREN AND FAMILIES,E A JIGSAW CARE LIMITED,"7,707.86",SEMI-IND LAC 16-17,EXTERNAL AGENCIES AND BODIES,2103731761,1000084233
04.08.2023,CHILDREN AND FAMILIES,FAVOUR HEALTH LTD,"9,521.34",SEMI-IND LAC 16-17,EXTERNAL AGENCIES AND BODIES,2103731763,1000088976
04.08.2023,CHILDREN AND FAMILIES,YOUNG LONDON TODAY,300,SEMI-IND LAC 16-17,OTHER PAYMENTS FOR CLIENTS,2103731745,1000071232
04.08.2023,CHILDREN AND FAMILIES,REDACTED PERSONAL DATA,300,SEMI-IND LAC 16-17,OTHER PAYMENTS FOR CLIENTS,REDACTED,REDACTED
04.08.2023,CHILDREN AND FAMILIES,NURSERIES BY GYMFINITY KIDS MAIDSTONE,705,SPECIAL GUARDIANSHIP,EXTERNAL AGENCIES AND BODIES,5902591173,1000087919
04.08.2023,CHILDREN AND FAMILIES,STEP AHEAD SERVICES LTD,"2,125.71",UASC CARELEAVERS,EXTERNAL AGENCIES AND BODIES,2103731766,1000036544
04.08.2023,CHILDREN AND FAMILIES,ELLIOT LEIGH TLC LTD,"1,771.03",UASC CARELEAVERS,EXTERNAL AGENCIES AND BODIES,2103731768,1000079022
04.08.2023,COMMUNITIES,CITYGLEN LTD,"19,508.00",NO RECOURSE TO PUBLIC FUNDS,ACCOMMODATION CHARGES,5902592539,1000026239
04.08.2023,COMMUNITIES,NORBURY PROPERTY SERVICES (LONDON) LTD,"5,376.00",NO RECOURSE TO PUBLIC FUNDS,ACCOMMODATION CHARGES,5902592518,1000075566
04.08.2023,COMMUNITIES,STONEBRIDGE COMMUNITY LIVING LTD,875,NO RECOURSE TO PUBLIC FUNDS,ACCOMMODATION CHARGES,5902592587,1000088466
04.08.2023,COMMUNITIES,ART IN THE PARK,"2,000.00",NORTH EAST,GRANTS,5902590295,1000004690
04.08.2023,COMMUNITIES,AFRO-BRAZILIAN ARTS & CULTURAL EXCHANGE INSTITUTE,"4,500.00",NORTH WEST,GRANTS,5902592534,1000072302
04.08.2023,COMMUNITIES,STEPPING STONES,"3,524.00",SOUTH,GRANTS,5902592565,1000051807
04.08.2023,COMMUNITIES,REDACTED PERSONAL DATA,"1,000.00",UKRAINIAN PROGRAMME,GRANTS,REDACTED,REDACTED
04.08.2023,COMMUNITIES,REDACTED PERSONAL DATA,500,UKRAINIAN PROGRAMME,GRANTS,REDACTED,REDACTED
04.08.2023,COMMUNITIES,REDACTED PERSONAL DATA,500,UKRAINIAN PROGRAMME,GRANTS,REDACTED,REDACTED
04.08.2023,CORPORATE FACILITIES MANAGEMENT,CASTLE WATER LTD,819.67,BOURNEMOUTH GROVE,WATER,5902592636,1000078867
04.08.2023,CORPORATE FACILITIES MANAGEMENT,EDUFOCUS LIMITED,"4,999.00",CFM OPERATIONAL BUDGET,SOFTWARE,5902592544,1000061731
04.08.2023,CUSTOMER AND EXCHEQUER,DSI BILLING SERVICES LTD,"1,039.92",ADMINISTRATIVE SUPPORT,POSTAGES,5902591925,1000058640
04.08.2023,CUSTOMER AND EXCHEQUER,DSI BILLING SERVICES LTD,"1,844.35",ADMINISTRATIVE SUPPORT,POSTAGES,5902591925,1000058640
04.08.2023,CUSTOMER AND EXCHEQUER,POST OFFICE LTD,"23,847.60",DISCRETIONARY RATES REBATE,MISCELLANEOUS EXPENSES,5902592630,1000069858
04.08.2023,CUSTOMER AND EXCHEQUER,CAPITA BUSINESS SERVICES LTD,"31,200.00",INCOME MANAGEMENT,SOFTWARE,5902592564,1000006291
04.08.2023,CUSTOMER AND EXCHEQUER,CAPITA BUSINESS SERVICES LTD,"33,376.10",INCOME MANAGEMENT,SOFTWARE,5902592567,1000006291
04.08.2023,CUSTOMER EXPERIENCE,TAEHYUN BAEK,300,COMPLAINTS,PROFESSIONAL FEES,5902592523,1000090063
04.08.2023,CUSTOMER EXPERIENCE,EOIN O'SULLIVAN,300,COMPLAINTS,PROFESSIONAL FEES,5902592583,1000090064
04.08.2023,EDUCATION,MANCHESTER METROPOLITAN UNIVERSITY,"9,250.00",SCHOLARSHIP SCHEME,EXTERNAL AGENCIES AND BODIES,5902592628,1000052052
04.08.2023,ENV & LEIS,SOLACE GROUP,525,STRATEGIC DIRECTOR'S OFFICE E AND L,OTHER SUBSISTENCE & CONFERENCE EXPENSES,5902592489,1967877
04.08.2023,ENV&LEIS,LONDON NORTH WEST UNIVERSITY HEALTHCARE NHS TRUST,296.82,SEXUAL HEALTH - STI,MEDICAL / HEALTH & SAFETY SERVICES,5902592468,1000075293
04.08.2023,ENV&LEIS,CAMBRIDGE COMMUNITY SERVICES,379,SEXUAL HEALTH - STI,MEDICAL / HEALTH & SAFETY SERVICES,5902592464,1000076218
04.08.2023,ENVIRONMENT AND LEISURE,ROCKINGHAM COMMUNITY ASSOCIATION,"2,500.00",CAPITAL PS (LEISURE),CAPITAL GRANTS,5902591895,1000067131
04.08.2023,ENVIRONMENT AND LEISURE,F M CONWAY LTD,"5,345.98",CAPITAL PS (LEISURE),CONSTRUCTION,2103731710,4001384
04.08.2023,ENVIRONMENT AND LEISURE,TIM MOYA ASSOCIATES,"2,550.00",CAPITAL PS (REGEN),CONSTRUCTION FEES,5902592561,1000079572
04.08.2023,ENVIRONMENT DIRECTORATE,GRADKO INTERNATIONAL LTD,312.85,ENVIRONMENTAL PROTECTION,EQUIPMENT PURCHASE & REPAIR,5902591580,1000068330
04.08.2023,ENVIRONMENT DIRECTORATE,PERFORMANCE CHEMICALS LTD,"1,960.52",ESTATE CLEANING-GENERAL,MATERIALS,5902592562,1000037129
04.08.2023,ENVIRONMENT DIRECTORATE,HOBS REPROGRAPHICS PLC,"4,161.50",FOOD SAFETY,PRINTING,5902591509,1000062291
04.08.2023,ENVIRONMENT DIRECTORATE,I.S & G STEEL STOCKHOLDER LTD,395,GRANGE DOORS,GROUNDS MAINTENANCE,5902592601,1028293
04.08.2023,ENVIRONMENT DIRECTORATE,I.S & G STEEL STOCKHOLDER LTD,578,GRANGE DOORS,GROUNDS MAINTENANCE,5902592601,1028293
04.08.2023,ENVIRONMENT DIRECTORATE,F H BRUNDLE,"1,127.50",GRANGE DOORS,GROUNDS MAINTENANCE,5902592602,1082714
04.08.2023,ENVIRONMENT DIRECTORATE,CITY ELECTRICAL FACTORS LTD,341.27,PUBLIC LIGHTING,MATERIALS,5902592581,1003485
04.08.2023,ENVIRONMENT DIRECTORATE,CITY ELECTRICAL FACTORS LTD,587.4,PUBLIC LIGHTING,MATERIALS,5902592598,1003485
04.08.2023,ENVIRONMENT DIRECTORATE,CITY ELECTRICAL FACTORS LTD,"1,430.00",PUBLIC LIGHTING,MATERIALS,5902592600,1003485
04.08.2023,ENVIRONMENT DIRECTORATE,UK POWER NETWORKS (OPERATIONS) LTD,447,PUBLIC LIGHTING,OTHER CONTRACTORS,5902592606,1000016085
04.08.2023,ENVIRONMENT DIRECTORATE,UK POWER NETWORKS (OPERATIONS) LTD,447,PUBLIC LIGHTING,OTHER CONTRACTORS,5902592609,1000016085
04.08.2023,ENVIRONMENT DIRECTORATE,UK POWER NETWORKS (OPERATIONS) LTD,"1,439.00",PUBLIC LIGHTING,OTHER CONTRACTORS,5902592610,1000016085
04.08.2023,ENVIRONMENT DIRECTORATE,UK POWER NETWORKS (OPERATIONS) LTD,"1,439.00",PUBLIC LIGHTING,OTHER CONTRACTORS,5902592611,1000016085
04.08.2023,ENVIRONMENT DIRECTORATE,JOYRIDERS BRITAIN C.I.C,"15,073.75",STREETS FOR PEOPLE - CYCLING,MISCELLANEOUS RECHARGES,5902592455,1000089887
04.08.2023,ENVIRONMENT DIRECTORATE,TYCO INTEGRATED FIRE & SECURITY,300,TOWN CENTRE CCTV,OTHER CONTRACTORS,5902591762,1000077948
04.08.2023,HOUSING,BUILDTRUST LTD,"631,347.63",BUILD TRUST,I-WORLD CONTRACTORS HOLDING ACCOUNT,2103731711,3000002010
04.08.2023,HOUSING HRA,ANAYSSE-JACOBS SOLICITORS,"30,000.00",CAPITAL PS (HRA),CAPITAL GRANTS,2103730660,1000086247
04.08.2023,HOUSING HRA,CALFORD SEADEN LLP,630,CAPITAL PS (HRA),CONSTRUCTION FEES  - EXTERNAL,5902591541,1061592
04.08.2023,HOUSING HRA,SILVER DCC LTD,"1,245.13",CAPITAL PS (HRA),CONSTRUCTION FEES  - EXTERNAL,5902592370,1000087546
04.08.2023,HOUSING HRA,BY DEVELOPMENT LTD,"3,312,272.73",CAPITAL PS (HRA),CONSTRUCTION MAIN CONTRACT -CERTIFICATED,2103728809,3000002255
04.08.2023,HUMAN RESOURCES,MATRIX SCM LIMITED,"823,507.77",WEEKLY PAYMENTS,AGENCY STAFF,5902592487,1000089740
04.08.2023,LEISURE DIRECTORATE,LONDON WILDLIFE TRUST,"7,620.00",ENVIRONMENT & LEISURE GRANTS,OTHER CONTRACTORS,5902592608,1832374
04.08.2023,LEISURE DIRECTORATE,BANKSIDE OPEN SPACES TRUST,"4,914.25",ENVIRONMENT & LEISURE GRANTS,OTHER CONTRACTORS,5902592603,1000018290
04.08.2023,LEISURE DIRECTORATE,THE PLAY INSPECTION COMPANY LTD,"1,500.00",GRANTS COMMISSIONING,OTHER R&M,5902592591,1000072456
04.08.2023,LEISURE DIRECTORATE,RESTORE PLC,531.59,HERITAGE,INFORMATION MANAGEMENT,5902592637,1000077150
04.08.2023,LEISURE DIRECTORATE,SALIX MECHANICAL SERVICES LLP,289,LEISURE CENTRAL COST,BUILDING R&M,5902591565,1000088961
04.08.2023,LEISURE DIRECTORATE,SALIX MECHANICAL SERVICES LLP,289,LEISURE CENTRAL COST,BUILDING R&M,5902591567,1000088961
04.08.2023,LEISURE DIRECTORATE,SALIX MECHANICAL SERVICES LLP,310,LEISURE CENTRAL COST,BUILDING R&M,5902591574,1000088961
04.08.2023,LEISURE DIRECTORATE,SALIX MECHANICAL SERVICES LLP,310,LEISURE CENTRAL COST,BUILDING R&M,5902591575,1000088961
04.08.2023,LEISURE DIRECTORATE,SALIX MECHANICAL SERVICES LLP,506,LEISURE CENTRAL COST,BUILDING R&M,5902591572,1000088961
04.08.2023,LEISURE DIRECTORATE,SALIX MECHANICAL SERVICES LLP,622.93,LEISURE CENTRAL COST,BUILDING R&M,5902591561,1000088961
04.08.2023,LEISURE DIRECTORATE,SALIX MECHANICAL SERVICES LLP,766,LEISURE CENTRAL COST,BUILDING R&M,5902591568,1000088961
04.08.2023,LEISURE DIRECTORATE,SALIX MECHANICAL SERVICES LLP,911.57,LEISURE CENTRAL COST,BUILDING R&M,5902591563,1000088961
04.08.2023,LEISURE DIRECTORATE,ENVIRONMENT AGENCY,"1,438.00",SDM BUDGET,MATERIALS,5902592542,1000007201
04.08.2023,PLANNING & GROWTH,STRETTONS LIMITED,400,MAJOR APPLICATIONS,PROFESSIONAL FEES,5902592443,1000058926
04.08.2023,PLANNING & GROWTH,STRETTONS LIMITED,"2,437.50",MAJOR APPLICATIONS,PROFESSIONAL FEES,5902592593,1000058926
04.08.2023,PLANNING & GROWTH,AVISON YOUNG UK LIMITED,"3,515.00",STRATEGIC APPLICATIONS,PROFESSIONAL FEES,5902592623,1000016057
04.08.2023,PLANNING & GROWTH,LAKEDALE POWER TOOLS,289,TOWER WORKSHOPS,MATERIALS,5902592391,1015368
04.08.2023,PLANNING & GROWTH,LAKEDALE POWER TOOLS,300,TOWER WORKSHOPS,MATERIALS,5902592391,1015368
04.08.2023,PLANNING & GROWTH,SHERGROUP LTD,"1,250.00",VCS MANAGED MSC BUILDILNGS,SECURITY SERVICES,5902591850,1000087977
04.08.2023,RESIDENT SERVICES,HARROW GREEN LTD,"7,076.00",OPERATIONS/OFFICES ACCOMMODATION,REMOVAL EXPENSES,5902592594,1000076673
04.08.2023,RESIDENT SERVICES,COMPASS CONTRACT SERVICES (UK) LTD,"6,500.00",SUPPORTED HOSTELS,CATERING MATERIALS & SUPPLIES,5902592372,1000010625
04.08.2023,RESIDENT SERVICES,SHERGROUP LTD,"1,344.00",TRA HALLS (REPAIRS),SECURITY SERVICES,5902592635,1000087977
04.08.2023,RESIDENT SERVICES HGF,OMNIA HOUSING LTD,"4,448.15",HOMELESS PROJECTS,GRANTS,5902592422,1000083861
04.08.2023,RESIDENT SERVICES HGF,BFS GROUP LTD T/A BIDFOOD,327.59,JOE RICHARDS HOSTEL,CATERING MATERIALS & SUPPLIES,5902592586,1000089816
04.08.2023,RESIDENT SERVICES HGF,REDACTED PERSONAL DATA,"5,824.50",NIGHTLY TA (NSC),EXTERNAL AGENCIES AND BODIES,REDACTED,REDACTED
04.08.2023,RESIDENT SERVICES HGF,WENTWORTH HOUSING LTD,"58,506.30",PSL PLACEMENTS,EXTERNAL AGENCIES AND BODIES,5902592592,1000083640
04.08.2023,RESIDENT SERVICES HGF,DRISCOLL KINGSTON SOLICITORS,"2,500.00",PSL PLACEMENTS,PROFESSIONAL FEES,5902592642,1000082357
04.08.2023,RESIDENT SERVICES HGF,MX ESTATES LTD,"1,485.00",RAPID REHOUSING,EXTERNAL AGENCIES AND BODIES,5902592492,1000083639
04.08.2023,RESIDENT SERVICES HGF,MX ESTATES LTD,"1,534.50",RAPID REHOUSING,EXTERNAL AGENCIES AND BODIES,5902592493,1000083639
04.08.2023,RESIDENT SERVICES HGF,MX ESTATES LTD,"1,898.60",RAPID REHOUSING,EXTERNAL AGENCIES AND BODIES,5902592490,1000083639
04.08.2023,SBS OPERATIONS,PEARSON GLAZING LIMITED,299,BOROUGH & BANKSIDE DD,MATERIALS,5902592441,1891977
04.08.2023,SBS OPERATIONS,BEW ELECTRICAL DISTRIBUTORS LTD,673.06,BOROUGH & BANKSIDE DD,MATERIALS,5902592410,1000045371
04.08.2023,SBS OPERATIONS,TRAVIS PERKINS TRADING COMPANY LTD,301.32,NUNHEAD DD,MATERIALS,5902592452,1514319
04.08.2023,SBS OPERATIONS,N & C BUILDING MATERIALS,260.72,PECKHAM & DULWICH DD,MATERIALS,5902592377,1005586
04.08.2023,SBS OPERATIONS,AKW MEDI-CARE LTD,676.13,PECKHAM & DULWICH DD,MATERIALS,5902592378,1000047103
04.08.2023,SBS OPERATIONS,AKW MEDI-CARE LTD,925.41,PECKHAM & DULWICH DD,MATERIALS,5902592375,1000047103
04.08.2023,SBS OPERATIONS,PEARSON GLAZING LIMITED,260.6,SR COMMUNAL - MANAGEMENT,MATERIALS,5902592477,1891977
04.08.2023,SBS OPERATIONS,TRAVIS PERKINS TRADING COMPANY LTD,268.99,SR TEMPORARY ACCOMMODATION DD,MATERIALS,5902592433,1514319
04.08.2023,SBS OPERATIONS,HOWDENS JOINERY CO,265.14,SR TEMPORARY ACCOMMODATION DD,MATERIALS,5902592614,1000027491
04.08.2023,SBS OPERATIONS,TRAVIS PERKINS TRADING COMPANY LTD,265,TASK TEAM & HAT,MATERIALS,5902592452,1514319
04.08.2023,SBS OPERATIONS,TRAVIS PERKINS TRADING COMPANY LTD,300,TASK TEAM & HAT,MATERIALS,5902592452,1514319
04.08.2023,SBS OPERATIONS,TRAVIS PERKINS TRADING COMPANY LTD,421.02,TASK TEAM & HAT,MATERIALS,5902592433,1514319
04.08.2023,SBS OPERATIONS,TRAVIS PERKINS TRADING COMPANY LTD,"2,000.00",TASK TEAM & HAT,MATERIALS,5902592433,1514319
04.08.2023,SBS OPERATIONS,AKW MEDI-CARE LTD,274.68,TASK TEAM & HAT,MATERIALS,5902592385,1000047103
04.08.2023,SBS OPERATIONS,AKW MEDI-CARE LTD,291.85,TASK TEAM & HAT,MATERIALS,5902592388,1000047103
04.08.2023,SBS OPERATIONS,AKW MEDI-CARE LTD,324.75,TASK TEAM & HAT,MATERIALS,5902592390,1000047103
04.08.2023,SBS OPERATIONS,AKW MEDI-CARE LTD,355.81,TASK TEAM & HAT,MATERIALS,5902592387,1000047103
04.08.2023,SBS OPERATIONS,TRAVIS PERKINS TRADING COMPANY LTD,384.91,WALWORTH DD,MATERIALS,5902592433,1514319
04.08.2023,SBS OPERATIONS,BEW ELECTRICAL DISTRIBUTORS LTD,259.77,WALWORTH VOIDS,MATERIALS,5902592381,1000045371
04.08.2023,SBS OPERATIONS,BEW ELECTRICAL DISTRIBUTORS LTD,284.28,WALWORTH VOIDS,MATERIALS,5902592381,1000045371
04.08.2023,SBS SUPPORT,TRAVIS PERKINS TRADING COMPANY LTD,328.77,ANOMALOUS COSTS - RESTRICTED,MATERIALS,5902592452,1514319
04.08.2023,SOUTHWARK BUILDING SERVICES,MOULD GROWTH CONSULTANTS LTD,"2,056.00",STORES/LOGISTICS,CREDITORS -GR/IR CLEARING ACCOUNT,5902592408,1003075
04.08.2023,SOUTHWARK BUILDING SERVICES,MOULD GROWTH CONSULTANTS LTD,"3,506.00",STORES/LOGISTICS,CREDITORS -GR/IR CLEARING ACCOUNT,5902592408,1003075
04.08.2023,SOUTHWARK BUILDING SERVICES,EDWARDES BROS (DULWICH) LTD,"2,836.00",STORES/LOGISTICS,CREDITORS -GR/IR CLEARING ACCOUNT,5902592434,1004945
04.08.2023,SOUTHWARK BUILDING SERVICES,N & C BUILDING MATERIALS,414,STORES/LOGISTICS,CREDITORS -GR/IR CLEARING ACCOUNT,5902592415,1005586
04.08.2023,SOUTHWARK BUILDING SERVICES,N & C BUILDING MATERIALS,920,STORES/LOGISTICS,CREDITORS -GR/IR CLEARING ACCOUNT,5902592416,1005586
04.08.2023,SOUTHWARK BUILDING SERVICES,N & C BUILDING MATERIALS,"1,230.00",STORES/LOGISTICS,CREDITORS -GR/IR CLEARING ACCOUNT,5902592498,1005586
04.08.2023,SOUTHWARK BUILDING SERVICES,N & C BUILDING MATERIALS,"1,977.60",STORES/LOGISTICS,CREDITORS -GR/IR CLEARING ACCOUNT,5902592415,1005586
04.08.2023,SOUTHWARK BUILDING SERVICES,N & C BUILDING MATERIALS,"5,113.60",STORES/LOGISTICS,CREDITORS -GR/IR CLEARING ACCOUNT,5902592416,1005586
04.08.2023,SOUTHWARK BUILDING SERVICES,N & C BUILDING MATERIALS,"5,113.60",STORES/LOGISTICS,CREDITORS -GR/IR CLEARING ACCOUNT,5902592417,1005586
04.08.2023,SOUTHWARK BUILDING SERVICES,"BROWNING, JONES & MORRIS LTD","1,078.80",STORES/LOGISTICS,CREDITORS -GR/IR CLEARING ACCOUNT,5902592389,1027429
04.08.2023,SOUTHWARK BUILDING SERVICES,"BROWNING, JONES & MORRIS LTD","1,079.40",STORES/LOGISTICS,CREDITORS -GR/IR CLEARING ACCOUNT,5902592389,1027429
04.08.2023,SOUTHWARK BUILDING SERVICES,"BROWNING, JONES & MORRIS LTD","1,917.60",STORES/LOGISTICS,CREDITORS -GR/IR CLEARING ACCOUNT,5902592389,1027429
04.08.2023,SOUTHWARK BUILDING SERVICES,"BROWNING, JONES & MORRIS LTD","2,598.00",STORES/LOGISTICS,CREDITORS -GR/IR CLEARING ACCOUNT,5902592389,1027429
04.08.2023,SOUTHWARK BUILDING SERVICES,TRAVIS PERKINS TRADING COMPANY LTD,-387.9,STORES/LOGISTICS,CREDITORS -GR/IR CLEARING ACCOUNT,5902592641,1514319
04.08.2023,SOUTHWARK BUILDING SERVICES,TRAVIS PERKINS TRADING COMPANY LTD,700,STORES/LOGISTICS,CREDITORS -GR/IR CLEARING ACCOUNT,5902592452,1514319
04.08.2023,SOUTHWARK BUILDING SERVICES,TRAVIS PERKINS TRADING COMPANY LTD,700,STORES/LOGISTICS,CREDITORS -GR/IR CLEARING ACCOUNT,5902592452,1514319
04.08.2023,SOUTHWARK BUILDING SERVICES,MARTIN VITERA LTD,548,STORES/LOGISTICS,CREDITORS -GR/IR CLEARING ACCOUNT,5902592435,1560597
04.08.2023,SOUTHWARK BUILDING SERVICES,BEW ELECTRICAL DISTRIBUTORS LTD,"1,798.50",STORES/LOGISTICS,CREDITORS -GR/IR CLEARING ACCOUNT,5902592484,1000045371
04.08.2023,SOUTHWARK BUILDING SERVICES,BEW ELECTRICAL DISTRIBUTORS LTD,"2,408.00",STORES/LOGISTICS,CREDITORS -GR/IR CLEARING ACCOUNT,5902592484,1000045371
04.08.2023,SOUTHWARK BUILDING SERVICES,BEW ELECTRICAL DISTRIBUTORS LTD,"3,454.00",STORES/LOGISTICS,CREDITORS -GR/IR CLEARING ACCOUNT,5902592484,1000045371
04.08.2023,SOUTHWARK BUILDING SERVICES,BEW ELECTRICAL DISTRIBUTORS LTD,"3,712.00",STORES/LOGISTICS,CREDITORS -GR/IR CLEARING ACCOUNT,5902592484,1000045371
04.08.2023,SOUTHWARK BUILDING SERVICES,BEW ELECTRICAL DISTRIBUTORS LTD,"4,042.00",STORES/LOGISTICS,CREDITORS -GR/IR CLEARING ACCOUNT,5902592484,1000045371
04.08.2023,SOUTHWARK BUILDING SERVICES,BEW ELECTRICAL DISTRIBUTORS LTD,"4,738.00",STORES/LOGISTICS,CREDITORS -GR/IR CLEARING ACCOUNT,5902592484,1000045371
04.08.2023,SOUTHWARK BUILDING SERVICES,CORBYS & CO,580,STORES/LOGISTICS,CREDITORS -GR/IR CLEARING ACCOUNT,5902592393,1000055320
04.08.2023,SOUTHWARK BUILDING SERVICES,CORBYS & CO,795,STORES/LOGISTICS,CREDITORS -GR/IR CLEARING ACCOUNT,5902592393,1000055320
04.08.2023,SOUTHWARK BUILDING SERVICES,A T & T (GB LTD ),954,STORES/LOGISTICS,CREDITORS -GR/IR CLEARING ACCOUNT,5902592497,1000078342
04.08.2023,SOUTHWARK BUILDING SERVICES,A T & T (GB LTD ),"1,805.00",STORES/LOGISTICS,CREDITORS -GR/IR CLEARING ACCOUNT,5902592497,1000078342
05.08.2023,ASSET MANAGEMENT,INTERIM PARTNERS LIMITED,"11,250.00",AM TRANSFORMATION COSTS,CONSULTANTS SERVICES,5902591914,1000089772
05.08.2023,ASSET MANAGEMENT,BRIDGEWATER ROOFING CONTRACTORS LTD,"1,452.00",REPAIRS OPERATIONS,BUILDING R&M,2103731287,3000001482
05.08.2023,CENTRAL FUNCTIONS,1ST ACE SECURITY LTD,"30,200.10",LAKANAL (TENANCY),SECURITY SERVICES,5902592126,1000006992
05.08.2023,CHIEF EXECUTIVE,MACE LTD,"10,748.08",CAPITAL PS (REGEN),CONSTRUCTION FEES,5902591920,1000067959
05.08.2023,CHILDREN AND ADULT,PRIDE DEVELOPMENTS,"3,525.87",CAPITAL PS (SOC SERV),CONSTRUCTION MAIN CONTRACT,2103731427,3000002126
05.08.2023,CHILDREN AND ADULT,PRIDE DEVELOPMENTS,"9,193.58",CAPITAL PS (SOC SERV),CONSTRUCTION MAIN CONTRACT,2103731658,3000002126
05.08.2023,CHILDREN AND FAMILIES,FAMILY FUTURES CIC,"2,098.00",ADOPTION SUPP FUND 2,EXTERNAL AGENCIES AND BODIES,5902591592,1000027893
05.08.2023,CHILDREN AND FAMILIES,REDACTED PERSONAL DATA,750,ADOPTION SUPP FUND 2,EXTERNAL AGENCIES AND BODIES,REDACTED,REDACTED
05.08.2023,CHILDREN AND FAMILIES,REDACTED PERSONAL DATA,"1,210.50",ADOPTION SUPP FUND 2,EXTERNAL AGENCIES AND BODIES,REDACTED,REDACTED
05.08.2023,CHILDREN AND FAMILIES,REDACTED PERSONAL DATA,"2,209.50",ADOPTION SUPP FUND 2,EXTERNAL AGENCIES AND BODIES,REDACTED,REDACTED
05.08.2023,CHILDREN AND FAMILIES,FAMILY FUTURES CIC,900,ADOPTION SUPP FUND 3,EXTERNAL AGENCIES AND BODIES,5902591589,1000027893
05.08.2023,CHILDREN AND FAMILIES,THE SENSORY SMART CHILD LTD,374,ADOPTION SUPP FUND 3,EXTERNAL AGENCIES AND BODIES,5902591628,1000085374
05.08.2023,CHILDREN AND FAMILIES,THE SENSORY SMART CHILD LTD,499,ADOPTION SUPP FUND 3,EXTERNAL AGENCIES AND BODIES,5902591626,1000085374
05.08.2023,CHILDREN AND FAMILIES,REDACTED PERSONAL DATA,"2,400.00",ADOPTION SUPP FUND 3,EXTERNAL AGENCIES AND BODIES,REDACTED,REDACTED
05.08.2023,COMMISSIONING & CENTRAL,BRESLIN CONSTRUCTION LTD,600,COMMISSIONING DIRECTORATE,SECURITY EQUIPMENT F&F,5902591786,1000078031
05.08.2023,COMMUNITIES,SOUTHWARK CITIZENS ADVICE,"50,000.00",LEGAL GRANTS,GRANTS,5902591667,1874379
05.08.2023,COMMUNITIES,HAWKSTONE T&RA,"1,000.00",NORTH EAST,GRANTS,5902591617,1000089123
05.08.2023,ENVIRONMENT AND LEISURE,RH WROUGHT IRON,"2,000.00",CAPITAL PS (LEISURE),CONSTRUCTION FEES - INTERNAL,2103732216,3000000680
05.08.2023,ENVIRONMENT AND LEISURE,PELLINGS LLP,480,CAPITAL PS (LEISURE),CONSTRUCTION SITE COSTS,5902591842,1009262
05.08.2023,ENVIRONMENT DIRECTORATE,CITY OF LONDON CORPORATION,"1,440.10",LICENSING,PROFESSIONAL FEES,5902592002,1000052061
05.08.2023,ENVIRONMENT DIRECTORATE,INSTITUTE OF LICENCE (EVENTS) LTD,380,LICENSING,TRAINING,5902592303,1000054694
05.08.2023,ENVIRONMENT DIRECTORATE,SPECIALIST COATINGS INTERNATIONAL LTD,"2,200.00",STREET CLEANING-GENERAL,MATERIALS,5902591985,1000085816
05.08.2023,HOUSING GENERAL FUND,DAVID MILES & PARTNERS LTD,"7,027.78",CAPITAL PS (REGEN),CONSTRUCTION MAIN CONTRACT,5902592175,1000001119
05.08.2023,HOUSING HRA,XC02 ENERGY LTD,"1,000.00",CAPITAL PS (HRA),CONSTRUCTION FEES,5902592485,1000050094
05.08.2023,HOUSING HRA,CALFORD SEADEN LLP,"1,677.00",CAPITAL PS (HRA),CONSTRUCTION FEES  - EXTERNAL,5902592488,1061592
05.08.2023,HOUSING HRA,EQUANS REGENERATION (APOLLO) LTD,"2,327.60",CAPITAL PS (HRA),CONSTRUCTION MAIN CONTRACT -CERTIFICATED,2103730809,4000449
05.08.2023,HOUSING HRA,EQUANS REGENERATION (APOLLO) LTD,"2,539.20",CAPITAL PS (HRA),CONSTRUCTION MAIN CONTRACT -CERTIFICATED,2103730807,4000449
05.08.2023,HOUSING HRA,A & E ELKINS LTD,"7,776.83",CAPITAL PS (HRA),CONSTRUCTION MAIN CONTRACT -CERTIFICATED,2103731286,4012501
05.08.2023,LEISURE DIRECTORATE,A B KEY LLP,310,SDM BUDGET,EQUIPMENT PURCHASE & REPAIR,5902591560,1000036348
05.08.2023,PLANNING & GROWTH,ATITLAN CONSULTING LIMITED,"2,300.00",OKR MASTER PLANNING,PROFESSIONAL FEES,5902591749,1000089982
05.08.2023,SOUTHWARK BUILDING SERVICES,N & C BUILDING MATERIALS,255.68,STORES/LOGISTICS,CREDITORS -GR/IR CLEARING ACCOUNT,5902592412,1005586
06.08.2023,ADULT SOCIAL CARE,RIVERSIDE,"35,100.00",S75 SUPHSG SCH LBS LEAD,EXTERNAL AGENCIES AND BODIES,5902591892,11134939
06.08.2023,ASSET MANAGEMENT,FRANKHAM CONSULTANCY GROUP LTD,255,MAJOR REPAIRS,BUILDING R&M,5902592150,1000043952
06.08.2023,ASSET MANAGEMENT,FRANKHAM CONSULTANCY GROUP LTD,489,REPAIRS OPERATIONS,BUILDING R&M,5902592097,1000043952
06.08.2023,CHIEF EXECUTIVE,SHERGROUP LTD,"3,360.00",CAPITAL PS (REGEN),CONSTRUCTION SITE COSTS,5902591811,1000087977
06.08.2023,COMMUNITIES,J C CONSULTANT SERVICES LTD,"12,639.00",RADAR-IOM,PROFESSIONAL FEES,5902592068,1000042476
06.08.2023,CORPORATE FACILITIES MANAGEMENT,GREENHAM TRADING LTD,726,FM SERVICES BY INTERSERVE,INTEGRATED FACILITIES MANAGEMENT CONTRACT,5902591981,1000006610
06.08.2023,CORPORATE FACILITIES MANAGEMENT,GREENHAM TRADING LTD,"4,609.30",FM SERVICES BY INTERSERVE,INTEGRATED FACILITIES MANAGEMENT CONTRACT,5902591980,1000006610
06.08.2023,ENV&LEIS,BARTS HEALTH NHS TRUST,"13,705.41",SEXUAL HEALTH - STI,MEDICAL / HEALTH & SAFETY SERVICES,5902592456,1000055762
06.08.2023,ENVIRONMENT DIRECTORATE,GREENHAM TRADING LTD,367.77,ESTATE CLEANING-GENERAL,MATERIALS,5902591953,1000006610
06.08.2023,ENVIRONMENT DIRECTORATE,COMMUNITY MATTERS MEDIA LIMITED,"1,044.00",HIGHWAYS DEVELOPMENT,MARKETING & PUBLICITY SERVICES,5902591877,1556957
06.08.2023,ENVIRONMENT DIRECTORATE,INSTITUTE OF LICENCE (EVENTS) LTD,380,LICENSING,TRAINING,5902592306,1000054694
06.08.2023,ENVIRONMENT DIRECTORATE,PROJECT CENTRE LTD,"11,550.00",PROJECT SUPPORT,OTHER CONTRACTORS,5902592625,1000072621
06.08.2023,HOUSING HRA,IGLOO REGENERATION LIMITED,"11,755.13",CAPITAL PS (HRA),CONSTRUCTION FEES,5902592624,1000083117
06.08.2023,LEISURE DIRECTORATE,INFINITY NETWORKS LTD,972,CANADA WATER LIBRARY,COMMS & COMPUTING CONTRACT CHARGES,5902592509,1000035571
06.08.2023,LEISURE DIRECTORATE,CITY HOPE CHURCH,"2,500.00",GRANTS COMMISSIONING,GRANTS,5902591949,1000035253
06.08.2023,LEISURE DIRECTORATE,STEPHANIE SOMMET,458.33,HERITAGE,TRAINING,5902591864,1000085335
06.08.2023,LEISURE DIRECTORATE,SOFTCAT PLC,"1,152.63",LEISURE INSOURCING MOBILISATION COST,CONSULTANTS SERVICES,5902592004,1000088809
06.08.2023,LEISURE DIRECTORATE,SOFTCAT PLC,"3,147.37",LEISURE INSOURCING MOBILISATION COST,CONSULTANTS SERVICES,5902591983,1000088809
06.08.2023,LEISURE DIRECTORATE,SAFESTORE LTD (SLOUGH),511.84,LIBRARIES DEVELOPMENT,EXTERNAL AGENCIES AND BODIES,5902592077,1000088931
06.08.2023,PUBLIC HEALTH,IMPROVING HEALTH LTD,843.33,COVID-19 VACCINATION SUPPORT,MEDICAL / HEALTH & SAFETY SERVICES,5902592010,1000079313
06.08.2023,PUBLIC HEALTH,IMPROVING HEALTH LTD,"1,133.33",COVID-19 VACCINATION SUPPORT,MEDICAL / HEALTH & SAFETY SERVICES,5902592011,1000079313
06.08.2023,SBS SUPPORT,T M SERVICES & SPARES LTD,268.8,DEPOT COSTS,MATERIALS,5902592438,1000070497
06.08.2023,SBS SUPPORT,T M SERVICES & SPARES LTD,327.75,DEPOT COSTS,MATERIALS,5902592438,1000070497
06.08.2023,SBS SUPPORT,T M SERVICES & SPARES LTD,364.35,DEPOT COSTS,MATERIALS,5902592438,1000070497
06.08.2023,SBS SUPPORT,T M SERVICES & SPARES LTD,462.5,DEPOT COSTS,MATERIALS,5902592438,1000070497
07.08.2023,ADULT SOCIAL CARE,MEDACS HOMECARE,"1,213.84",LD LTS 18-64,SUPPORTED LIVING,2103732303,11287415
07.08.2023,ADULT SOCIAL CARE,THE FRANCES TAYLOR FOUNDATION,742.2,LD LTS 18-64,SUPPORTED LIVING,2103732256,1000007274
07.08.2023,ADULT SOCIAL CARE,MEDACS HOMECARE,"1,112.65",MH LTS 65+,HOMECARE - C&V,2103732288,11287415
07.08.2023,ADULT SOCIAL CARE,MEDACS HOMECARE,313.37,PHY LTS 65+,HOMECARE - C&V,2103732294,11287415
07.08.2023,ADULT SOCIAL CARE,MEDACS HOMECARE,445.14,PHY LTS 65+,HOMECARE - C&V,2103732304,11287415
07.08.2023,ADULT SOCIAL CARE,MEDACS HOMECARE,872.28,PHY LTS 65+,HOMECARE - C&V,2103732293,11287415
07.08.2023,ADULT SOCIAL CARE,MEDACS HOMECARE,"1,092.42",PHY LTS 65+,HOMECARE - C&V,2103732284,11287415
07.08.2023,ADULT SOCIAL CARE,MEDACS HOMECARE,"1,382.72",PHY LTS 65+,HOMECARE - C&V,2103732286,11287415
07.08.2023,ADULT SOCIAL CARE,MEDACS HOMECARE,"2,040.02",PHY LTS 65+,HOMECARE - C&V,2103732287,11287415
07.08.2023,ADULT SOCIAL CARE,MEDACS HOMECARE,"3,528.00",PHY LTS 65+,HOMECARE - C&V,2103732306,11287415
07.08.2023,ADULT SOCIAL CARE,MEDACS HOMECARE,"4,334.29",PHY LTS 65+,HOMECARE - C&V,2103732285,11287415
07.08.2023,ADULT SOCIAL CARE,MEDACS HOMECARE,474.66,PHY STS 18-64,HOMECARE - IC,2103732308,11287415
07.08.2023,ADULT SOCIAL CARE,MEDACS HOMECARE,732.93,PHY STS 65+,HOMECARE - IC,2103732291,11287415
07.08.2023,ADULT SOCIAL CARE,MEDACS HOMECARE,"1,840.92",PHY STS 65+,HOMECARE - IC,2103732282,11287415
07.08.2023,ADULT SOCIAL CARE,ROMEDICAL LTD,"2,958.88",SAFEGUARDING & DOLS,OTHER CONTRACTORS,5902592652,1000076318
07.08.2023,ADULT SOCIAL CARE,MEDACS HOMECARE,481.79,SOCIAL ISOLATION,HOMECARE - C&V,2103732307,11287415
07.08.2023,ADULT SOCIAL CARE,KENT COUNTY COUNCIL - LASER,"2,773.70",SOUTHWARK RESOURCE CENTRE,ELECTRICITY,5902592643,1000012926
07.08.2023,ADULT SOCIAL CARE,REDACTED PERSONAL DATA,-714.21,SPECIALIST CARE,PAYMENTS TO CLIENTS (DIRECT PAYMENTS),REDACTED,REDACTED
07.08.2023,ADULT SOCIAL CARE,REDACTED PERSONAL DATA,792.78,SPECIALIST CARE,PAYMENTS TO CLIENTS (DIRECT PAYMENTS),REDACTED,REDACTED
07.08.2023,ASSET MANAGEMENT,SBW LAW LIMITED,"1,250.00",DISREPAIR,PAYMENTS FOR LEGAL SERVICES,2103721865,1000085191
07.08.2023,ASSET MANAGEMENT,LONDON FIRE BRIGADE,364,LIFTS,LIFTS,5902592797,1000083629
07.08.2023,ASSET MANAGEMENT,LONDON FIRE BRIGADE,364,LIFTS,LIFTS,5902592798,1000083629
07.08.2023,ASSET MANAGEMENT,TRAVIS PERKINS TRADING COMPANY LTD,262,R&M CONTRACTS (SOUTH),MATERIALS,5902592771,1514319
07.08.2023,ASSET MANAGEMENT,TRAVIS PERKINS TRADING COMPANY LTD,275,R&M CONTRACTS (SOUTH),MATERIALS,5902592771,1514319
07.08.2023,ASSET MANAGEMENT,TRAVIS PERKINS TRADING COMPANY LTD,295.34,R&M CONTRACTS (SOUTH),MATERIALS,5902592772,1514319
07.08.2023,ASSET MANAGEMENT,TRAVIS PERKINS TRADING COMPANY LTD,825,R&M CONTRACTS (SOUTH),MATERIALS,5902592772,1514319
07.08.2023,ASSET MANAGEMENT,TRAVIS PERKINS TRADING COMPANY LTD,"1,310.00",R&M CONTRACTS (SOUTH),MATERIALS,5902592772,1514319
07.08.2023,ASSET MANAGEMENT,TRAVIS PERKINS TRADING COMPANY LTD,"1,471.75",R&M CONTRACTS (SOUTH),MATERIALS,5902592771,1514319
07.08.2023,ASSET MANAGEMENT,TRAVIS PERKINS TRADING COMPANY LTD,"2,733.25",R&M CONTRACTS (SOUTH),MATERIALS,5902592772,1514319
07.08.2023,CHIEF EXECUTIVE,PURCELL ARCHITECTURE LTD,"12,429.55",CAPITAL PS (REGEN),CONSTRUCTION FEES  - EXTERNAL,5902592292,1000082955
07.08.2023,CHIEF EXECUTIVE,BLACK BLOSSOMS SCH OF ART & CULTURE,600,CAPITAL PS (REGEN),CONSTRUCTION FEES  - EXTERNAL,5902592859,1000088625
07.08.2023,CHIEF EXECUTIVE,BLACK BLOSSOMS SCH OF ART & CULTURE,750,CAPITAL PS (REGEN),CONSTRUCTION FEES  - EXTERNAL,5902592859,1000088625
07.08.2023,CHIEF EXECUTIVE,BLACK BLOSSOMS SCH OF ART & CULTURE,"2,300.00",CAPITAL PS (REGEN),CONSTRUCTION FEES  - EXTERNAL,5902592859,1000088625
07.08.2023,CHIEF EXECUTIVE'S OFFICE,STEP AHEAD SOCIAL ENTERPRISE CIC,"32,265.92",CHIEF EXECUTIVE'S OFFICE,EXTERNAL AGENCIES AND BODIES,5902592818,1000076420
07.08.2023,CHIEF EXECUTIVE'S OFFICE,GET SKILLS EMPLOYMENT & TRAINING LTD,"27,083.33",CHIEF EXECUTIVE'S OFFICE,EXTERNAL AGENCIES AND BODIES,5902592819,1000078927
07.08.2023,CHIEF EXECUTIVE'S OFFICE,LITTLE LA BODEGUITA LTD T/A COMA Y BEBA,"29,712.62",ELEPHANT & CASTLE,GRANTS,5902592815,1000088362
07.08.2023,CHIEF EXECUTIVE'S OFFICE,HATCH ENTERPRISE,"-5,000.00",SOUTHWARK PIONEER FUND,EXTERNAL AGENCIES AND BODIES,5902592793,1000082676
07.08.2023,CHIEF EXECUTIVE'S OFFICE,HATCH ENTERPRISE,"86,000.00",SOUTHWARK PIONEER FUND,EXTERNAL AGENCIES AND BODIES,5902592791,1000082676
07.08.2023,CHILDREN AND ADULT,WILL JACOB,"5,972.50",CAPITAL PS (EDUCATION),CONSTRUCTION FEES - INTERNAL,5902592868,1000080488
07.08.2023,CHILDREN AND ADULT,ENGLISH MARTYRS RC PRIMARY SCHOOL,"13,258.36",CAPITAL PS (EDUCATION),CONSTRUCTION FEES - INTERNAL,5902592867,5001000030
07.08.2023,CHILDREN AND ADULT,PRIDE DEVELOPMENTS,"2,792.46",CAPITAL PS (SOC SERV),CONSTRUCTION MAIN CONTRACT,2103732250,3000002126
07.08.2023,CHILDREN AND FAMILIES,REDACTED PERSONAL DATA,340,ADOPTION SUPP FUND 2,EXTERNAL AGENCIES AND BODIES,REDACTED,REDACTED
07.08.2023,CHILDREN AND FAMILIES,REDACTED PERSONAL DATA,400,ADOPTION SUPP FUND 3,EXTERNAL AGENCIES AND BODIES,REDACTED,REDACTED
07.08.2023,CHILDREN AND FAMILIES,REDACTED PERSONAL DATA,340,ADOPTION SUPP FUND 3,EXTERNAL AGENCIES AND BODIES,REDACTED,REDACTED
07.08.2023,CHILDREN AND FAMILIES,MCRAE RESIDENTIAL CARE SERVICES LTD,"14,772.12",CHILDREN�S RESID,RESIDENTIAL CARE,2103732279,1000050558
07.08.2023,CHILDREN AND FAMILIES,REDACTED PERSONAL DATA,"21,700.00",CHILDREN�S RESID,RESIDENTIAL CARE,REDACTED,REDACTED
07.08.2023,CHILDREN AND FAMILIES,GREATER LONDON FOSTERING,"3,716.03",FRIENDS & FAMILY FOSTERING,EXTERNAL AGENCIES AND BODIES,2103732265,1000029184
07.08.2023,CHILDREN AND FAMILIES,GREATER LONDON FOSTERING,"4,596.74",FRIENDS & FAMILY FOSTERING,EXTERNAL AGENCIES AND BODIES,2103732262,1000029184
07.08.2023,CHILDREN AND FAMILIES,GREATER LONDON FOSTERING,"5,064.53",FRIENDS & FAMILY FOSTERING,EXTERNAL AGENCIES AND BODIES,2103732267,1000029184
07.08.2023,CHILDREN AND FAMILIES,ASCENT FOSTERING AGENCY LTD,625.4,FRIENDS & FAMILY FOSTERING,EXTERNAL AGENCIES AND BODIES,2103732264,1000074714
07.08.2023,CHILDREN AND FAMILIES,REGIONAL FOSTERING SERVICES LTD,"3,337.33",FRIENDS & FAMILY FOSTERING,EXTERNAL AGENCIES AND BODIES,2103732261,1000080112
07.08.2023,CHILDREN AND FAMILIES,REGIONAL FOSTERING SERVICES LTD,"3,512.96",FRIENDS & FAMILY FOSTERING,EXTERNAL AGENCIES AND BODIES,2103732263,1000080112
07.08.2023,CHILDREN AND FAMILIES,FUTURE FOUNDATIONS LTD,-875,SEMI-IND CARELEAVERS,COSTS RECOVERED,2103731662,1000063272
07.08.2023,CHILDREN AND FAMILIES,FUTURE FOUNDATIONS LTD,-875,SEMI-IND CARELEAVERS,COSTS RECOVERED,2103731701,1000063272
07.08.2023,CHILDREN AND FAMILIES,FUTURE FOUNDATIONS LTD,-798.87,SEMI-IND CARELEAVERS,COSTS RECOVERED,2103731663,1000063272
07.08.2023,CHILDREN AND FAMILIES,FUTURE FOUNDATIONS LTD,"1,722.71",SEMI-IND CARELEAVERS,EXTERNAL AGENCIES AND BODIES,2103732268,1000063272
07.08.2023,CHILDREN AND FAMILIES,FUTURE FOUNDATIONS LTD,"1,722.71",SEMI-IND CARELEAVERS,EXTERNAL AGENCIES AND BODIES,2103732269,1000063272
07.08.2023,CHILDREN AND FAMILIES,FUTURE FOUNDATIONS LTD,"1,722.71",SEMI-IND CARELEAVERS,EXTERNAL AGENCIES AND BODIES,2103732273,1000063272
07.08.2023,CHILDREN AND FAMILIES,FUTURE FOUNDATIONS LTD,"1,568.28",SEMI-IND LAC 16-17,EXTERNAL AGENCIES AND BODIES,2103731601,1000063272
07.08.2023,CHILDREN AND FAMILIES,FRESH START CARE SOLUTIONS LTD,"21,478.57",SEMI-IND LAC 16-17,EXTERNAL AGENCIES AND BODIES,2103732277,1000070537
07.08.2023,CHILDREN AND FAMILIES,FRESH START CARE SOLUTIONS LTD,265.71,SEMI-IND LAC 16-17,OTHER PAYMENTS FOR CLIENTS,2103732276,1000070537
07.08.2023,CHILDREN AND FAMILIES,GREATER LONDON FOSTERING,"1,882.01",STAYPUT- FOST CARERS,EXTERNAL AGENCIES AND BODIES,2103732272,1000029184
07.08.2023,CHILDREN AND FAMILIES,GREATER LONDON FOSTERING,"2,214.02",STAYPUT- FOST CARERS,EXTERNAL AGENCIES AND BODIES,2103732271,1000029184
07.08.2023,CHILDREN AND FAMILIES,FUTURE FOUNDATIONS LTD,"-1,706.00",UASC CARELEAVERS,COSTS RECOVERED,2103731664,1000063272
07.08.2023,CHILDREN AND FAMILIES,FUTURE FOUNDATIONS LTD,-875,UASC CARELEAVERS,COSTS RECOVERED,2103731660,1000063272
07.08.2023,CHILDREN AND FAMILIES,FUTURE FOUNDATIONS LTD,-853,UASC CARELEAVERS,COSTS RECOVERED,2103731702,1000063272
07.08.2023,COMMISSIONING & CENTRAL,BRESLIN CONSTRUCTION LTD,300,COMMISSIONING DIRECTORATE,SECURITY EQUIPMENT F&F,5902592104,1000078031
07.08.2023,COMMUNITIES,SK HOUSING LTD,"1,488.00",NO RECOURSE TO PUBLIC FUNDS,ACCOMMODATION CHARGES,5902592679,1000070716
07.08.2023,COMMUNITIES,ZFA ACCOMMODATION LTD,"6,728.00",NO RECOURSE TO PUBLIC FUNDS,ACCOMMODATION CHARGES,5902592795,1000082620
07.08.2023,COMMUNITIES,ZFA ACCOMMODATION LTD,"24,618.00",NO RECOURSE TO PUBLIC FUNDS,ACCOMMODATION CHARGES,5902592795,1000082620
07.08.2023,COMMUNITIES,MX ESTATES LTD,"6,417.00",NO RECOURSE TO PUBLIC FUNDS,ACCOMMODATION CHARGES,5902592691,1000083639
07.08.2023,COMMUNITIES,MEDACS HOMECARE,323.68,NO RECOURSE TO PUBLIC FUNDS,HOMECARE - C&V,2103732289,11287415
07.08.2023,COMMUNITIES,MEDACS HOMECARE,496.04,NO RECOURSE TO PUBLIC FUNDS,HOMECARE - C&V,2103732301,11287415
07.08.2023,COMMUNITIES,MEDACS HOMECARE,"1,178.43",NO RECOURSE TO PUBLIC FUNDS,HOMECARE - C&V,2103732309,11287415
07.08.2023,COMMUNITIES,SOUTH LONDON MISSION,"10,000.00",NORTH WEST,GRANTS,5902592745,1000047855
07.08.2023,COMMUNITIES,BERMONDSEY STREET FESTIVAL,"9,000.00",NORTH WEST,GRANTS,5902592718,1000074541
07.08.2023,COMMUNITIES,MINT STREET MUSIC FESTIVAL CIC,"4,739.00",NORTH WEST,GRANTS,5902592748,1000088500
07.08.2023,COMMUNITIES,REDACTED PERSONAL DATA,500,UKRAINIAN PROGRAMME,GRANTS,REDACTED,REDACTED
07.08.2023,COMMUNITIES,REDACTED PERSONAL DATA,500,UKRAINIAN PROGRAMME,GRANTS,REDACTED,REDACTED
07.08.2023,COMMUNITIES,REDACTED PERSONAL DATA,500,UKRAINIAN PROGRAMME,GRANTS,REDACTED,REDACTED
07.08.2023,COMMUNITIES,REDACTED PERSONAL DATA,500,UKRAINIAN PROGRAMME,GRANTS,REDACTED,REDACTED
07.08.2023,COMMUNITIES,REDACTED PERSONAL DATA,350,UKRAINIAN PROGRAMME,GRANTS,REDACTED,REDACTED
07.08.2023,COMMUNITIES,ZFA ACCOMMODATION LTD,"1,700.00",UKRAINIAN REFUGEES,ACCOMMODATION CHARGES,5902592794,1000082620
07.08.2023,COMMUNITIES,ZFA ACCOMMODATION LTD,"7,400.00",UKRAINIAN REFUGEES,ACCOMMODATION CHARGES,5902592794,1000082620
07.08.2023,COMMUNITIES,RICHMOND FELLOWSHIP,"5,000.00",VIOLENCE AGAINST WOMEN & GIRLS,OTHER CONTRACTORS,5902592846,1000032807
07.08.2023,CORPORATE FACILITIES MANAGEMENT,GREENHAM TRADING LTD,496.49,FM SERVICES BY INTERSERVE,INTEGRATED FACILITIES MANAGEMENT CONTRACT,5902592063,1000006610
07.08.2023,CUSTOMER AND EXCHEQUER,POSTURITE LTD,"1,837.04",ADMINISTRATIVE SUPPORT,EQUIPMENT PURCHASE & REPAIR,5902592088,11015468
07.08.2023,CUSTOMER AND EXCHEQUER,JANE M HAWDON,"1,000.00",CORONER'S,PROFESSIONAL FEES,5902591825,1000045072
07.08.2023,CUSTOMER AND EXCHEQUER,JANE M HAWDON,"1,000.00",CORONER'S,PROFESSIONAL FEES,5902591828,1000045072
07.08.2023,CUSTOMER AND EXCHEQUER,JANE M HAWDON,"1,500.00",CORONER'S,PROFESSIONAL FEES,5902591826,1000045072
07.08.2023,DSG,FLEET TUTORS,"43,332.00",ALTERNATIVE PROVISION,EXTERNAL AGENCIES AND BODIES,5902592653,1000044820
07.08.2023,DSG,PHOENIXPLACE,"2,880.00",ALTERNATIVE PROVISION,EXTERNAL AGENCIES AND BODIES,5902592809,1000075565
07.08.2023,DSG,PROSPERO RECRUITMENT LTD,"9,024.75",ALTERNATIVE PROVISION,EXTERNAL AGENCIES AND BODIES,5902592659,1000082492
07.08.2023,DSG,THE HUNDRED OF HOO ACADEMY,"3,000.00",VIRTUAL SCHOOL PP,SCHOOLS CAPITATION,5902587634,1000060962
07.08.2023,EDUCATION,NCFE,648,ALC  DIRECT DELIVERY,MATERIALS,5902592680,1000048913
07.08.2023,EDUCATION,KENT COUNTY COUNCIL - LASER,501.04,THOMAS CALTON CENTRE,GAS,5902592842,1000012926
07.08.2023,ENV & LEIS,DENISE FERMOR,"1,209.35",ENFORCEMENT,TRAINING,5902592699,1000080989
07.08.2023,ENV & LEIS,CROWN OIL LTD,"2,091.75",SANDGATE STREET,VEHICLE FUEL,5902592005,1000081749
07.08.2023,ENVIRONMENT AND LEISURE,CYCLEHOOP LTD,442.5,CAPITAL PS (LEISURE),CONSTRUCTION,5902591999,1000057894
07.08.2023,ENVIRONMENT AND LEISURE,RH WROUGHT IRON,935,CAPITAL PS (LEISURE),CONSTRUCTION FEES,2103732311,3000000680
07.08.2023,ENVIRONMENT AND LEISURE,METIS CONSULTANTS LIMITED,"3,337.50",CAPITAL PS (LEISURE),CONSTRUCTION FEES  - EXTERNAL,5902592057,1000086330
07.08.2023,ENVIRONMENT AND LEISURE,METIS CONSULTANTS LIMITED,"9,350.00",CAPITAL PS (LEISURE),CONSTRUCTION FEES  - EXTERNAL,5902592058,1000086330
07.08.2023,ENVIRONMENT DIRECTORATE,LEASEPLAN UK LTD,740,COMMERCIAL VEH CTRL A/C,HIRED VEHICLES,5902592853,11014756
07.08.2023,ENVIRONMENT DIRECTORATE,ACCESS HIRE NATIONWIDE LTD,"1,241.43",COMMERCIAL VEH CTRL A/C,HIRED VEHICLES,5902592716,1000048527
07.08.2023,ENVIRONMENT DIRECTORATE,ACCESS HIRE NATIONWIDE LTD,"1,568.89",COMMERCIAL VEH CTRL A/C,HIRED VEHICLES,5902592714,1000048527
07.08.2023,ENVIRONMENT DIRECTORATE,ACCESS HIRE NATIONWIDE LTD,"1,568.89",COMMERCIAL VEH CTRL A/C,HIRED VEHICLES,5902592717,1000048527
07.08.2023,ENVIRONMENT DIRECTORATE,ACCESS HIRE NATIONWIDE LTD,"1,636.43",COMMERCIAL VEH CTRL A/C,HIRED VEHICLES,5902592715,1000048527
07.08.2023,ENVIRONMENT DIRECTORATE,ACCESS HIRE NATIONWIDE LTD,"1,649.31",COMMERCIAL VEH CTRL A/C,HIRED VEHICLES,5902592719,1000048527
07.08.2023,ENVIRONMENT DIRECTORATE,SHELL UK OIL PRODUCTS LTD,320.33,COMMERCIAL VEH CTRL A/C,VEHICLE FUEL,5902592668,1000081254
07.08.2023,ENVIRONMENT DIRECTORATE,SHELL UK OIL PRODUCTS LTD,341.13,COMMERCIAL VEH CTRL A/C,VEHICLE FUEL,5902592841,1000081254
07.08.2023,ENVIRONMENT DIRECTORATE,SHELL UK OIL PRODUCTS LTD,351.43,COMMERCIAL VEH CTRL A/C,VEHICLE FUEL,5902592694,1000081254
07.08.2023,ENVIRONMENT DIRECTORATE,SHELL UK OIL PRODUCTS LTD,359.62,COMMERCIAL VEH CTRL A/C,VEHICLE FUEL,5902592655,1000081254
07.08.2023,ENVIRONMENT DIRECTORATE,SHELL UK OIL PRODUCTS LTD,379.13,COMMERCIAL VEH CTRL A/C,VEHICLE FUEL,5902592690,1000081254
07.08.2023,ENVIRONMENT DIRECTORATE,SHELL UK OIL PRODUCTS LTD,408.51,COMMERCIAL VEH CTRL A/C,VEHICLE FUEL,5902592664,1000081254
07.08.2023,ENVIRONMENT DIRECTORATE,SHELL UK OIL PRODUCTS LTD,430.17,COMMERCIAL VEH CTRL A/C,VEHICLE FUEL,5902592666,1000081254
07.08.2023,ENVIRONMENT DIRECTORATE,SHELL UK OIL PRODUCTS LTD,559.57,COMMERCIAL VEH CTRL A/C,VEHICLE FUEL,5902592674,1000081254
07.08.2023,ENVIRONMENT DIRECTORATE,SHELL UK OIL PRODUCTS LTD,786.06,COMMERCIAL VEH CTRL A/C,VEHICLE FUEL,5902592688,1000081254
07.08.2023,ENVIRONMENT DIRECTORATE,SHELL UK OIL PRODUCTS LTD,"1,070.88",COMMERCIAL VEH CTRL A/C,VEHICLE FUEL,5902592686,1000081254
07.08.2023,ENVIRONMENT DIRECTORATE,SHELL UK OIL PRODUCTS LTD,"1,269.23",COMMERCIAL VEH CTRL A/C,VEHICLE FUEL,5902592662,1000081254
07.08.2023,ENVIRONMENT DIRECTORATE,SHELL UK OIL PRODUCTS LTD,"1,302.26",COMMERCIAL VEH CTRL A/C,VEHICLE FUEL,5902592681,1000081254
07.08.2023,ENVIRONMENT DIRECTORATE,SHELL UK OIL PRODUCTS LTD,"1,360.69",COMMERCIAL VEH CTRL A/C,VEHICLE FUEL,5902592665,1000081254
07.08.2023,ENVIRONMENT DIRECTORATE,SHELL UK OIL PRODUCTS LTD,"1,438.87",COMMERCIAL VEH CTRL A/C,VEHICLE FUEL,5902592697,1000081254
07.08.2023,ENVIRONMENT DIRECTORATE,SHELL UK OIL PRODUCTS LTD,"5,558.16",COMMERCIAL VEH CTRL A/C,VEHICLE FUEL,5902592669,1000081254
07.08.2023,ENVIRONMENT DIRECTORATE,SHELL UK OIL PRODUCTS LTD,"6,407.42",COMMERCIAL VEH CTRL A/C,VEHICLE FUEL,5902592667,1000081254
07.08.2023,ENVIRONMENT DIRECTORATE,LEASEPLAN UK LTD,"1,159.97",COMMERCIAL VEH CTRL A/C,VEHICLE REPAIRS & MAINTENANCE,5902592853,11014756
07.08.2023,ENVIRONMENT DIRECTORATE,CIVICA UK LTD,"1,740.00",EH & TS MANAGER,SOFTWARE,5902592550,1730625
07.08.2023,ENVIRONMENT DIRECTORATE,PROJECT CENTRE LTD,"6,700.00",PROJECT SUPPORT,OTHER CONTRACTORS,5902592597,1000072621
07.08.2023,ENVIRONMENT DIRECTORATE,LONDON UNDERGROUND LTD,340,PROJECT SUPPORT,PUBLIC TRANSPORT,5902591991,1000059727
07.08.2023,ENVIRONMENT DIRECTORATE,CROMWELL POLYTHENE LTD,"3,023.25",STREET CLEANING-GENERAL,MATERIALS,5902592755,1000021159
07.08.2023,ENVIRONMENT DIRECTORATE,CROMWELL POLYTHENE LTD,"3,416.20",STREET CLEANING-GENERAL,MATERIALS,5902592757,1000021159
07.08.2023,ENVIRONMENT DIRECTORATE,BETTERPOINTS LIMITED,"4,100.00",STREETS FOR PEOPLE - CYCLING,MISCELLANEOUS RECHARGES,5902592140,1000089817
07.08.2023,ENVIRONMENT DIRECTORATE,PROJECT CENTRE LTD,"10,626.88",TRANSPORT PROJECTS,OTHER CONTRACTORS,5902592692,1000072621
07.08.2023,HOUSING,BUILDTRUST LTD,"40,390.79",BUILD TRUST,I-WORLD CONTRACTORS HOLDING ACCOUNT,2103732242,3000002010
07.08.2023,HOUSING,SILK & MACKMAN SERVICES LTD,"59,302.17",PAYMENTS CONTROL ACCOUNT SILK & MACKMAN,I-WORLD CONTRACTORS HOLDING ACCOUNT,5902592825,1000035282
07.08.2023,HOUSING GENERAL FUND,DJ & SONS BUILDERS LTD,"16,000.00",CAPITAL PS (REGEN),CONSTRUCTION MAIN CONTRACT,2103732346,3000002178
07.08.2023,HOUSING HRA,POTTER RAPER LTD,732,CAPITAL PS (HRA),CONSTRUCTION,5902592756,1009369
07.08.2023,HOUSING HRA,CALFORD SEADEN LLP,"1,301.77",CAPITAL PS (HRA),CONSTRUCTION FEES  - EXTERNAL,5902592626,1061592
07.08.2023,HOUSING HRA,CALFORD SEADEN LLP,"2,003.82",CAPITAL PS (HRA),CONSTRUCTION FEES  - EXTERNAL,5902592801,1061592
07.08.2023,HOUSING HRA,CALFORD SEADEN LLP,"12,133.57",CAPITAL PS (HRA),CONSTRUCTION FEES  - EXTERNAL,5902592174,1061592
07.08.2023,HOUSING HRA,SILVER DCC LTD,875,CAPITAL PS (HRA),CONSTRUCTION FEES  - EXTERNAL,5902592849,1000087546
07.08.2023,HOUSING HRA,KARAKUSEVIC CARSON ARCHITECTS,"32,350.00",CAPITAL PS (HRA),CONSTRUCTION FEES - ARCHITECT,5902592014,1000055150
07.08.2023,HOUSING HRA,MARTIN ARNOLD LTD,"2,236.89",CAPITAL PS (HRA),CONSTRUCTION FEES - EMPLOYERS AGENT,5902592313,1000076993
07.08.2023,HOUSING HRA,MARTIN ARNOLD LTD,"7,001.01",CAPITAL PS (HRA),CONSTRUCTION FEES - EMPLOYERS AGENT,5902592577,1000076993
07.08.2023,HOUSING HRA,STANDAGE & CO LTD,"33,283.23",CAPITAL PS (HRA),CONSTRUCTION MAIN CONTRACT -CERTIFICATED,2103731411,4002817
07.08.2023,HOUSING HRA,NEILCOTT SPECIAL WORKS LTD,"111,404.55",CAPITAL PS (HRA),CONSTRUCTION MAIN CONTRACT -CERTIFICATED,2103732310,3000000770
07.08.2023,HOUSING HRA,EQUANS REGENERATION LTD,"404,307.36",CAPITAL PS (HRA),CONSTRUCTION MAIN CONTRACT -CERTIFICATED,2103732245,3000002035
07.08.2023,HOUSING HRA,MARTIN ARNOLD LTD,"5,364.17",CAPITAL PS (REGEN),CONSTRUCTION FEES  - EXTERNAL,5902592806,1000076993
07.08.2023,HUMAN RESOURCES,DANIEL HIBBERT,"5,900.00",HR PAYROLL COSTS,OTHER EMPLOYEE EXPENSES,5902591979,1000089747
07.08.2023,LAW AND GOVERNANCE,FD SOLUTIONS LIMITED,350,LEGAL SVCES MANAGEMENT,SUBSCRIPTIONS,5902592862,1000077019
07.08.2023,LEISURE DIRECTORATE,KENT COUNTY COUNCIL - LASER,"2,589.29",BURGESS SPORTS CENTRE,ELECTRICITY,5902592693,1000012926
07.08.2023,LEISURE DIRECTORATE,CAMBERWELL FAIR LTD,"8,000.00",CULTURAL CELEBRATIONS FUND,GRANTS,5902592644,1000075834
07.08.2023,LEISURE DIRECTORATE,RH WROUGHT IRON,380,DULWICH AREA TEAM,OTHER R&M,2103732243,3000000680
07.08.2023,LEISURE DIRECTORATE,THE CONSERVATION VOLUNTEERS,"9,558.00",ENVIRONMENT & LEISURE GRANTS,OTHER CONTRACTORS,5902592720,1872821
07.08.2023,LEISURE DIRECTORATE,BOUNCE LEGACY CIC,"6,250.00",GRANTS COMMISSIONING,GRANTS,5902592865,1000088183
07.08.2023,LEISURE DIRECTORATE,PRODUCTIVITY @ WORK LIMITED,"1,750.01",LEISURE INSOURCING MOBILISATION COST,CONSULTANTS SERVICES,5902591904,1000089724
07.08.2023,LEISURE DIRECTORATE,CASTLE WATER LTD,"1,657.64",SDM BUDGET,WATER,5902592848,1000078867
07.08.2023,LEISURE DIRECTORATE,BIBLIOTHECA LTD,744.37,STOCK SERVICES,STATIONERY,5902592222,1000069536
07.08.2023,LEISURE DIRECTORATE,SMART PLATFORM RENTAL LTD,625,TREES � IN-HOUSE TEAM,HIRED VEHICLES,5902592079,1000082961
07.08.2023,LEISURE DIRECTORATE,LAND SKILLS TRAINING LTD,300,TREES � IN-HOUSE TEAM,TRAINING,5902592700,1000060035
07.08.2023,LEISURE DIRECTORATE,C S G (USHERS) LTD,"61,533.00",TREES TERM CONTRACT,TREE MAINTENANCE,5902592240,1000073203
07.08.2023,ORG TRANSFORMATION,INCLUSIVE EMPLOYERS LTD,600,CORPORATE TRAINING BUDGETS,TRAINING,5902592830,1000083490
07.08.2023,ORG TRANSFORMATION,INCLUSIVE EMPLOYERS LTD,600,CORPORATE TRAINING BUDGETS,TRAINING,5902592831,1000083490
07.08.2023,ORG TRANSFORMATION,INCLUSIVE EMPLOYERS LTD,600,CORPORATE TRAINING BUDGETS,TRAINING,5902592832,1000083490
07.08.2023,ORG TRANSFORMATION,INCLUSIVE EMPLOYERS LTD,600,CORPORATE TRAINING BUDGETS,TRAINING,5902592834,1000083490
07.08.2023,PLANNING & GROWTH,PORTALPLANQUEST LTD,462,DEV MGT ADMIN & INCOME,MANDATORY STATUTORY FEES & CHARGES,5902591883,1000081761
07.08.2023,PLANNING & GROWTH,AVISON YOUNG UK LIMITED,"9,500.00",MAJOR APPLICATIONS,PROFESSIONAL FEES,5902592673,1000016057
07.08.2023,PROFESSIONAL FINANCE SERVICES,BDO LLP,"29,936.08",INTERNAL AUDIT CONTRACTS,PAYMENTS FOR FINANCIAL SERVICES,5902592009,1000057898
07.08.2023,PROFESSIONAL FINANCE SERVICES,BDO LLP,"2,643.33",RISK ADMIN,PROFESSIONAL FEES,5902592007,1000057898
07.08.2023,RESIDENT SERVICES,EDF ENERGY PLC,267.96,OPERATIONS/OFFICES ACCOMMODATION,ELECTRICITY,5902592823,1008746
07.08.2023,RESIDENT SERVICES,EDF ENERGY PLC,338.37,OPERATIONS/OFFICES ACCOMMODATION,ELECTRICITY,5902592736,1008746
07.08.2023,RESIDENT SERVICES,EDF ENERGY PLC,416.51,OPERATIONS/OFFICES ACCOMMODATION,ELECTRICITY,5902592737,1008746
07.08.2023,RESIDENT SERVICES,EDF ENERGY PLC,431.3,OPERATIONS/OFFICES ACCOMMODATION,ELECTRICITY,5902592821,1008746
07.08.2023,RESIDENT SERVICES,EDF ENERGY PLC,714.92,OPERATIONS/OFFICES ACCOMMODATION,ELECTRICITY,5902592822,1008746
07.08.2023,RESIDENT SERVICES,EDF ENERGY PLC,968.36,OPERATIONS/OFFICES ACCOMMODATION,ELECTRICITY,5902592738,1008746
07.08.2023,RESIDENT SERVICES,EXTREME ENVIRONMENTAL SERVICES LTD,325,TA ESTATE VOIDS,PREMISES CLEANING,5902592530,1000023922
07.08.2023,RESIDENT SERVICES,BRITISH GAS TRADING LTD,"2,380.87",TA HOSTELS,ELECTRICITY,5902592805,1000055977
07.08.2023,RESIDENT SERVICES,BRITISH GAS TRADING LTD,"2,796.30",TA HOSTELS,ELECTRICITY,5902592803,1000055977
07.08.2023,RESIDENT SERVICES,BRITISH GAS TRADING LTD,"5,551.43",TA HOSTELS,ELECTRICITY,5902592802,1000055977
07.08.2023,RESIDENT SERVICES,SILK & MACKMAN SERVICES LTD,"1,192.24",TA HOSTELS,SECURITY SERVICES,5902592811,1000035282
07.08.2023,RESIDENT SERVICES,THAMES WATER UTILITIES LTD,871.83,TA HOSTELS,WATER,5902592826,1630755
07.08.2023,RESIDENT SERVICES HGF,RUBICON PROPERTY (SHRUBBERY LTD),"3,500.00",HOMELESS PROJECTS,GRANTS,5902592864,1000080428
07.08.2023,RESIDENT SERVICES HGF,SMARTLET ESTATES LTD,"2,780.59",HOMELESS PROJECTS,GRANTS,5902592861,1000086913
07.08.2023,RESIDENT SERVICES HGF,LTA DIRECT LTD,350,NIGHTLY TA (NSC),EXTERNAL AGENCIES AND BODIES,5902592776,1000085314
07.08.2023,RESIDENT SERVICES HGF,THEORI HOUSING MANAGEMENT SERVICES,503.6,PSL PLACEMENTS,EXTERNAL AGENCIES AND BODIES,5902592765,1000079264
07.08.2023,RESIDENT SERVICES HGF,ZFA ACCOMMODATION LTD,-414.61,PSL PLACEMENTS,EXTERNAL AGENCIES AND BODIES,5902592866,1000082620
07.08.2023,RESIDENT SERVICES HGF,ZFA ACCOMMODATION LTD,"169,516.85",PSL PLACEMENTS,EXTERNAL AGENCIES AND BODIES,5902592869,1000082620
07.08.2023,RESIDENT SERVICES HGF,GOLDSTONE ESTATES LTD,475.2,RAPID REHOUSING,EXTERNAL AGENCIES AND BODIES,5902592657,1000076548
07.08.2023,SBS OPERATIONS,TRAVIS PERKINS TRADING COMPANY LTD,380.12,SBS LEAKS FROM ABOVE,MATERIALS,5902592767,1514319
07.08.2023,SBS OPERATIONS,TRAVIS PERKINS TRADING COMPANY LTD,503.1,SBS LEAKS FROM ABOVE,MATERIALS,5902592767,1514319
07.08.2023,SBS OPERATIONS,TRAVIS PERKINS TRADING COMPANY LTD,559,SBS LEAKS FROM ABOVE,MATERIALS,5902592769,1514319
07.08.2023,SBS OPERATIONS,HOWDENS JOINERY CO,265.14,WALWORTH DD,MATERIALS,5902592649,1000027491
07.08.2023,SBS SUPPORT,TRAVIS PERKINS TRADING COMPANY LTD,"1,020.80",R & M OVERHEADS,EQUIPMENT PURCHASE & REPAIR,5902592769,1514319
07.08.2023,SBS SUPPORT,TRAVIS PERKINS TRADING COMPANY LTD,287.95,STORES / LOGISTICS,BSU STORES CONTROL ACCOUNT (SAP MATERIALS MGT),5902592767,1514319
07.08.2023,SOUTHWARK BUILDING SERVICES,TRAVIS PERKINS TRADING COMPANY LTD,270,STORES/LOGISTICS,CREDITORS -GR/IR CLEARING ACCOUNT,5902592767,1514319
07.08.2023,SOUTHWARK BUILDING SERVICES,TRAVIS PERKINS TRADING COMPANY LTD,275.4,STORES/LOGISTICS,CREDITORS -GR/IR CLEARING ACCOUNT,5902592767,1514319
07.08.2023,SOUTHWARK BUILDING SERVICES,TRAVIS PERKINS TRADING COMPANY LTD,276,STORES/LOGISTICS,CREDITORS -GR/IR CLEARING ACCOUNT,5902592758,1514319
07.08.2023,SOUTHWARK BUILDING SERVICES,TRAVIS PERKINS TRADING COMPANY LTD,279.6,STORES/LOGISTICS,CREDITORS -GR/IR CLEARING ACCOUNT,5902592767,1514319
07.08.2023,SOUTHWARK BUILDING SERVICES,TRAVIS PERKINS TRADING COMPANY LTD,289,STORES/LOGISTICS,CREDITORS -GR/IR CLEARING ACCOUNT,5902592758,1514319
07.08.2023,SOUTHWARK BUILDING SERVICES,TRAVIS PERKINS TRADING COMPANY LTD,295.47,STORES/LOGISTICS,CREDITORS -GR/IR CLEARING ACCOUNT,5902592758,1514319
07.08.2023,SOUTHWARK BUILDING SERVICES,TRAVIS PERKINS TRADING COMPANY LTD,295.7,STORES/LOGISTICS,CREDITORS -GR/IR CLEARING ACCOUNT,5902592767,1514319
07.08.2023,SOUTHWARK BUILDING SERVICES,TRAVIS PERKINS TRADING COMPANY LTD,319,STORES/LOGISTICS,CREDITORS -GR/IR CLEARING ACCOUNT,5902592758,1514319
07.08.2023,SOUTHWARK BUILDING SERVICES,TRAVIS PERKINS TRADING COMPANY LTD,319.8,STORES/LOGISTICS,CREDITORS -GR/IR CLEARING ACCOUNT,5902592767,1514319
07.08.2023,SOUTHWARK BUILDING SERVICES,TRAVIS PERKINS TRADING COMPANY LTD,320,STORES/LOGISTICS,CREDITORS -GR/IR CLEARING ACCOUNT,5902592767,1514319
07.08.2023,SOUTHWARK BUILDING SERVICES,TRAVIS PERKINS TRADING COMPANY LTD,331.2,STORES/LOGISTICS,CREDITORS -GR/IR CLEARING ACCOUNT,5902592767,1514319
07.08.2023,SOUTHWARK BUILDING SERVICES,TRAVIS PERKINS TRADING COMPANY LTD,334.6,STORES/LOGISTICS,CREDITORS -GR/IR CLEARING ACCOUNT,5902592758,1514319
07.08.2023,SOUTHWARK BUILDING SERVICES,TRAVIS PERKINS TRADING COMPANY LTD,349.2,STORES/LOGISTICS,CREDITORS -GR/IR CLEARING ACCOUNT,5902592767,1514319
07.08.2023,SOUTHWARK BUILDING SERVICES,TRAVIS PERKINS TRADING COMPANY LTD,354.15,STORES/LOGISTICS,CREDITORS -GR/IR CLEARING ACCOUNT,5902592769,1514319
07.08.2023,SOUTHWARK BUILDING SERVICES,TRAVIS PERKINS TRADING COMPANY LTD,360,STORES/LOGISTICS,CREDITORS -GR/IR CLEARING ACCOUNT,5902592758,1514319
07.08.2023,SOUTHWARK BUILDING SERVICES,TRAVIS PERKINS TRADING COMPANY LTD,389.2,STORES/LOGISTICS,CREDITORS -GR/IR CLEARING ACCOUNT,5902592758,1514319
07.08.2023,SOUTHWARK BUILDING SERVICES,TRAVIS PERKINS TRADING COMPANY LTD,391.2,STORES/LOGISTICS,CREDITORS -GR/IR CLEARING ACCOUNT,5902592758,1514319
07.08.2023,SOUTHWARK BUILDING SERVICES,TRAVIS PERKINS TRADING COMPANY LTD,395,STORES/LOGISTICS,CREDITORS -GR/IR CLEARING ACCOUNT,5902592767,1514319
07.08.2023,SOUTHWARK BUILDING SERVICES,TRAVIS PERKINS TRADING COMPANY LTD,395,STORES/LOGISTICS,CREDITORS -GR/IR CLEARING ACCOUNT,5902592767,1514319
07.08.2023,SOUTHWARK BUILDING SERVICES,TRAVIS PERKINS TRADING COMPANY LTD,412,STORES/LOGISTICS,CREDITORS -GR/IR CLEARING ACCOUNT,5902592767,1514319
07.08.2023,SOUTHWARK BUILDING SERVICES,TRAVIS PERKINS TRADING COMPANY LTD,417,STORES/LOGISTICS,CREDITORS -GR/IR CLEARING ACCOUNT,5902592758,1514319
07.08.2023,SOUTHWARK BUILDING SERVICES,TRAVIS PERKINS TRADING COMPANY LTD,424.2,STORES/LOGISTICS,CREDITORS -GR/IR CLEARING ACCOUNT,5902592767,1514319
07.08.2023,SOUTHWARK BUILDING SERVICES,TRAVIS PERKINS TRADING COMPANY LTD,467.6,STORES/LOGISTICS,CREDITORS -GR/IR CLEARING ACCOUNT,5902592767,1514319
07.08.2023,SOUTHWARK BUILDING SERVICES,TRAVIS PERKINS TRADING COMPANY LTD,476.4,STORES/LOGISTICS,CREDITORS -GR/IR CLEARING ACCOUNT,5902592767,1514319
07.08.2023,SOUTHWARK BUILDING SERVICES,TRAVIS PERKINS TRADING COMPANY LTD,493.36,STORES/LOGISTICS,CREDITORS -GR/IR CLEARING ACCOUNT,5902592767,1514319
07.08.2023,SOUTHWARK BUILDING SERVICES,TRAVIS PERKINS TRADING COMPANY LTD,506.4,STORES/LOGISTICS,CREDITORS -GR/IR CLEARING ACCOUNT,5902592767,1514319
07.08.2023,SOUTHWARK BUILDING SERVICES,TRAVIS PERKINS TRADING COMPANY LTD,510,STORES/LOGISTICS,CREDITORS -GR/IR CLEARING ACCOUNT,5902592758,1514319
07.08.2023,SOUTHWARK BUILDING SERVICES,TRAVIS PERKINS TRADING COMPANY LTD,510,STORES/LOGISTICS,CREDITORS -GR/IR CLEARING ACCOUNT,5902592767,1514319
07.08.2023,SOUTHWARK BUILDING SERVICES,TRAVIS PERKINS TRADING COMPANY LTD,511.6,STORES/LOGISTICS,CREDITORS -GR/IR CLEARING ACCOUNT,5902592767,1514319
07.08.2023,SOUTHWARK BUILDING SERVICES,TRAVIS PERKINS TRADING COMPANY LTD,511.8,STORES/LOGISTICS,CREDITORS -GR/IR CLEARING ACCOUNT,5902592758,1514319
07.08.2023,SOUTHWARK BUILDING SERVICES,TRAVIS PERKINS TRADING COMPANY LTD,557.4,STORES/LOGISTICS,CREDITORS -GR/IR CLEARING ACCOUNT,5902592767,1514319
07.08.2023,SOUTHWARK BUILDING SERVICES,TRAVIS PERKINS TRADING COMPANY LTD,581.6,STORES/LOGISTICS,CREDITORS -GR/IR CLEARING ACCOUNT,5902592767,1514319
07.08.2023,SOUTHWARK BUILDING SERVICES,TRAVIS PERKINS TRADING COMPANY LTD,582,STORES/LOGISTICS,CREDITORS -GR/IR CLEARING ACCOUNT,5902592758,1514319
07.08.2023,SOUTHWARK BUILDING SERVICES,TRAVIS PERKINS TRADING COMPANY LTD,609,STORES/LOGISTICS,CREDITORS -GR/IR CLEARING ACCOUNT,5902592767,1514319
07.08.2023,SOUTHWARK BUILDING SERVICES,TRAVIS PERKINS TRADING COMPANY LTD,610.3,STORES/LOGISTICS,CREDITORS -GR/IR CLEARING ACCOUNT,5902592767,1514319
07.08.2023,SOUTHWARK BUILDING SERVICES,TRAVIS PERKINS TRADING COMPANY LTD,630,STORES/LOGISTICS,CREDITORS -GR/IR CLEARING ACCOUNT,5902592767,1514319
07.08.2023,SOUTHWARK BUILDING SERVICES,TRAVIS PERKINS TRADING COMPANY LTD,688,STORES/LOGISTICS,CREDITORS -GR/IR CLEARING ACCOUNT,5902592758,1514319
07.08.2023,SOUTHWARK BUILDING SERVICES,TRAVIS PERKINS TRADING COMPANY LTD,688.17,STORES/LOGISTICS,CREDITORS -GR/IR CLEARING ACCOUNT,5902592758,1514319
07.08.2023,SOUTHWARK BUILDING SERVICES,TRAVIS PERKINS TRADING COMPANY LTD,700.2,STORES/LOGISTICS,CREDITORS -GR/IR CLEARING ACCOUNT,5902592767,1514319
07.08.2023,SOUTHWARK BUILDING SERVICES,TRAVIS PERKINS TRADING COMPANY LTD,742,STORES/LOGISTICS,CREDITORS -GR/IR CLEARING ACCOUNT,5902592767,1514319
07.08.2023,SOUTHWARK BUILDING SERVICES,TRAVIS PERKINS TRADING COMPANY LTD,777,STORES/LOGISTICS,CREDITORS -GR/IR CLEARING ACCOUNT,5902592758,1514319
07.08.2023,SOUTHWARK BUILDING SERVICES,TRAVIS PERKINS TRADING COMPANY LTD,790,STORES/LOGISTICS,CREDITORS -GR/IR CLEARING ACCOUNT,5902592767,1514319
07.08.2023,SOUTHWARK BUILDING SERVICES,TRAVIS PERKINS TRADING COMPANY LTD,826.8,STORES/LOGISTICS,CREDITORS -GR/IR CLEARING ACCOUNT,5902592758,1514319
07.08.2023,SOUTHWARK BUILDING SERVICES,TRAVIS PERKINS TRADING COMPANY LTD,874.62,STORES/LOGISTICS,CREDITORS -GR/IR CLEARING ACCOUNT,5902592767,1514319
07.08.2023,SOUTHWARK BUILDING SERVICES,TRAVIS PERKINS TRADING COMPANY LTD,891,STORES/LOGISTICS,CREDITORS -GR/IR CLEARING ACCOUNT,5902592758,1514319
07.08.2023,SOUTHWARK BUILDING SERVICES,TRAVIS PERKINS TRADING COMPANY LTD,897,STORES/LOGISTICS,CREDITORS -GR/IR CLEARING ACCOUNT,5902592769,1514319
07.08.2023,SOUTHWARK BUILDING SERVICES,TRAVIS PERKINS TRADING COMPANY LTD,900.99,STORES/LOGISTICS,CREDITORS -GR/IR CLEARING ACCOUNT,5902592758,1514319
07.08.2023,SOUTHWARK BUILDING SERVICES,TRAVIS PERKINS TRADING COMPANY LTD,925.44,STORES/LOGISTICS,CREDITORS -GR/IR CLEARING ACCOUNT,5902592758,1514319
07.08.2023,SOUTHWARK BUILDING SERVICES,TRAVIS PERKINS TRADING COMPANY LTD,945.6,STORES/LOGISTICS,CREDITORS -GR/IR CLEARING ACCOUNT,5902592769,1514319
07.08.2023,SOUTHWARK BUILDING SERVICES,TRAVIS PERKINS TRADING COMPANY LTD,"1,023.78",STORES/LOGISTICS,CREDITORS -GR/IR CLEARING ACCOUNT,5902592769,1514319
07.08.2023,SOUTHWARK BUILDING SERVICES,TRAVIS PERKINS TRADING COMPANY LTD,"1,040.00",STORES/LOGISTICS,CREDITORS -GR/IR CLEARING ACCOUNT,5902592758,1514319
07.08.2023,SOUTHWARK BUILDING SERVICES,TRAVIS PERKINS TRADING COMPANY LTD,"1,072.50",STORES/LOGISTICS,CREDITORS -GR/IR CLEARING ACCOUNT,5902592758,1514319
07.08.2023,SOUTHWARK BUILDING SERVICES,TRAVIS PERKINS TRADING COMPANY LTD,"1,123.20",STORES/LOGISTICS,CREDITORS -GR/IR CLEARING ACCOUNT,5902592758,1514319
07.08.2023,SOUTHWARK BUILDING SERVICES,TRAVIS PERKINS TRADING COMPANY LTD,"1,218.60",STORES/LOGISTICS,CREDITORS -GR/IR CLEARING ACCOUNT,5902592758,1514319
07.08.2023,SOUTHWARK BUILDING SERVICES,TRAVIS PERKINS TRADING COMPANY LTD,"1,245.40",STORES/LOGISTICS,CREDITORS -GR/IR CLEARING ACCOUNT,5902592767,1514319
07.08.2023,SOUTHWARK BUILDING SERVICES,TRAVIS PERKINS TRADING COMPANY LTD,"1,280.00",STORES/LOGISTICS,CREDITORS -GR/IR CLEARING ACCOUNT,5902592758,1514319
07.08.2023,SOUTHWARK BUILDING SERVICES,TRAVIS PERKINS TRADING COMPANY LTD,"1,294.00",STORES/LOGISTICS,CREDITORS -GR/IR CLEARING ACCOUNT,5902592767,1514319
07.08.2023,SOUTHWARK BUILDING SERVICES,TRAVIS PERKINS TRADING COMPANY LTD,"1,388.00",STORES/LOGISTICS,CREDITORS -GR/IR CLEARING ACCOUNT,5902592767,1514319
07.08.2023,SOUTHWARK BUILDING SERVICES,TRAVIS PERKINS TRADING COMPANY LTD,"1,530.00",STORES/LOGISTICS,CREDITORS -GR/IR CLEARING ACCOUNT,5902592758,1514319
07.08.2023,SOUTHWARK BUILDING SERVICES,TRAVIS PERKINS TRADING COMPANY LTD,"1,637.01",STORES/LOGISTICS,CREDITORS -GR/IR CLEARING ACCOUNT,5902592767,1514319
07.08.2023,SOUTHWARK BUILDING SERVICES,TRAVIS PERKINS TRADING COMPANY LTD,"1,758.00",STORES/LOGISTICS,CREDITORS -GR/IR CLEARING ACCOUNT,5902592769,1514319
07.08.2023,SOUTHWARK BUILDING SERVICES,TRAVIS PERKINS TRADING COMPANY LTD,"2,099.50",STORES/LOGISTICS,CREDITORS -GR/IR CLEARING ACCOUNT,5902592767,1514319
07.08.2023,SOUTHWARK BUILDING SERVICES,TRAVIS PERKINS TRADING COMPANY LTD,"2,294.00",STORES/LOGISTICS,CREDITORS -GR/IR CLEARING ACCOUNT,5902592767,1514319
07.08.2023,SOUTHWARK BUILDING SERVICES,TRAVIS PERKINS TRADING COMPANY LTD,"2,490.80",STORES/LOGISTICS,CREDITORS -GR/IR CLEARING ACCOUNT,5902592767,1514319
07.08.2023,SOUTHWARK BUILDING SERVICES,TRAVIS PERKINS TRADING COMPANY LTD,"2,510.82",STORES/LOGISTICS,CREDITORS -GR/IR CLEARING ACCOUNT,5902592769,1514319
07.08.2023,SOUTHWARK BUILDING SERVICES,TRAVIS PERKINS TRADING COMPANY LTD,"2,572.80",STORES/LOGISTICS,CREDITORS -GR/IR CLEARING ACCOUNT,5902592767,1514319
07.08.2023,SOUTHWARK BUILDING SERVICES,TRAVIS PERKINS TRADING COMPANY LTD,"5,433.00",STORES/LOGISTICS,CREDITORS -GR/IR CLEARING ACCOUNT,5902592769,1514319
07.08.2023,SOUTHWARK BUILDING SERVICES,TRAVIS PERKINS TRADING COMPANY LTD,"7,668.00",STORES/LOGISTICS,CREDITORS -GR/IR CLEARING ACCOUNT,5902592767,1514319
07.08.2023,SOUTHWARK BUILDING SERVICES,TRAVIS PERKINS TRADING COMPANY LTD,"7,668.00",STORES/LOGISTICS,CREDITORS -GR/IR CLEARING ACCOUNT,5902592769,1514319
08.08.2023,ADULT SOCIAL CARE,THE WEBSITE DESIGN AGENCY LTD,"1,710.00",DIR OF ASC,CONSULTANTS SERVICES,5902592992,1000088068
08.08.2023,ADULT SOCIAL CARE,CATHERINE ROWLANDS,"1,750.00",DIR OF ASC,LEGAL FEES & COURT COSTS,2103733240,1000069104
08.08.2023,ADULT SOCIAL CARE,REDACTED PERSONAL DATA,"1,664.00",DISABILITIES LAC,PAYMENTS TO CARERS,REDACTED,REDACTED
08.08.2023,ADULT SOCIAL CARE,REDACTED PERSONAL DATA,820,DISABILITIES LAC,PAYMENTS TO CARERS,REDACTED,REDACTED
08.08.2023,ADULT SOCIAL CARE,REDACTED PERSONAL DATA,978,DISABILITIES LAC,PAYMENTS TO CARERS,REDACTED,REDACTED
08.08.2023,ADULT SOCIAL CARE,THAMES HOMECARE SERVICE LTD,776.95,DISCHARGE TO ACCESS,HOMECARE - C&V,2103732470,1000079295
08.08.2023,ADULT SOCIAL CARE,HOUSING 21,300,EXTRA CARE CONTRACT,FURNITURE PURCHASE & REPAIR,5902593074,1000037120
08.08.2023,ADULT SOCIAL CARE,HOUSING 21,"1,931.98",EXTRA CARE CONTRACT,FURNITURE PURCHASE & REPAIR,5902593065,1000037120
08.08.2023,ADULT SOCIAL CARE,BEDE HOUSE ASSOCIATION,698,LD LTS 18-64,DAYCARE,2103733226,1553877
08.08.2023,ADULT SOCIAL CARE,BEDE HOUSE ASSOCIATION,840,LD LTS 18-64,DAYCARE,2103733222,1553877
08.08.2023,ADULT SOCIAL CARE,BEDE HOUSE ASSOCIATION,840,LD LTS 18-64,DAYCARE,2103733223,1553877
08.08.2023,ADULT SOCIAL CARE,BEDE HOUSE ASSOCIATION,840,LD LTS 18-64,DAYCARE,2103733224,1553877
08.08.2023,ADULT SOCIAL CARE,BEDE HOUSE ASSOCIATION,840,LD LTS 18-64,DAYCARE,2103733227,1553877
08.08.2023,ADULT SOCIAL CARE,BEDE HOUSE ASSOCIATION,840,LD LTS 18-64,DAYCARE,2103733228,1553877
08.08.2023,ADULT SOCIAL CARE,BEDE HOUSE ASSOCIATION,"1,050.00",LD LTS 18-64,DAYCARE,2103733225,1553877
08.08.2023,ADULT SOCIAL CARE,BEDE HOUSE ASSOCIATION,"1,050.00",LD LTS 18-64,DAYCARE,2103733229,1553877
08.08.2023,ADULT SOCIAL CARE,MEDACS HOMECARE,"1,730.00",LD LTS 18-64,SUPPORTED LIVING,2103733220,11287415
08.08.2023,ADULT SOCIAL CARE,MEDACS HOMECARE,"1,730.00",LD LTS 18-64,SUPPORTED LIVING,2103733221,11287415
08.08.2023,ADULT SOCIAL CARE,FRONTIER SUPPORT SERVICES LTD,"13,684.00",LD LTS 18-64,SUPPORTED LIVING,2103733230,1000072241
08.08.2023,ADULT SOCIAL CARE,FRONTIER SUPPORT SERVICES LTD,"13,684.00",LD LTS 18-64,SUPPORTED LIVING,2103733231,1000072241
08.08.2023,ADULT SOCIAL CARE,BRISEN COMPANY LTD,"1,428.00",LD LTS 18-64,SUPPORTED LIVING,2103732579,1000083000
08.08.2023,ADULT SOCIAL CARE,BRISEN COMPANY LTD,"1,428.00",LD LTS 18-64,SUPPORTED LIVING,2103732580,1000083000
08.08.2023,ADULT SOCIAL CARE,THAMES HOMECARE SERVICE LTD,738.82,MEM LTS 65+,HOMECARE - SPOT,2103732563,1000079295
08.08.2023,ADULT SOCIAL CARE,THAMES HOMECARE SERVICE LTD,843.28,MH LTS 65+,HOMECARE - C&V,2103732451,1000079295
08.08.2023,ADULT SOCIAL CARE,AGE UK  LEWISHAM & SOUTHWARK,"258,034.83",OLDER PEOPLES HUBS,EXTERNAL AGENCIES AND BODIES,5902592945,1000066751
08.08.2023,ADULT SOCIAL CARE,ALPHA24 HEALTHCARE,638.55,ORIENT ST � RESPITE,AGENCY STAFF,5902592879,1000090083
08.08.2023,ADULT SOCIAL CARE,THAMES HOMECARE SERVICE LTD,251.09,PHY LTS 18-64,HOMECARE - C&V,2103732493,1000079295
08.08.2023,ADULT SOCIAL CARE,THAMES HOMECARE SERVICE LTD,279.51,PHY LTS 18-64,HOMECARE - C&V,2103732497,1000079295
08.08.2023,ADULT SOCIAL CARE,THAMES HOMECARE SERVICE LTD,284.25,PHY LTS 18-64,HOMECARE - C&V,2103732471,1000079295
08.08.2023,ADULT SOCIAL CARE,THAMES HOMECARE SERVICE LTD,369.53,PHY LTS 18-64,HOMECARE - C&V,2103732489,1000079295
08.08.2023,ADULT SOCIAL CARE,THAMES HOMECARE SERVICE LTD,596.93,PHY LTS 18-64,HOMECARE - C&V,2103732520,1000079295
08.08.2023,ADULT SOCIAL CARE,THAMES HOMECARE SERVICE LTD,263.86,PHY LTS 18-64,HOMECARE - SPOT,2103732569,1000079295
08.08.2023,ADULT SOCIAL CARE,THAMES HOMECARE SERVICE LTD,388.6,PHY LTS 18-64,HOMECARE - SPOT,2103732568,1000079295
08.08.2023,ADULT SOCIAL CARE,THAMES HOMECARE SERVICE LTD,479.75,PHY LTS 18-64,HOMECARE - SPOT,2103732548,1000079295
08.08.2023,ADULT SOCIAL CARE,THAMES HOMECARE SERVICE LTD,820.37,PHY LTS 18-64,HOMECARE - SPOT,2103732532,1000079295
08.08.2023,ADULT SOCIAL CARE,THAMES HOMECARE SERVICE LTD,251.09,PHY LTS 65+,HOMECARE - C&V,2103732453,1000079295
08.08.2023,ADULT SOCIAL CARE,THAMES HOMECARE SERVICE LTD,251.09,PHY LTS 65+,HOMECARE - C&V,2103732454,1000079295
08.08.2023,ADULT SOCIAL CARE,THAMES HOMECARE SERVICE LTD,251.09,PHY LTS 65+,HOMECARE - C&V,2103732486,1000079295
08.08.2023,ADULT SOCIAL CARE,THAMES HOMECARE SERVICE LTD,254.27,PHY LTS 65+,HOMECARE - C&V,2103732551,1000079295
08.08.2023,ADULT SOCIAL CARE,THAMES HOMECARE SERVICE LTD,255.83,PHY LTS 65+,HOMECARE - C&V,2103732467,1000079295
08.08.2023,ADULT SOCIAL CARE,THAMES HOMECARE SERVICE LTD,270.04,PHY LTS 65+,HOMECARE - C&V,2103732460,1000079295
08.08.2023,ADULT SOCIAL CARE,THAMES HOMECARE SERVICE LTD,288.99,PHY LTS 65+,HOMECARE - C&V,2103732519,1000079295
08.08.2023,ADULT SOCIAL CARE,THAMES HOMECARE SERVICE LTD,298.46,PHY LTS 65+,HOMECARE - C&V,2103732456,1000079295
08.08.2023,ADULT SOCIAL CARE,THAMES HOMECARE SERVICE LTD,298.46,PHY LTS 65+,HOMECARE - C&V,2103732476,1000079295
08.08.2023,ADULT SOCIAL CARE,THAMES HOMECARE SERVICE LTD,317.41,PHY LTS 65+,HOMECARE - C&V,2103732521,1000079295
08.08.2023,ADULT SOCIAL CARE,THAMES HOMECARE SERVICE LTD,383.74,PHY LTS 65+,HOMECARE - C&V,2103732482,1000079295
08.08.2023,ADULT SOCIAL CARE,THAMES HOMECARE SERVICE LTD,596.93,PHY LTS 65+,HOMECARE - C&V,2103732488,1000079295
08.08.2023,ADULT SOCIAL CARE,THAMES HOMECARE SERVICE LTD,596.93,PHY LTS 65+,HOMECARE - C&V,2103732490,1000079295
08.08.2023,ADULT SOCIAL CARE,THAMES HOMECARE SERVICE LTD,615.88,PHY LTS 65+,HOMECARE - C&V,2103732500,1000079295
08.08.2023,ADULT SOCIAL CARE,THAMES HOMECARE SERVICE LTD,615.88,PHY LTS 65+,HOMECARE - C&V,2103732504,1000079295
08.08.2023,ADULT SOCIAL CARE,THAMES HOMECARE SERVICE LTD,630.09,PHY LTS 65+,HOMECARE - C&V,2103732516,1000079295
08.08.2023,ADULT SOCIAL CARE,THAMES HOMECARE SERVICE LTD,653.78,PHY LTS 65+,HOMECARE - C&V,2103732479,1000079295
08.08.2023,ADULT SOCIAL CARE,THAMES HOMECARE SERVICE LTD,729.58,PHY LTS 65+,HOMECARE - C&V,2103732517,1000079295
08.08.2023,ADULT SOCIAL CARE,THAMES HOMECARE SERVICE LTD,795.9,PHY LTS 65+,HOMECARE - C&V,2103732503,1000079295
08.08.2023,ADULT SOCIAL CARE,THAMES HOMECARE SERVICE LTD,852.75,PHY LTS 65+,HOMECARE - C&V,2103732491,1000079295
08.08.2023,ADULT SOCIAL CARE,THAMES HOMECARE SERVICE LTD,911.53,PHY LTS 65+,HOMECARE - C&V,2103732570,1000079295
08.08.2023,ADULT SOCIAL CARE,THAMES HOMECARE SERVICE LTD,"1,591.80",PHY LTS 65+,HOMECARE - C&V,2103732513,1000079295
08.08.2023,ADULT SOCIAL CARE,THAMES HOMECARE SERVICE LTD,251.09,PHY LTS 65+,HOMECARE - SPOT,2103732509,1000079295
08.08.2023,ADULT SOCIAL CARE,THAMES HOMECARE SERVICE LTD,254.27,PHY LTS 65+,HOMECARE - SPOT,2103732533,1000079295
08.08.2023,ADULT SOCIAL CARE,THAMES HOMECARE SERVICE LTD,254.27,PHY LTS 65+,HOMECARE - SPOT,2103732543,1000079295
08.08.2023,ADULT SOCIAL CARE,THAMES HOMECARE SERVICE LTD,268.66,PHY LTS 65+,HOMECARE - SPOT,2103732549,1000079295
08.08.2023,ADULT SOCIAL CARE,THAMES HOMECARE SERVICE LTD,302.24,PHY LTS 65+,HOMECARE - SPOT,2103732564,1000079295
08.08.2023,ADULT SOCIAL CARE,THAMES HOMECARE SERVICE LTD,321.43,PHY LTS 65+,HOMECARE - SPOT,2103732567,1000079295
08.08.2023,ADULT SOCIAL CARE,THAMES HOMECARE SERVICE LTD,369.41,PHY LTS 65+,HOMECARE - SPOT,2103732544,1000079295
08.08.2023,ADULT SOCIAL CARE,THAMES HOMECARE SERVICE LTD,412.59,PHY LTS 65+,HOMECARE - SPOT,2103732528,1000079295
08.08.2023,ADULT SOCIAL CARE,THAMES HOMECARE SERVICE LTD,465.36,PHY LTS 65+,HOMECARE - SPOT,2103732565,1000079295
08.08.2023,ADULT SOCIAL CARE,THAMES HOMECARE SERVICE LTD,470.16,PHY LTS 65+,HOMECARE - SPOT,2103732553,1000079295
08.08.2023,ADULT SOCIAL CARE,THAMES HOMECARE SERVICE LTD,489.35,PHY LTS 65+,HOMECARE - SPOT,2103732525,1000079295
08.08.2023,ADULT SOCIAL CARE,THAMES HOMECARE SERVICE LTD,537.32,PHY LTS 65+,HOMECARE - SPOT,2103732524,1000079295
08.08.2023,ADULT SOCIAL CARE,THAMES HOMECARE SERVICE LTD,570.9,PHY LTS 65+,HOMECARE - SPOT,2103732541,1000079295
08.08.2023,ADULT SOCIAL CARE,THAMES HOMECARE SERVICE LTD,604.49,PHY LTS 65+,HOMECARE - SPOT,2103732556,1000079295
08.08.2023,ADULT SOCIAL CARE,THAMES HOMECARE SERVICE LTD,604.49,PHY LTS 65+,HOMECARE - SPOT,2103732557,1000079295
08.08.2023,ADULT SOCIAL CARE,THAMES HOMECARE SERVICE LTD,604.49,PHY LTS 65+,HOMECARE - SPOT,2103732560,1000079295
08.08.2023,ADULT SOCIAL CARE,THAMES HOMECARE SERVICE LTD,604.49,PHY LTS 65+,HOMECARE - SPOT,2103732575,1000079295
08.08.2023,ADULT SOCIAL CARE,THAMES HOMECARE SERVICE LTD,604.49,PHY LTS 65+,HOMECARE - SPOT,2103732576,1000079295
08.08.2023,ADULT SOCIAL CARE,THAMES HOMECARE SERVICE LTD,676.45,PHY LTS 65+,HOMECARE - SPOT,2103732537,1000079295
08.08.2023,ADULT SOCIAL CARE,THAMES HOMECARE SERVICE LTD,686.04,PHY LTS 65+,HOMECARE - SPOT,2103732555,1000079295
08.08.2023,ADULT SOCIAL CARE,THAMES HOMECARE SERVICE LTD,700.44,PHY LTS 65+,HOMECARE - SPOT,2103732566,1000079295
08.08.2023,ADULT SOCIAL CARE,THAMES HOMECARE SERVICE LTD,911.53,PHY LTS 65+,HOMECARE - SPOT,2103732546,1000079295
08.08.2023,ADULT SOCIAL CARE,THAMES HOMECARE SERVICE LTD,"1,007.48",PHY LTS 65+,HOMECARE - SPOT,2103732540,1000079295
08.08.2023,ADULT SOCIAL CARE,AGINCARE (SOUTHWARK) LIMITED,"45,639.22",PHY LTS 65+,RESIDENTIAL CARE,5902592986,1000089635
08.08.2023,ADULT SOCIAL CARE,LONDON CARE LTD,404.55,PHY STS 18-64,HOMECARE - IC,2103733021,1000003398
08.08.2023,ADULT SOCIAL CARE,LONDON CARE LTD,564.73,PHY STS 18-64,HOMECARE - IC,2103733023,1000003398
08.08.2023,ADULT SOCIAL CARE,THAMES HOMECARE SERVICE LTD,663.25,PHY STS 18-64,HOMECARE - IC,2103732472,1000079295
08.08.2023,ADULT SOCIAL CARE,LONDON CARE LTD,278.03,PHY STS 65+,HOMECARE - IC,2103733027,1000003398
08.08.2023,ADULT SOCIAL CARE,LONDON CARE LTD,698.07,PHY STS 65+,HOMECARE - IC,2103733020,1000003398
08.08.2023,ADULT SOCIAL CARE,LONDON CARE LTD,"1,375.72",PHY STS 65+,HOMECARE - IC,2103733024,1000003398
08.08.2023,ADULT SOCIAL CARE,LONDON CARE LTD,"3,664.77",PHY STS 65+,HOMECARE - IC,2103733025,1000003398
08.08.2023,ADULT SOCIAL CARE,THAMES HOMECARE SERVICE LTD,270.04,PHY STS 65+,HOMECARE - IC,2103732468,1000079295
08.08.2023,ADULT SOCIAL CARE,THAMES HOMECARE SERVICE LTD,596.93,PHY STS 65+,HOMECARE - IC,2103732487,1000079295
08.08.2023,ASSET MANAGEMENT,ARC-UK TECHNOLOGIES LTD,"1,790.00",FRA WORKS,PROFESSIONAL FEES,5902592972,1000090075
08.08.2023,C&A,"CHRIST APOSTOLIC CHURCH, SURREY DOC","20,944.00",HOLIDAY ACTIVITIES & FOOD,EXTERNAL AGENCIES AND BODIES,5902593048,1000051903
08.08.2023,C&A,SOMERVILLE YOUTH & PLAY PROVISION,"7,920.00",HOLIDAY ACTIVITIES & FOOD,EXTERNAL AGENCIES AND BODIES,5902593036,1000080341
08.08.2023,CENTRAL FUNCTIONS,KENT COUNTY COUNCIL - LASER,"153,587.27",HEATING ACCOUNT,ELECTRICITY,5902593082,1000012926
08.08.2023,CENTRAL FUNCTIONS,HEMIKO LIMITED,521.71,HEATING ACCOUNT,GAS,5902592976,1000081494
08.08.2023,CHIEF EXECUTIVE,BL CW HOLDINGS LTD,"32,988.00",CAPITAL PS (REGEN),CONSTRUCTION FEES  - EXTERNAL,5902592875,1000086680
08.08.2023,CHIEF EXECUTIVE,BL CW HOLDINGS LTD,"1,099,594.00",CAPITAL PS (REGEN),CONSTRUCTION FEES  - EXTERNAL,5902592874,1000086680
08.08.2023,CHILDREN AND ADULT,SHARPE PRITCHARD LLP,702.3,CAPITAL PS (EDUCATION),CONSTRUCTION FEES - LEGAL,5902593090,1790085
08.08.2023,CHILDREN AND ADULT,SHARPE PRITCHARD LLP,"1,176.50",CAPITAL PS (EDUCATION),CONSTRUCTION FEES - LEGAL,5902592995,1790085
08.08.2023,CHILDREN AND ADULT,SHARPE PRITCHARD LLP,863.7,CAPITAL PS (SOC SERV),CONSTRUCTION FEES - LEGAL,5902592997,1790085
08.08.2023,CHILDREN AND FAMILIES,ISLINGTON COUNCIL,"62,854.00",ADOPT LONDON SOUTH,MARKETING & PUBLICITY SERVICES,5902592983,11204697
08.08.2023,CHILDREN AND FAMILIES,REDACTED PERSONAL DATA,375.54,ADOPTION ALLOWANCES,PAYMENTS TO CARERS,REDACTED,REDACTED
08.08.2023,CHILDREN AND FAMILIES,REDACTED PERSONAL DATA,375.54,ADOPTION ALLOWANCES,PAYMENTS TO CARERS,REDACTED,REDACTED
08.08.2023,CHILDREN AND FAMILIES,REDACTED PERSONAL DATA,712.3,ADOPTION ALLOWANCES,PAYMENTS TO CARERS,REDACTED,REDACTED
08.08.2023,CHILDREN AND FAMILIES,REDACTED PERSONAL DATA,862,ADOPTION ALLOWANCES,PAYMENTS TO CARERS,REDACTED,REDACTED
08.08.2023,CHILDREN AND FAMILIES,REDACTED PERSONAL DATA,635.34,ADOPTION ALLOWANCES,PAYMENTS TO CARERS,REDACTED,REDACTED
08.08.2023,CHILDREN AND FAMILIES,REDACTED PERSONAL DATA,375.54,ADOPTION ALLOWANCES,PAYMENTS TO CARERS,REDACTED,REDACTED
08.08.2023,CHILDREN AND FAMILIES,REDACTED PERSONAL DATA,375.54,ADOPTION ALLOWANCES,PAYMENTS TO CARERS,REDACTED,REDACTED
08.08.2023,CHILDREN AND FAMILIES,REDACTED PERSONAL DATA,451.8,ADOPTION ALLOWANCES,PAYMENTS TO CARERS,REDACTED,REDACTED
08.08.2023,CHILDREN AND FAMILIES,REDACTED PERSONAL DATA,386,ADOPTION ALLOWANCES,PAYMENTS TO CARERS,REDACTED,REDACTED
08.08.2023,CHILDREN AND FAMILIES,REDACTED PERSONAL DATA,705.24,ADOPTION ALLOWANCES,PAYMENTS TO CARERS,REDACTED,REDACTED
08.08.2023,CHILDREN AND FAMILIES,REDACTED PERSONAL DATA,777.36,ADOPTION ALLOWANCES,PAYMENTS TO CARERS,REDACTED,REDACTED
08.08.2023,CHILDREN AND FAMILIES,REDACTED PERSONAL DATA,512.02,ADOPTION ALLOWANCES,PAYMENTS TO CARERS,REDACTED,REDACTED
08.08.2023,CHILDREN AND FAMILIES,REDACTED PERSONAL DATA,375.54,ADOPTION ALLOWANCES,PAYMENTS TO CARERS,REDACTED,REDACTED
08.08.2023,CHILDREN AND FAMILIES,REDACTED PERSONAL DATA,375.54,ADOPTION ALLOWANCES,PAYMENTS TO CARERS,REDACTED,REDACTED
08.08.2023,CHILDREN AND FAMILIES,REDACTED PERSONAL DATA,502,ADOPTION ALLOWANCES,PAYMENTS TO CARERS,REDACTED,REDACTED
08.08.2023,CHILDREN AND FAMILIES,REDACTED PERSONAL DATA,375.54,ADOPTION ALLOWANCES,PAYMENTS TO CARERS,REDACTED,REDACTED
08.08.2023,CHILDREN AND FAMILIES,REDACTED PERSONAL DATA,640.9,ADOPTION ALLOWANCES,PAYMENTS TO CARERS,REDACTED,REDACTED
08.08.2023,CHILDREN AND FAMILIES,REDACTED PERSONAL DATA,382.3,ADOPTION ALLOWANCES,PAYMENTS TO CARERS,REDACTED,REDACTED
08.08.2023,CHILDREN AND FAMILIES,REDACTED PERSONAL DATA,382.3,ADOPTION ALLOWANCES,PAYMENTS TO CARERS,REDACTED,REDACTED
08.08.2023,CHILDREN AND FAMILIES,REDACTED PERSONAL DATA,359.9,ADOPTION ALLOWANCES,PAYMENTS TO CARERS,REDACTED,REDACTED
08.08.2023,CHILDREN AND FAMILIES,REDACTED PERSONAL DATA,320.56,ADOPTION ALLOWANCES,PAYMENTS TO CARERS,REDACTED,REDACTED
08.08.2023,CHILDREN AND FAMILIES,REDACTED PERSONAL DATA,293.12,ADOPTION ALLOWANCES,PAYMENTS TO CARERS,REDACTED,REDACTED
08.08.2023,CHILDREN AND FAMILIES,REDACTED PERSONAL DATA,278.54,ADOPTION ALLOWANCES,PAYMENTS TO CARERS,REDACTED,REDACTED
08.08.2023,CHILDREN AND FAMILIES,REDACTED PERSONAL DATA,485.22,ADOPTION ALLOWANCES,PAYMENTS TO CARERS,REDACTED,REDACTED
08.08.2023,CHILDREN AND FAMILIES,REDACTED PERSONAL DATA,252.9,ADOPTION ALLOWANCES,PAYMENTS TO CARERS,REDACTED,REDACTED
08.08.2023,CHILDREN AND FAMILIES,REDACTED PERSONAL DATA,253.56,ADOPTION ALLOWANCES,PAYMENTS TO CARERS,REDACTED,REDACTED
08.08.2023,CHILDREN AND FAMILIES,REDACTED PERSONAL DATA,279.22,ADOPTION ALLOWANCES,PAYMENTS TO CARERS,REDACTED,REDACTED
08.08.2023,CHILDREN AND FAMILIES,REDACTED PERSONAL DATA,382.3,ADOPTION ALLOWANCES,PAYMENTS TO CARERS,REDACTED,REDACTED
08.08.2023,CHILDREN AND FAMILIES,REDACTED PERSONAL DATA,382.3,ADOPTION ALLOWANCES,PAYMENTS TO CARERS,REDACTED,REDACTED
08.08.2023,CHILDREN AND FAMILIES,REDACTED PERSONAL DATA,484.92,ADOPTION ALLOWANCES,PAYMENTS TO CARERS,REDACTED,REDACTED
08.08.2023,CHILDREN AND FAMILIES,REDACTED PERSONAL DATA,600,ADOPTION ALLOWANCES,PAYMENTS TO CARERS,REDACTED,REDACTED
08.08.2023,CHILDREN AND FAMILIES,REDACTED PERSONAL DATA,908,ADOPTION ALLOWANCES,PAYMENTS TO CARERS,REDACTED,REDACTED
08.08.2023,CHILDREN AND FAMILIES,REDACTED PERSONAL DATA,738.32,ADOPTION ALLOWANCES,PAYMENTS TO CARERS,REDACTED,REDACTED
08.08.2023,CHILDREN AND FAMILIES,REDACTED PERSONAL DATA,695.12,ADOPTION ALLOWANCES,PAYMENTS TO CARERS,REDACTED,REDACTED
08.08.2023,CHILDREN AND FAMILIES,REDACTED PERSONAL DATA,251.94,ADOPTION ALLOWANCES,PAYMENTS TO CARERS,REDACTED,REDACTED
08.08.2023,CHILDREN AND FAMILIES,REDACTED PERSONAL DATA,652.9,ADOPTION ALLOWANCES,PAYMENTS TO CARERS,REDACTED,REDACTED
08.08.2023,CHILDREN AND FAMILIES,REDACTED PERSONAL DATA,652.9,ADOPTION ALLOWANCES,PAYMENTS TO CARERS,REDACTED,REDACTED
08.08.2023,CHILDREN AND FAMILIES,REDACTED PERSONAL DATA,712.3,ADOPTION ALLOWANCES,PAYMENTS TO CARERS,REDACTED,REDACTED
08.08.2023,CHILDREN AND FAMILIES,REDACTED PERSONAL DATA,767.68,ADOPTION ALLOWANCES,PAYMENTS TO CARERS,REDACTED,REDACTED
08.08.2023,CHILDREN AND FAMILIES,REDACTED PERSONAL DATA,400.18,ADOPTION ALLOWANCES,PAYMENTS TO CARERS,REDACTED,REDACTED
08.08.2023,CHILDREN AND FAMILIES,REDACTED PERSONAL DATA,704,ADOPTION ALLOWANCES,PAYMENTS TO CARERS,REDACTED,REDACTED
08.08.2023,CHILDREN AND FAMILIES,REDACTED PERSONAL DATA,789.7,ADOPTION ALLOWANCES,PAYMENTS TO CARERS,REDACTED,REDACTED
08.08.2023,CHILDREN AND FAMILIES,REDACTED PERSONAL DATA,588.42,ADOPTION ALLOWANCES,PAYMENTS TO CARERS,REDACTED,REDACTED
08.08.2023,CHILDREN AND FAMILIES,REDACTED PERSONAL DATA,"1,053.20",ADOPTION ALLOWANCES,PAYMENTS TO CARERS,REDACTED,REDACTED
08.08.2023,CHILDREN AND FAMILIES,REDACTED PERSONAL DATA,464,ADOPTION ALLOWANCES,PAYMENTS TO CARERS,REDACTED,REDACTED
08.08.2023,CHILDREN AND FAMILIES,REDACTED PERSONAL DATA,618.6,ADOPTION ALLOWANCES,PAYMENTS TO CARERS,REDACTED,REDACTED
08.08.2023,CHILDREN AND FAMILIES,REDACTED PERSONAL DATA,316.86,ADOPTION ALLOWANCES,PAYMENTS TO CARERS,REDACTED,REDACTED
08.08.2023,CHILDREN AND FAMILIES,REDACTED PERSONAL DATA,281.16,ADOPTION ALLOWANCES,PAYMENTS TO CARERS,REDACTED,REDACTED
08.08.2023,CHILDREN AND FAMILIES,REDACTED PERSONAL DATA,288.82,ADOPTION ALLOWANCES,PAYMENTS TO CARERS,REDACTED,REDACTED
08.08.2023,CHILDREN AND FAMILIES,REDACTED PERSONAL DATA,334,ADOPTION ALLOWANCES,PAYMENTS TO CARERS,REDACTED,REDACTED
08.08.2023,CHILDREN AND FAMILIES,REDACTED PERSONAL DATA,269.16,ADOPTION ALLOWANCES,PAYMENTS TO CARERS,REDACTED,REDACTED
08.08.2023,CHILDREN AND FAMILIES,REDACTED PERSONAL DATA,682,ADOPTION ALLOWANCES,PAYMENTS TO CARERS,REDACTED,REDACTED
08.08.2023,CHILDREN AND FAMILIES,REDACTED PERSONAL DATA,682,ADOPTION ALLOWANCES,PAYMENTS TO CARERS,REDACTED,REDACTED
08.08.2023,CHILDREN AND FAMILIES,REDACTED PERSONAL DATA,682,ADOPTION ALLOWANCES,PAYMENTS TO CARERS,REDACTED,REDACTED
08.08.2023,CHILDREN AND FAMILIES,REDACTED PERSONAL DATA,682,ADOPTION ALLOWANCES,PAYMENTS TO CARERS,REDACTED,REDACTED
08.08.2023,CHILDREN AND FAMILIES,REDACTED PERSONAL DATA,696,ADOPTION ALLOWANCES,PAYMENTS TO CARERS,REDACTED,REDACTED
08.08.2023,CHILDREN AND FAMILIES,REDACTED PERSONAL DATA,774,ADOPTION ALLOWANCES,PAYMENTS TO CARERS,REDACTED,REDACTED
08.08.2023,CHILDREN AND FAMILIES,PURPLE THERAPY LTD,450,ADOPTION SUPP FUND 1,EXTERNAL AGENCIES AND BODIES,5902593088,1000087557
08.08.2023,CHILDREN AND FAMILIES,CLAP AND TOOT LTD,850,ADOPTION SUPP FUND 3,EXTERNAL AGENCIES AND BODIES,5902593103,1000087479
08.08.2023,CHILDREN AND FAMILIES,NEGOTIATORS FAMILY CENTRE LIMITED,300,CONTACT SERVICE,OTHER PAYMENTS FOR CLIENTS,5902593077,1000075672
08.08.2023,CHILDREN AND FAMILIES,REDACTED PERSONAL DATA,457.07,FAMILY GROUP CONF�S,PROFESSIONAL FEES,REDACTED,REDACTED
08.08.2023,CHILDREN AND FAMILIES,REDACTED PERSONAL DATA,306.17,FAMILY GROUP CONF�S,PROFESSIONAL FEES,REDACTED,REDACTED
08.08.2023,CHILDREN AND FAMILIES,REDACTED PERSONAL DATA,400,FOSTERING ALLOWANCES,ADDITIONAL PAYMENTS TO AGENCIES/CARERS,REDACTED,REDACTED
08.08.2023,CHILDREN AND FAMILIES,REDACTED PERSONAL DATA,400,FOSTERING ALLOWANCES,ADDITIONAL PAYMENTS TO AGENCIES/CARERS,REDACTED,REDACTED
08.08.2023,CHILDREN AND FAMILIES,REDACTED PERSONAL DATA,275,FOSTERING ALLOWANCES,ADDITIONAL PAYMENTS TO AGENCIES/CARERS,REDACTED,REDACTED
08.08.2023,CHILDREN AND FAMILIES,REDACTED PERSONAL DATA,400,FOSTERING ALLOWANCES,ADDITIONAL PAYMENTS TO AGENCIES/CARERS,REDACTED,REDACTED
08.08.2023,CHILDREN AND FAMILIES,REDACTED PERSONAL DATA,400,FOSTERING ALLOWANCES,ADDITIONAL PAYMENTS TO AGENCIES/CARERS,REDACTED,REDACTED
08.08.2023,CHILDREN AND FAMILIES,REDACTED PERSONAL DATA,490,FOSTERING ALLOWANCES,ADDITIONAL PAYMENTS TO AGENCIES/CARERS,REDACTED,REDACTED
08.08.2023,CHILDREN AND FAMILIES,REDACTED PERSONAL DATA,994,FOSTERING ALLOWANCES,PAYMENTS TO CARERS,REDACTED,REDACTED
08.08.2023,CHILDREN AND FAMILIES,REDACTED PERSONAL DATA,"1,084.00",FOSTERING ALLOWANCES,PAYMENTS TO CARERS,REDACTED,REDACTED
08.08.2023,CHILDREN AND FAMILIES,REDACTED PERSONAL DATA,978,FOSTERING ALLOWANCES,PAYMENTS TO CARERS,REDACTED,REDACTED
08.08.2023,CHILDREN AND FAMILIES,REDACTED PERSONAL DATA,994,FOSTERING ALLOWANCES,PAYMENTS TO CARERS,REDACTED,REDACTED
08.08.2023,CHILDREN AND FAMILIES,REDACTED PERSONAL DATA,994,FOSTERING ALLOWANCES,PAYMENTS TO CARERS,REDACTED,REDACTED
08.08.2023,CHILDREN AND FAMILIES,REDACTED PERSONAL DATA,994,FOSTERING ALLOWANCES,PAYMENTS TO CARERS,REDACTED,REDACTED
08.08.2023,CHILDREN AND FAMILIES,REDACTED PERSONAL DATA,"1,084.00",FOSTERING ALLOWANCES,PAYMENTS TO CARERS,REDACTED,REDACTED
08.08.2023,CHILDREN AND FAMILIES,REDACTED PERSONAL DATA,"1,122.00",FOSTERING ALLOWANCES,PAYMENTS TO CARERS,REDACTED,REDACTED
08.08.2023,CHILDREN AND FAMILIES,REDACTED PERSONAL DATA,956,FOSTERING ALLOWANCES,PAYMENTS TO CARERS,REDACTED,REDACTED
08.08.2023,CHILDREN AND FAMILIES,REDACTED PERSONAL DATA,806,FOSTERING ALLOWANCES,PAYMENTS TO CARERS,REDACTED,REDACTED
08.08.2023,CHILDREN AND FAMILIES,REDACTED PERSONAL DATA,-804.86,FOSTERING ALLOWANCES,PAYMENTS TO CARERS,REDACTED,REDACTED
08.08.2023,CHILDREN AND FAMILIES,REDACTED PERSONAL DATA,"1,878.00",FOSTERING ALLOWANCES,PAYMENTS TO CARERS,REDACTED,REDACTED
08.08.2023,CHILDREN AND FAMILIES,REDACTED PERSONAL DATA,-426,FOSTERING ALLOWANCES,PAYMENTS TO CARERS,REDACTED,REDACTED
08.08.2023,CHILDREN AND FAMILIES,REDACTED PERSONAL DATA,"1,632.00",FOSTERING ALLOWANCES,PAYMENTS TO CARERS,REDACTED,REDACTED
08.08.2023,CHILDREN AND FAMILIES,REDACTED PERSONAL DATA,994,FOSTERING ALLOWANCES,PAYMENTS TO CARERS,REDACTED,REDACTED
08.08.2023,CHILDREN AND FAMILIES,REDACTED PERSONAL DATA,978,FOSTERING ALLOWANCES,PAYMENTS TO CARERS,REDACTED,REDACTED
08.08.2023,CHILDREN AND FAMILIES,REDACTED PERSONAL DATA,978,FOSTERING ALLOWANCES,PAYMENTS TO CARERS,REDACTED,REDACTED
08.08.2023,CHILDREN AND FAMILIES,REDACTED PERSONAL DATA,978,FOSTERING ALLOWANCES,PAYMENTS TO CARERS,REDACTED,REDACTED
08.08.2023,CHILDREN AND FAMILIES,REDACTED PERSONAL DATA,"1,084.00",FOSTERING ALLOWANCES,PAYMENTS TO CARERS,REDACTED,REDACTED
08.08.2023,CHILDREN AND FAMILIES,REDACTED PERSONAL DATA,978,FOSTERING ALLOWANCES,PAYMENTS TO CARERS,REDACTED,REDACTED
08.08.2023,CHILDREN AND FAMILIES,REDACTED PERSONAL DATA,"1,878.00",FOSTERING ALLOWANCES,PAYMENTS TO CARERS,REDACTED,REDACTED
08.08.2023,CHILDREN AND FAMILIES,REDACTED PERSONAL DATA,"1,084.00",FOSTERING ALLOWANCES,PAYMENTS TO CARERS,REDACTED,REDACTED
08.08.2023,CHILDREN AND FAMILIES,REDACTED PERSONAL DATA,806,FOSTERING ALLOWANCES,PAYMENTS TO CARERS,REDACTED,REDACTED
08.08.2023,CHILDREN AND FAMILIES,REDACTED PERSONAL DATA,994,FOSTERING ALLOWANCES,PAYMENTS TO CARERS,REDACTED,REDACTED
08.08.2023,CHILDREN AND FAMILIES,REDACTED PERSONAL DATA,"1,054.00",FOSTERING ALLOWANCES,PAYMENTS TO CARERS,REDACTED,REDACTED
08.08.2023,CHILDREN AND FAMILIES,REDACTED PERSONAL DATA,660,FOSTERING ALLOWANCES,PAYMENTS TO CARERS,REDACTED,REDACTED
08.08.2023,CHILDREN AND FAMILIES,REDACTED PERSONAL DATA,978,FOSTERING ALLOWANCES,PAYMENTS TO CARERS,REDACTED,REDACTED
08.08.2023,CHILDREN AND FAMILIES,REDACTED PERSONAL DATA,"1,084.00",FOSTERING ALLOWANCES,PAYMENTS TO CARERS,REDACTED,REDACTED
08.08.2023,CHILDREN AND FAMILIES,REDACTED PERSONAL DATA,"1,084.00",FOSTERING ALLOWANCES,PAYMENTS TO CARERS,REDACTED,REDACTED
08.08.2023,CHILDREN AND FAMILIES,REDACTED PERSONAL DATA,733.98,FOSTERING ALLOWANCES,PAYMENTS TO CARERS,REDACTED,REDACTED
08.08.2023,CHILDREN AND FAMILIES,REDACTED PERSONAL DATA,978,FOSTERING ALLOWANCES,PAYMENTS TO CARERS,REDACTED,REDACTED
08.08.2023,CHILDREN AND FAMILIES,REDACTED PERSONAL DATA,"1,054.00",FOSTERING ALLOWANCES,PAYMENTS TO CARERS,REDACTED,REDACTED
08.08.2023,CHILDREN AND FAMILIES,REDACTED PERSONAL DATA,"1,144.00",FOSTERING ALLOWANCES,PAYMENTS TO CARERS,REDACTED,REDACTED
08.08.2023,CHILDREN AND FAMILIES,REDACTED PERSONAL DATA,774,FOSTERING ALLOWANCES,PAYMENTS TO CARERS,REDACTED,REDACTED
08.08.2023,CHILDREN AND FAMILIES,REDACTED PERSONAL DATA,828,FOSTERING ALLOWANCES,PAYMENTS TO CARERS,REDACTED,REDACTED
08.08.2023,CHILDREN AND FAMILIES,REDACTED PERSONAL DATA,946,FOSTERING ALLOWANCES,PAYMENTS TO CARERS,REDACTED,REDACTED
08.08.2023,CHILDREN AND FAMILIES,REDACTED PERSONAL DATA,994,FOSTERING ALLOWANCES,PAYMENTS TO CARERS,REDACTED,REDACTED
08.08.2023,CHILDREN AND FAMILIES,REDACTED PERSONAL DATA,"1,084.00",FOSTERING ALLOWANCES,PAYMENTS TO CARERS,REDACTED,REDACTED
08.08.2023,CHILDREN AND FAMILIES,REDACTED PERSONAL DATA,978,FOSTERING ALLOWANCES,PAYMENTS TO CARERS,REDACTED,REDACTED
08.08.2023,CHILDREN AND FAMILIES,REDACTED PERSONAL DATA,"1,694.00",FOSTERING ALLOWANCES,PAYMENTS TO CARERS,REDACTED,REDACTED
08.08.2023,CHILDREN AND FAMILIES,REDACTED PERSONAL DATA,978,FOSTERING ALLOWANCES,PAYMENTS TO CARERS,REDACTED,REDACTED
08.08.2023,CHILDREN AND FAMILIES,REDACTED PERSONAL DATA,"1,054.00",FOSTERING ALLOWANCES,PAYMENTS TO CARERS,REDACTED,REDACTED
08.08.2023,CHILDREN AND FAMILIES,REDACTED PERSONAL DATA,"1,802.00",FOSTERING ALLOWANCES,PAYMENTS TO CARERS,REDACTED,REDACTED
08.08.2023,CHILDREN AND FAMILIES,REDACTED PERSONAL DATA,978,FOSTERING ALLOWANCES,PAYMENTS TO CARERS,REDACTED,REDACTED
08.08.2023,CHILDREN AND FAMILIES,REDACTED PERSONAL DATA,994,FOSTERING ALLOWANCES,PAYMENTS TO CARERS,REDACTED,REDACTED
08.08.2023,CHILDREN AND FAMILIES,REDACTED PERSONAL DATA,978,FOSTERING ALLOWANCES,PAYMENTS TO CARERS,REDACTED,REDACTED
08.08.2023,CHILDREN AND FAMILIES,REDACTED PERSONAL DATA,978,FOSTERING ALLOWANCES,PAYMENTS TO CARERS,REDACTED,REDACTED
08.08.2023,CHILDREN AND FAMILIES,REDACTED PERSONAL DATA,864,FOSTERING ALLOWANCES,PAYMENTS TO CARERS,REDACTED,REDACTED
08.08.2023,CHILDREN AND FAMILIES,REDACTED PERSONAL DATA,"1,084.00",FOSTERING ALLOWANCES,PAYMENTS TO CARERS,REDACTED,REDACTED
08.08.2023,CHILDREN AND FAMILIES,REDACTED PERSONAL DATA,"1,084.00",FOSTERING ALLOWANCES,PAYMENTS TO CARERS,REDACTED,REDACTED
08.08.2023,CHILDREN AND FAMILIES,REDACTED PERSONAL DATA,806,FOSTERING ALLOWANCES,PAYMENTS TO CARERS,REDACTED,REDACTED
08.08.2023,CHILDREN AND FAMILIES,REDACTED PERSONAL DATA,994,FOSTERING ALLOWANCES,PAYMENTS TO CARERS,REDACTED,REDACTED
08.08.2023,CHILDREN AND FAMILIES,REDACTED PERSONAL DATA,806,FOSTERING ALLOWANCES,PAYMENTS TO CARERS,REDACTED,REDACTED
08.08.2023,CHILDREN AND FAMILIES,REDACTED PERSONAL DATA,806,FOSTERING ALLOWANCES,PAYMENTS TO CARERS,REDACTED,REDACTED
08.08.2023,CHILDREN AND FAMILIES,REDACTED PERSONAL DATA,994,FOSTERING ALLOWANCES,PAYMENTS TO CARERS,REDACTED,REDACTED
08.08.2023,CHILDREN AND FAMILIES,REDACTED PERSONAL DATA,"1,054.00",FOSTERING ALLOWANCES,PAYMENTS TO CARERS,REDACTED,REDACTED
08.08.2023,CHILDREN AND FAMILIES,REDACTED PERSONAL DATA,828,FOSTERING ALLOWANCES,PAYMENTS TO CARERS,REDACTED,REDACTED
08.08.2023,CHILDREN AND FAMILIES,REDACTED PERSONAL DATA,828,FOSTERING ALLOWANCES,PAYMENTS TO CARERS,REDACTED,REDACTED
08.08.2023,CHILDREN AND FAMILIES,REDACTED PERSONAL DATA,806,FOSTERING ALLOWANCES,PAYMENTS TO CARERS,REDACTED,REDACTED
08.08.2023,CHILDREN AND FAMILIES,REDACTED PERSONAL DATA,864,FOSTERING ALLOWANCES,PAYMENTS TO CARERS,REDACTED,REDACTED
08.08.2023,CHILDREN AND FAMILIES,REDACTED PERSONAL DATA,"1,031.00",FOSTERING ALLOWANCES,PAYMENTS TO CARERS,REDACTED,REDACTED
08.08.2023,CHILDREN AND FAMILIES,REDACTED PERSONAL DATA,864,FOSTERING ALLOWANCES,PAYMENTS TO CARERS,REDACTED,REDACTED
08.08.2023,CHILDREN AND FAMILIES,REDACTED PERSONAL DATA,978,FOSTERING ALLOWANCES,PAYMENTS TO CARERS,REDACTED,REDACTED
08.08.2023,CHILDREN AND FAMILIES,REDACTED PERSONAL DATA,"1,178.00",FOSTERING ALLOWANCES,PAYMENTS TO CARERS,REDACTED,REDACTED
08.08.2023,CHILDREN AND FAMILIES,REDACTED PERSONAL DATA,978,FOSTERING ALLOWANCES,PAYMENTS TO CARERS,REDACTED,REDACTED
08.08.2023,CHILDREN AND FAMILIES,REDACTED PERSONAL DATA,"1,694.00",FOSTERING ALLOWANCES,PAYMENTS TO CARERS,REDACTED,REDACTED
08.08.2023,CHILDREN AND FAMILIES,REDACTED PERSONAL DATA,"1,235.00",FOSTERING ALLOWANCES,PAYMENTS TO CARERS,REDACTED,REDACTED
08.08.2023,CHILDREN AND FAMILIES,REDACTED PERSONAL DATA,864,FOSTERING ALLOWANCES,PAYMENTS TO CARERS,REDACTED,REDACTED
08.08.2023,CHILDREN AND FAMILIES,REDACTED PERSONAL DATA,978,FOSTERING ALLOWANCES,PAYMENTS TO CARERS,REDACTED,REDACTED
08.08.2023,CHILDREN AND FAMILIES,REDACTED PERSONAL DATA,978,FOSTERING ALLOWANCES,PAYMENTS TO CARERS,REDACTED,REDACTED
08.08.2023,CHILDREN AND FAMILIES,REDACTED PERSONAL DATA,978,FOSTERING ALLOWANCES,PAYMENTS TO CARERS,REDACTED,REDACTED
08.08.2023,CHILDREN AND FAMILIES,REDACTED PERSONAL DATA,978,FOSTERING ALLOWANCES,PAYMENTS TO CARERS,REDACTED,REDACTED
08.08.2023,CHILDREN AND FAMILIES,REDACTED PERSONAL DATA,"1,084.00",FOSTERING ALLOWANCES,PAYMENTS TO CARERS,REDACTED,REDACTED
08.08.2023,CHILDREN AND FAMILIES,REDACTED PERSONAL DATA,"1,084.00",FOSTERING ALLOWANCES,PAYMENTS TO CARERS,REDACTED,REDACTED
08.08.2023,CHILDREN AND FAMILIES,REDACTED PERSONAL DATA,"1,046.00",FOSTERING ALLOWANCES,PAYMENTS TO CARERS,REDACTED,REDACTED
08.08.2023,CHILDREN AND FAMILIES,REDACTED PERSONAL DATA,978,FOSTERING ALLOWANCES,PAYMENTS TO CARERS,REDACTED,REDACTED
08.08.2023,CHILDREN AND FAMILIES,REDACTED PERSONAL DATA,994,FOSTERING ALLOWANCES,PAYMENTS TO CARERS,REDACTED,REDACTED
08.08.2023,CHILDREN AND FAMILIES,REDACTED PERSONAL DATA,"1,084.00",FOSTERING ALLOWANCES,PAYMENTS TO CARERS,REDACTED,REDACTED
08.08.2023,CHILDREN AND FAMILIES,REDACTED PERSONAL DATA,"1,802.00",FOSTERING ALLOWANCES,PAYMENTS TO CARERS,REDACTED,REDACTED
08.08.2023,CHILDREN AND FAMILIES,REDACTED PERSONAL DATA,978,FOSTERING ALLOWANCES,PAYMENTS TO CARERS,REDACTED,REDACTED
08.08.2023,CHILDREN AND FAMILIES,REDACTED PERSONAL DATA,864,FOSTERING ALLOWANCES,PAYMENTS TO CARERS,REDACTED,REDACTED
08.08.2023,CHILDREN AND FAMILIES,REDACTED PERSONAL DATA,946,FOSTERING ALLOWANCES,PAYMENTS TO CARERS,REDACTED,REDACTED
08.08.2023,CHILDREN AND FAMILIES,REDACTED PERSONAL DATA,940,FOSTERING ALLOWANCES,PAYMENTS TO CARERS,REDACTED,REDACTED
08.08.2023,CHILDREN AND FAMILIES,REDACTED PERSONAL DATA,940,FOSTERING ALLOWANCES,PAYMENTS TO CARERS,REDACTED,REDACTED
08.08.2023,CHILDREN AND FAMILIES,REDACTED PERSONAL DATA,940,FOSTERING ALLOWANCES,PAYMENTS TO CARERS,REDACTED,REDACTED
08.08.2023,CHILDREN AND FAMILIES,REDACTED PERSONAL DATA,"1,584.00",FOSTERING ALLOWANCES,PAYMENTS TO CARERS,REDACTED,REDACTED
08.08.2023,CHILDREN AND FAMILIES,REDACTED PERSONAL DATA,"1,442.00",FOSTERING ALLOWANCES,PAYMENTS TO CARERS,REDACTED,REDACTED
08.08.2023,CHILDREN AND FAMILIES,REDACTED PERSONAL DATA,"1,802.00",FOSTERING ALLOWANCES,PAYMENTS TO CARERS,REDACTED,REDACTED
08.08.2023,CHILDREN AND FAMILIES,REDACTED PERSONAL DATA,994,FOSTERING ALLOWANCES,PAYMENTS TO CARERS,REDACTED,REDACTED
08.08.2023,CHILDREN AND FAMILIES,REDACTED PERSONAL DATA,828,FOSTERING ALLOWANCES,PAYMENTS TO CARERS,REDACTED,REDACTED
08.08.2023,CHILDREN AND FAMILIES,REDACTED PERSONAL DATA,978,FOSTERING ALLOWANCES,PAYMENTS TO CARERS,REDACTED,REDACTED
08.08.2023,CHILDREN AND FAMILIES,REDACTED PERSONAL DATA,978,FOSTERING ALLOWANCES,PAYMENTS TO CARERS,REDACTED,REDACTED
08.08.2023,CHILDREN AND FAMILIES,REDACTED PERSONAL DATA,"1,046.00",FOSTERING ALLOWANCES,PAYMENTS TO CARERS,REDACTED,REDACTED
08.08.2023,CHILDREN AND FAMILIES,REDACTED PERSONAL DATA,"1,713.10",FOSTERING ALLOWANCES,PAYMENTS TO CARERS,REDACTED,REDACTED
08.08.2023,CHILDREN AND FAMILIES,REDACTED PERSONAL DATA,994,FOSTERING ALLOWANCES,PAYMENTS TO CARERS,REDACTED,REDACTED
08.08.2023,CHILDREN AND FAMILIES,REDACTED PERSONAL DATA,"1,700.00",FOSTERING ALLOWANCES,PAYMENTS TO CARERS,REDACTED,REDACTED
08.08.2023,CHILDREN AND FAMILIES,REDACTED PERSONAL DATA,"1,084.00",FOSTERING ALLOWANCES,PAYMENTS TO CARERS,REDACTED,REDACTED
08.08.2023,CHILDREN AND FAMILIES,REDACTED PERSONAL DATA,-405.43,FOSTERING ALLOWANCES,PAYMENTS TO CARERS,REDACTED,REDACTED
08.08.2023,CHILDREN AND FAMILIES,REDACTED PERSONAL DATA,978,FOSTERING ALLOWANCES,PAYMENTS TO CARERS,REDACTED,REDACTED
08.08.2023,CHILDREN AND FAMILIES,REDACTED PERSONAL DATA,774,FOSTERING ALLOWANCES,PAYMENTS TO CARERS,REDACTED,REDACTED
08.08.2023,CHILDREN AND FAMILIES,REDACTED PERSONAL DATA,946,FOSTERING ALLOWANCES,PAYMENTS TO CARERS,REDACTED,REDACTED
08.08.2023,CHILDREN AND FAMILIES,REDACTED PERSONAL DATA,946,FOSTERING ALLOWANCES,PAYMENTS TO CARERS,REDACTED,REDACTED
08.08.2023,CHILDREN AND FAMILIES,REDACTED PERSONAL DATA,946,FOSTERING ALLOWANCES,PAYMENTS TO CARERS,REDACTED,REDACTED
08.08.2023,CHILDREN AND FAMILIES,REDACTED PERSONAL DATA,"1,089.00",FOSTERING ALLOWANCES,PAYMENTS TO CARERS,REDACTED,REDACTED
08.08.2023,CHILDREN AND FAMILIES,REDACTED PERSONAL DATA,"1,070.16",FOSTERING ALLOWANCES,PAYMENTS TO CARERS,REDACTED,REDACTED
08.08.2023,CHILDREN AND FAMILIES,REDACTED PERSONAL DATA,"1,046.00",FOSTERING ALLOWANCES,PAYMENTS TO CARERS,REDACTED,REDACTED
08.08.2023,CHILDREN AND FAMILIES,REDACTED PERSONAL DATA,-387,FOSTERING ALLOWANCES,PAYMENTS TO CARERS,REDACTED,REDACTED
08.08.2023,CHILDREN AND FAMILIES,REDACTED PERSONAL DATA,774,FOSTERING ALLOWANCES,PAYMENTS TO CARERS,REDACTED,REDACTED
08.08.2023,CHILDREN AND FAMILIES,REDACTED PERSONAL DATA,946,FOSTERING ALLOWANCES,PAYMENTS TO CARERS,REDACTED,REDACTED
08.08.2023,CHILDREN AND FAMILIES,REDACTED PERSONAL DATA,828,FOSTERING ALLOWANCES,PAYMENTS TO CARERS,REDACTED,REDACTED
08.08.2023,CHILDREN AND FAMILIES,REDACTED PERSONAL DATA,828,FOSTERING ALLOWANCES,PAYMENTS TO CARERS,REDACTED,REDACTED
08.08.2023,CHILDREN AND FAMILIES,REDACTED PERSONAL DATA,828,FOSTERING ALLOWANCES,PAYMENTS TO CARERS,REDACTED,REDACTED
08.08.2023,CHILDREN AND FAMILIES,REDACTED PERSONAL DATA,400,KINSHIP FOSTERING,ADDITIONAL PAYMENTS TO AGENCIES/CARERS,REDACTED,REDACTED
08.08.2023,CHILDREN AND FAMILIES,REDACTED PERSONAL DATA,400,KINSHIP FOSTERING,ADDITIONAL PAYMENTS TO AGENCIES/CARERS,REDACTED,REDACTED
08.08.2023,CHILDREN AND FAMILIES,REDACTED PERSONAL DATA,400,KINSHIP FOSTERING,ADDITIONAL PAYMENTS TO AGENCIES/CARERS,REDACTED,REDACTED
08.08.2023,CHILDREN AND FAMILIES,REDACTED PERSONAL DATA,828,KINSHIP FOSTERING,PAYMENTS TO CARERS,REDACTED,REDACTED
08.08.2023,CHILDREN AND FAMILIES,REDACTED PERSONAL DATA,828,KINSHIP FOSTERING,PAYMENTS TO CARERS,REDACTED,REDACTED
08.08.2023,CHILDREN AND FAMILIES,REDACTED PERSONAL DATA,946,KINSHIP FOSTERING,PAYMENTS TO CARERS,REDACTED,REDACTED
08.08.2023,CHILDREN AND FAMILIES,REDACTED PERSONAL DATA,"1,046.00",KINSHIP FOSTERING,PAYMENTS TO CARERS,REDACTED,REDACTED
08.08.2023,CHILDREN AND FAMILIES,REDACTED PERSONAL DATA,364,KINSHIP FOSTERING,PAYMENTS TO CARERS,REDACTED,REDACTED
08.08.2023,CHILDREN AND FAMILIES,REDACTED PERSONAL DATA,946,KINSHIP FOSTERING,PAYMENTS TO CARERS,REDACTED,REDACTED
08.08.2023,CHILDREN AND FAMILIES,REDACTED PERSONAL DATA,"1,046.00",KINSHIP FOSTERING,PAYMENTS TO CARERS,REDACTED,REDACTED
08.08.2023,CHILDREN AND FAMILIES,REDACTED PERSONAL DATA,946,KINSHIP FOSTERING,PAYMENTS TO CARERS,REDACTED,REDACTED
08.08.2023,CHILDREN AND FAMILIES,REDACTED PERSONAL DATA,946,KINSHIP FOSTERING,PAYMENTS TO CARERS,REDACTED,REDACTED
08.08.2023,CHILDREN AND FAMILIES,REDACTED PERSONAL DATA,946,KINSHIP FOSTERING,PAYMENTS TO CARERS,REDACTED,REDACTED
08.08.2023,CHILDREN AND FAMILIES,REDACTED PERSONAL DATA,"1,046.00",KINSHIP FOSTERING,PAYMENTS TO CARERS,REDACTED,REDACTED
08.08.2023,CHILDREN AND FAMILIES,REDACTED PERSONAL DATA,828,KINSHIP FOSTERING,PAYMENTS TO CARERS,REDACTED,REDACTED
08.08.2023,CHILDREN AND FAMILIES,REDACTED PERSONAL DATA,946,KINSHIP FOSTERING,PAYMENTS TO CARERS,REDACTED,REDACTED
08.08.2023,CHILDREN AND FAMILIES,REDACTED PERSONAL DATA,946,KINSHIP FOSTERING,PAYMENTS TO CARERS,REDACTED,REDACTED
08.08.2023,CHILDREN AND FAMILIES,REDACTED PERSONAL DATA,828,KINSHIP FOSTERING,PAYMENTS TO CARERS,REDACTED,REDACTED
08.08.2023,CHILDREN AND FAMILIES,REDACTED PERSONAL DATA,"1,046.00",KINSHIP FOSTERING,PAYMENTS TO CARERS,REDACTED,REDACTED
08.08.2023,CHILDREN AND FAMILIES,REDACTED PERSONAL DATA,946,KINSHIP FOSTERING,PAYMENTS TO CARERS,REDACTED,REDACTED
08.08.2023,CHILDREN AND FAMILIES,REDACTED PERSONAL DATA,946,KINSHIP FOSTERING,PAYMENTS TO CARERS,REDACTED,REDACTED
08.08.2023,CHILDREN AND FAMILIES,REDACTED PERSONAL DATA,828,KINSHIP FOSTERING,PAYMENTS TO CARERS,REDACTED,REDACTED
08.08.2023,CHILDREN AND FAMILIES,REDACTED PERSONAL DATA,946,KINSHIP FOSTERING,PAYMENTS TO CARERS,REDACTED,REDACTED
08.08.2023,CHILDREN AND FAMILIES,REDACTED PERSONAL DATA,824,KINSHIP FOSTERING,PAYMENTS TO CARERS,REDACTED,REDACTED
08.08.2023,CHILDREN AND FAMILIES,REDACTED PERSONAL DATA,946,KINSHIP FOSTERING,PAYMENTS TO CARERS,REDACTED,REDACTED
08.08.2023,CHILDREN AND FAMILIES,REDACTED PERSONAL DATA,946,KINSHIP FOSTERING,PAYMENTS TO CARERS,REDACTED,REDACTED
08.08.2023,CHILDREN AND FAMILIES,REDACTED PERSONAL DATA,"1,046.00",KINSHIP FOSTERING,PAYMENTS TO CARERS,REDACTED,REDACTED
08.08.2023,CHILDREN AND FAMILIES,REDACTED PERSONAL DATA,828,KINSHIP FOSTERING,PAYMENTS TO CARERS,REDACTED,REDACTED
08.08.2023,CHILDREN AND FAMILIES,REDACTED PERSONAL DATA,828,KINSHIP FOSTERING,PAYMENTS TO CARERS,REDACTED,REDACTED
08.08.2023,CHILDREN AND FAMILIES,REDACTED PERSONAL DATA,828,KINSHIP FOSTERING,PAYMENTS TO CARERS,REDACTED,REDACTED
08.08.2023,CHILDREN AND FAMILIES,REDACTED PERSONAL DATA,946,KINSHIP FOSTERING,PAYMENTS TO CARERS,REDACTED,REDACTED
08.08.2023,CHILDREN AND FAMILIES,REDACTED PERSONAL DATA,946,KINSHIP FOSTERING,PAYMENTS TO CARERS,REDACTED,REDACTED
08.08.2023,CHILDREN AND FAMILIES,REDACTED PERSONAL DATA,946,KINSHIP FOSTERING,PAYMENTS TO CARERS,REDACTED,REDACTED
08.08.2023,CHILDREN AND FAMILIES,REDACTED PERSONAL DATA,774,KINSHIP FOSTERING,PAYMENTS TO CARERS,REDACTED,REDACTED
08.08.2023,CHILDREN AND FAMILIES,REDACTED PERSONAL DATA,946,KINSHIP FOSTERING,PAYMENTS TO CARERS,REDACTED,REDACTED
08.08.2023,CHILDREN AND FAMILIES,REDACTED PERSONAL DATA,"1,046.00",KINSHIP FOSTERING,PAYMENTS TO CARERS,REDACTED,REDACTED
08.08.2023,CHILDREN AND FAMILIES,REDACTED PERSONAL DATA,946,KINSHIP FOSTERING,PAYMENTS TO CARERS,REDACTED,REDACTED
08.08.2023,CHILDREN AND FAMILIES,REDACTED PERSONAL DATA,828,KINSHIP FOSTERING,PAYMENTS TO CARERS,REDACTED,REDACTED
08.08.2023,CHILDREN AND FAMILIES,REDACTED PERSONAL DATA,946,KINSHIP FOSTERING,PAYMENTS TO CARERS,REDACTED,REDACTED
08.08.2023,CHILDREN AND FAMILIES,REDACTED PERSONAL DATA,946,KINSHIP FOSTERING,PAYMENTS TO CARERS,REDACTED,REDACTED
08.08.2023,CHILDREN AND FAMILIES,REDACTED PERSONAL DATA,946,KINSHIP FOSTERING,PAYMENTS TO CARERS,REDACTED,REDACTED
08.08.2023,CHILDREN AND FAMILIES,REDACTED PERSONAL DATA,"1,046.00",KINSHIP FOSTERING,PAYMENTS TO CARERS,REDACTED,REDACTED
08.08.2023,CHILDREN AND FAMILIES,REDACTED PERSONAL DATA,"1,046.00",KINSHIP FOSTERING,PAYMENTS TO CARERS,REDACTED,REDACTED
08.08.2023,CHILDREN AND FAMILIES,REDACTED PERSONAL DATA,828,KINSHIP FOSTERING,PAYMENTS TO CARERS,REDACTED,REDACTED
08.08.2023,CHILDREN AND FAMILIES,REDACTED PERSONAL DATA,946,KINSHIP FOSTERING,PAYMENTS TO CARERS,REDACTED,REDACTED
08.08.2023,CHILDREN AND FAMILIES,REDACTED PERSONAL DATA,946,KINSHIP FOSTERING,PAYMENTS TO CARERS,REDACTED,REDACTED
08.08.2023,CHILDREN AND FAMILIES,REDACTED PERSONAL DATA,828,KINSHIP FOSTERING,PAYMENTS TO CARERS,REDACTED,REDACTED
08.08.2023,CHILDREN AND FAMILIES,REDACTED PERSONAL DATA,946,KINSHIP FOSTERING,PAYMENTS TO CARERS,REDACTED,REDACTED
08.08.2023,CHILDREN AND FAMILIES,REDACTED PERSONAL DATA,406,KINSHIP FOSTERING,PAYMENTS TO CARERS,REDACTED,REDACTED
08.08.2023,CHILDREN AND FAMILIES,REDACTED PERSONAL DATA,464,KINSHIP FOSTERING,PAYMENTS TO CARERS,REDACTED,REDACTED
08.08.2023,CHILDREN AND FAMILIES,REDACTED PERSONAL DATA,364,KINSHIP FOSTERING,PAYMENTS TO CARERS,REDACTED,REDACTED
08.08.2023,CHILDREN AND FAMILIES,REDACTED PERSONAL DATA,406,KINSHIP FOSTERING,PAYMENTS TO CARERS,REDACTED,REDACTED
08.08.2023,CHILDREN AND FAMILIES,REDACTED PERSONAL DATA,464,KINSHIP FOSTERING,PAYMENTS TO CARERS,REDACTED,REDACTED
08.08.2023,CHILDREN AND FAMILIES,REDACTED PERSONAL DATA,540,KINSHIP FOSTERING,PAYMENTS TO CARERS,REDACTED,REDACTED
08.08.2023,CHILDREN AND FAMILIES,REDACTED PERSONAL DATA,364,KINSHIP FOSTERING,PAYMENTS TO CARERS,REDACTED,REDACTED
08.08.2023,CHILDREN AND FAMILIES,REDACTED PERSONAL DATA,364,KINSHIP FOSTERING,PAYMENTS TO CARERS,REDACTED,REDACTED
08.08.2023,CHILDREN AND FAMILIES,REDACTED PERSONAL DATA,464,KINSHIP FOSTERING,PAYMENTS TO CARERS,REDACTED,REDACTED
08.08.2023,CHILDREN AND FAMILIES,REDACTED PERSONAL DATA,406,KINSHIP FOSTERING,PAYMENTS TO CARERS,REDACTED,REDACTED
08.08.2023,CHILDREN AND FAMILIES,REDACTED PERSONAL DATA,364,KINSHIP FOSTERING,PAYMENTS TO CARERS,REDACTED,REDACTED
08.08.2023,CHILDREN AND FAMILIES,REDACTED PERSONAL DATA,364,KINSHIP FOSTERING,PAYMENTS TO CARERS,REDACTED,REDACTED
08.08.2023,CHILDREN AND FAMILIES,REDACTED PERSONAL DATA,500,LEAVING CARE GRANT,OTHER PAYMENTS FOR CLIENTS,REDACTED,REDACTED
08.08.2023,CHILDREN AND FAMILIES,REDACTED PERSONAL DATA,320,P & R CARE TEAM,OTHER PAYMENTS FOR CLIENTS,REDACTED,REDACTED
08.08.2023,CHILDREN AND FAMILIES,GRACE GELDER,550,QA & PRAC DEV MGMT,PROFESSIONAL FEES,5902593034,1000090087
08.08.2023,CHILDREN AND FAMILIES,GRACE GELDER,664.87,QA & PRAC DEV MGMT,PROFESSIONAL FEES,5902592908,1000090087
08.08.2023,CHILDREN AND FAMILIES,FRESHVIEW ESTATES LTD,"1,510.28",SEMI-IND CARELEAVERS,EXTERNAL AGENCIES AND BODIES,5902593047,1000081189
08.08.2023,CHILDREN AND FAMILIES,EMILY VERITY,750,SFS MGMT & SUPPORT,LEGAL FEES & COURT COSTS,2103733243,1000047317
08.08.2023,CHILDREN AND FAMILIES,OLIVER MILLINGTON,950,SFS MGMT & SUPPORT,LEGAL FEES & COURT COSTS,2103733259,1000051055
08.08.2023,CHILDREN AND FAMILIES,OLIVER MILLINGTON,950,SFS MGMT & SUPPORT,LEGAL FEES & COURT COSTS,2103733261,1000051055
08.08.2023,CHILDREN AND FAMILIES,OLIVER MILLINGTON,"1,250.00",SFS MGMT & SUPPORT,LEGAL FEES & COURT COSTS,2103733260,1000051055
08.08.2023,CHILDREN AND FAMILIES,TABITHA BARRAN,750,SFS MGMT & SUPPORT,LEGAL FEES & COURT COSTS,2103733266,1000053940
08.08.2023,CHILDREN AND FAMILIES,JACK ANDERSON,"1,850.00",SFS MGMT & SUPPORT,LEGAL FEES & COURT COSTS,2103733246,1000058150
08.08.2023,CHILDREN AND FAMILIES,JACK ANDERSON,"2,500.00",SFS MGMT & SUPPORT,LEGAL FEES & COURT COSTS,2103733245,1000058150
08.08.2023,CHILDREN AND FAMILIES,EXPERT IN MIND LTD,378,SFS MGMT & SUPPORT,LEGAL FEES & COURT COSTS,2103733244,1000062889
08.08.2023,CHILDREN AND FAMILIES,LAURA HIBBERD,700,SFS MGMT & SUPPORT,LEGAL FEES & COURT COSTS,2103733248,1000076749
08.08.2023,CHILDREN AND FAMILIES,MAX MELSA,400,SFS MGMT & SUPPORT,LEGAL FEES & COURT COSTS,2103733251,1000083902
